Workbook

Sheet Referências (hidden)
G1: Datas | H1: Bovespa
A2: Nome | B2: Código | G2: =_xll.ECONOMATICA("ibov","close",,"latest","20y","d",,,"true","false") -> 2000-05-08 | H2: 14890
A3: IDIV - Índice Dividendos BM&FBOVESPA | B3: IDIV | G3: 2000-05-09 | H3: 14581
A4: IBOVESPA - Índice Bovespa | B4: IBOV | G4: 2000-05-10 | H4: 14433
A5: IBRA - Índice Brasil Amplo BM&FBOVESPA | B5: IBRA | G5: 2000-05-11 | H5: 14498
A6: IBRX 50 - Índice Brasil 50 | B6: IBXL | G6: 2000-05-12 | H6: 14458
A7: IBRX 100 - Índice Brasil 100 | B7: IBXX | G7: 2000-05-15 | H7: 15055
A8: IVBX 2 - Índice Valor BM&FBOVESPA | B8: IVBX | G8: 2000-05-16 | H8: 15360
A9: MLCX - Índice MidLarge Cap | B9: MLCX | G9: 2000-05-17 | H9: 14870
A10: SMLL - Índice Small Cap | B10: SMLL | G10: 2000-05-18 | H10: 14626
G11: 2000-05-19 | H11: 14326
G12: 2000-05-22 | H12: 13891
G13: 2000-05-23 | H13: 13587
G14: 2000-05-24 | H14: 14166
G15: 2000-05-25 | H15: 14185
G16: 2000-05-26 | H16: 14542
G17: 2000-05-29 | H17: 14772
G18: 2000-05-30 | H18: 15248
G19: 2000-05-31 | H19: 14956
G20: 2000-06-01 | H20: 15450
G21: 2000-06-02 | H21: 16222
G22: 2000-06-05 | H22: 16022
G23: 2000-06-06 | H23: 15946
G24: 2000-06-07 | H24: 16271
G25: 2000-06-08 | H25: 16398
G26: 2000-06-09 | H26: 16342
G27: 2000-06-12 | H27: 16096
G28: 2000-06-13 | H28: 16354
G29: 2000-06-14 | H29: 16366
G30: 2000-06-15 | H30: 16561
G31: 2000-06-16 | H31: 16424
G32: 2000-06-19 | H32: 16850
G33: 2000-06-20 | H33: 16843
G34: 2000-06-21 | H34: 17254
G35: 2000-06-22
G36: 2000-06-23 | H36: 16977
G37: 2000-06-26 | H37: 16744
G38: 2000-06-27 | H38: 16512
G39: 2000-06-28 | H39: 16842
G40: 2000-06-29 | H40: 16407
G41: 2000-06-30 | H41: 16727
G42: 2000-07-03 | H42: 17088
G43: 2000-07-04 | H43: 17279
G44: 2000-07-05 | H44: 17134
G45: 2000-07-06 | H45: 17348
G46: 2000-07-07 | H46: 17598
G47: 2000-07-10 | H47: 17471
G48: 2000-07-11 | H48: 16880
G49: 2000-07-12 | H49: 17053
G50: 2000-07-13 | H50: 16444
G51: 2000-07-14 | H51: 16880
G52: 2000-07-17 | H52: 17387
G53: 2000-07-18 | H53: 17368
G54: 2000-07-19 | H54: 16927
G55: 2000-07-20 | H55: 17203
G56: 2000-07-21 | H56: 17318
G57: 2000-07-24 | H57: 17385
G58: 2000-07-25 | H58: 17049
G59: 2000-07-26 | H59: 17121
G60: 2000-07-27 | H60: 16948
G61: 2000-07-28 | H61: 16485
G62: 2000-07-31 | H62: 16454
G63: 2000-08-01 | H63: 16289
G64: 2000-08-02 | H64: 16314
G65: 2000-08-03 | H65: 16720
G66: 2000-08-04 | H66: 16761
G67: 2000-08-07 | H67: 16995
G68: 2000-08-08 | H68: 16884
G69: 2000-08-09 | H69: 16533
G70: 2000-08-10 | H70: 16834
G71: 2000-08-11 | H71: 17395
G72: 2000-08-14 | H72: 17810
G73: 2000-08-15 | H73: 17744
G74: 2000-08-16 | H74: 17330
G75: 2000-08-17 | H75: 17702
G76: 2000-08-18 | H76: 17313
G77: 2000-08-21 | H77: 17083
G78: 2000-08-22 | H78: 17224
G79: 2000-08-23 | H79: 17450
G80: 2000-08-24 | H80: 17310
G81: 2000-08-25 | H81: 17642
G82: 2000-08-28 | H82: 17460
G83: 2000-08-29 | H83: 17354
G84: 2000-08-30 | H84: 17414
G85: 2000-08-31 | H85: 17346
G86: 2000-09-01 | H86: 17577
G87: 2000-09-04 | H87: 17613
G88: 2000-09-05 | H88: 17424
G89: 2000-09-06 | H89: 17589
G90: 2000-09-07
G91: 2000-09-08 | H91: 17433
G92: 2000-09-11 | H92: 17287
G93: 2000-09-12 | H93: 16882
G94: 2000-09-13 | H94: 16998
G95: 2000-09-14 | H95: 16768
G96: 2000-09-15 | H96: 16563
G97: 2000-09-18 | H97: 15913
G98: 2000-09-19 | H98: 16188
G99: 2000-09-20 | H99: 16077
G100: 2000-09-21 | H100: 16146
G101: 2000-09-22 | H101: 16353
G102: 2000-09-25 | H102: 16318
G103: 2000-09-26 | H103: 16254
G104: 2000-09-27 | H104: 15848
G105: 2000-09-28 | H105: 16013
G106: 2000-09-29 | H106: 15928
G107: 2000-10-02 | H107: 15559
G108: 2000-10-03 | H108: 15633
G109: 2000-10-04 | H109: 15876
G110: 2000-10-05 | H110: 16362
G111: 2000-10-06 | H111: 15945
G112: 2000-10-09 | H112: 15855
G113: 2000-10-10 | H113: 15747
G114: 2000-10-11 | H114: 15526
G115: 2000-10-12
G116: 2000-10-13 | H116: 15385
G117: 2000-10-16 | H117: 15241
G118: 2000-10-17 | H118: 14870
G119: 2000-10-18 | H119: 14420
G120: 2000-10-19 | H120: 14845
G121: 2000-10-20 | H121: 14529
G122: 2000-10-23 | H122: 13989
G123: 2000-10-24 | H123: 13799
G124: 2000-10-25 | H124: 13665
G125: 2000-10-26 | H125: 14223
G126: 2000-10-27 | H126: 14691
G127: 2000-10-30 | H127: 14891
G128: 2000-10-31 | H128: 14867
G129: 2000-11-01 | H129: 14791
G130: 2000-11-02
G131: 2000-11-03 | H131: 14533
G132: 2000-11-06 | H132: 14800
G133: 2000-11-07 | H133: 14968
G134: 2000-11-08 | H134: 14656
G135: 2000-11-09 | H135: 14524
G136: 2000-11-10 | H136: 14625
G137: 2000-11-13 | H137: 14371
G138: 2000-11-14 | H138: 14540
G139: 2000-11-15
G140: 2000-11-16 | H140: 14489
G141: 2000-11-17 | H141: 14323
G142: 2000-11-20 | H142: 14499
G143: 2000-11-21 | H143: 14783
G144: 2000-11-22 | H144: 14576
G145: 2000-11-23 | H145: 14314
G146: 2000-11-24 | H146: 14335
G147: 2000-11-27 | H147: 14008
G148: 2000-11-28 | H148: 13913
G149: 2000-11-29 | H149: 13787
G150: 2000-11-30 | H150: 13287
G151: 2000-12-01 | H151: 13437
G152: 2000-12-04 | H152: 13510
G153: 2000-12-05 | H153: 14181
G154: 2000-12-06 | H154: 13945
G155: 2000-12-07 | H155: 14459
G156: 2000-12-08 | H156: 14982
G157: 2000-12-11 | H157: 15187
G158: 2000-12-12 | H158: 14906
G159: 2000-12-13 | H159: 15290
G160: 2000-12-14 | H160: 15259
G161: 2000-12-15 | H161: 14987
G162: 2000-12-18 | H162: 15082
G163: 2000-12-19 | H163: 15336
G164: 2000-12-20 | H164: 14622
G165: 2000-12-21 | H165: 14505
G166: 2000-12-22 | H166: 14652
G167: 2000-12-25
G168: 2000-12-26 | H168: 14794
G169: 2000-12-27 | H169: 15186
G170: 2000-12-28 | H170: 15259
G171: 2000-12-29
G172: 2001-01-01
G173: 2001-01-02 | H173: 15425
G174: 2001-01-03 | H174: 16599
G175: 2001-01-04 | H175: 16675
G176: 2001-01-05 | H176: 16409
G177: 2001-01-08 | H177: 16562
G178: 2001-01-09 | H178: 16975
G179: 2001-01-10 | H179: 16918
G180: 2001-01-11 | H180: 17023
G181: 2001-01-12 | H181: 16850
G182: 2001-01-15 | H182: 16962
G183: 2001-01-16 | H183: 16720
G184: 2001-01-17 | H184: 17191
G185: 2001-01-18 | H185: 17521
G186: 2001-01-19 | H186: 17530
G187: 2001-01-22 | H187: 17391
G188: 2001-01-23 | H188: 17832
G189: 2001-01-24 | H189: 17771
G190: 2001-01-25
G191: 2001-01-26 | H191: 17889
G192: 2001-01-29 | H192: 17883
G193: 2001-01-30 | H193: 17722
G194: 2001-01-31 | H194: 17672
G195: 2001-02-01 | H195: 17038
G196: 2001-02-02 | H196: 16914
G197: 2001-02-05 | H197: 16731
G198: 2001-02-06 | H198: 17006
G199: 2001-02-07 | H199: 16812
G200: 2001-02-08 | H200: 17243
... 5021 more rows

Sheet Stock Guide - Prices
A2: REFERENCE | C2: =_xll.ECONOMATICA($C$3,"Date of Last Quote") -> 2020-05-08
A3: BENCHMARK | C3: S&P 500
A4: UNIT: | C4: Millions | D4: =IF(C4="Units","Units",IF(C4="Thousands","Thousands",IF(C4="Millions","Millions",IF(C4="Billions","billions","")))) -> Millions | E4: Prices | M4: RETURNS | AL4: STATISTICS
C5: =IF(C3="COLCAP<XBOG>","COL","USA") -> USA
M6: =$C$3 -> S&P 500 | N6: =_xll.ECONOMATICA($M$6,"RETURN","1D",$C$2,,,,"DECIMAL") -> 0.01687150101 | P6: =_xll.ECONOMATICA($M$6,"RETURN","IN THE MONTH",$C$2,,,,"DECIMAL") -> 0.005964091841 | R6: =_xll.ECONOMATICA($M$6,"RETURN","IN THE YEAR",$C$2,,,,"DECIMAL") -> -0.09316016566 | T6: =_xll.ECONOMATICA($M$6,"RETURN",T8,$C$2,,,,"DECIMAL") -> 0.06538956647 | V6: =_xll.ECONOMATICA($M$6,"RETURN",V8,$C$2,,,,"DECIMAL") -> -0.1195747226 | X6: =_xll.ECONOMATICA($M$6,"RETURN",X8,$C$2,,,,"DECIMAL") -> -0.05278880598 | Z6: =_xll.ECONOMATICA($M$6,"RETURN",Z8,$C$2,,,,"DECIMAL") -> 0.01749657917 | AB6: =_xll.ECONOMATICA($M$6,"RETURN",AB8,$C$2,,,,"DECIMAL") -> 0.09651486571 | AD6: =_xll.ECONOMATICA($M$6,"RETURN",AD8,$C$2,,,,"DECIMAL") -> 0.2210654419 | AF6: =_xll.ECONOMATICA($M$6,"RETURN",AF8,$C$2,,,,"DECIMAL") -> 0.4242103114 | AH6: =_xll.ECONOMATICA($M$6,"RETURN",AH8,$C$2,,,,"DECIMAL") -> 0.3845281414 | AJ6: =_xll.ECONOMATICA($M$6,"VOLATILITY",AJ8,$C$2,,,,"DECIMAL") -> 0.3256967323
E8: 12m | N8: Current | P8: =$C$2 -> 2020-05-08 | R8: =$C$2 -> 2020-05-08 | T8: 1M | V8: 3M | X8: 6M | Z8: 12m | AB8: 24M | AD8: 36M | AF8: 48M | AH8: 60M | AJ8: 12M | AL8: 12M
B9: =_xll.ECOSECURITIES("STOCK",,,C5,,,,"Index particip.>0") -> Codigo | C9: =_xll.ECONOMATICA($B$10:$B$509,"name") -> Nombre | D9: =_xll.ECONOMATICA($B$10:$B$509,"Sector NAICS",,,,,,,,,"Sector NAICS") -> Sector NAICS | E9: =_xll.ECONOMATICA($B$10:$B$509,"Close",,$C$2,,,,,,,"Close") -> Close | F9: =_xll.ECONOMATICA($B$10:$B$509,"Max of the Serie",$E$8,$C$2,,,,,,,"Maximum",) -> Maximum | G9: % of Max | H9: =_xll.ECONOMATICA($B$10:$B$509,"Max of the Serie",$E$8,$C$2,,,,,,,"Date of Maximum",{"std.tec.cals=0";"std.tec.dtovlr=true"}) -> Date of Maximum | I9: =_xll.ECONOMATICA($B$10:$B$509,"Volume$","1d",$C$2,,,,$D$4,,,"Volume") -> Volume | J9: =_xll.ECONOMATICA($B$10:$B$509,"Hist Average",$E$8,$C$2,,,,$D$4,,,"Average Volume",{"std.tec.cals=7"}) -> Average Volume | K9: % of Average | N9: =_xll.ECONOMATICA($B$10:$B$509,"RETURN","1D",$C$2,,,,"DECIMAL",,,"%") -> % | O9: Δ BMK | P9: =_xll.ECONOMATICA($B$10:$B$509,"RETURN","IN THE MONTH",$C$2,,,,"DECIMAL",,,"%") -> % | Q9: Δ BMK | R9: =_xll.ECONOMATICA($B$10:$B$509,"RETURN","IN THE YEAR",$C$2,,,,"DECIMAL",,,"%") -> % | S9: Δ BMK | T9: =_xll.ECONOMATICA($B$10:$B$509,"RETURN",T8,$C$2,,,,"DECIMAL",,,"%") -> % | U9: Δ BMK | V9: =_xll.ECONOMATICA($B$10:$B$509,"RETURN",V8,$C$2,,,,"DECIMAL",,,"%") -> % | W9: Δ BMK | X9: =_xll.ECONOMATICA($B$10:$B$509,"RETURN",X8,$C$2,,,,"DECIMAL",,,"%") -> % | Y9: Δ BMK | Z9: =_xll.ECONOMATICA($B$10:$B$509,"RETURN",Z8,$C$2,,,,"DECIMAL",,,"%") -> % | AA9: Δ BMK | AB9: =_xll.ECONOMATICA($B$10:$B$509,"RETURN",AB8,$C$2,,,,"DECIMAL",,,"%") -> % | AC9: Δ BMK | AD9: =_xll.ECONOMATICA($B$10:$B$509,"RETURN",AD8,$C$2,,,,"DECIMAL",,,"%") -> % | AE9: Δ BMK | AF9: =_xll.ECONOMATICA($B$10:$B$509,"RETURN",AF8,$C$2,,,,"DECIMAL",,,"%") -> % | AG9: Δ BMK | AH9: =_xll.ECONOMATICA($B$10:$B$509,"RETURN",AH8,$C$2,,,,"DECIMAL",,,"%") -> % | AI9: Δ BMK | AJ9: =_xll.ECONOMATICA($B$10:$B$509,"volatility",$AJ$8,$C$2,,,,,,,"Volatility") -> Volatility | AL9: =_xll.ECONOMATICA($B$10:$B$509,"Return M",$AL$8,$C$2,,,,"decimal",,,"Highest Daily Return",{"jtc.per=0";"std.tec.dret.per=0"}) -> Highest Daily Return | AM9: =_xll.ECONOMATICA($B$10:$B$509,"Return M",$AL$8,$C$2,,,,"decimal",,,"Lowest Daily Return",{"jtc.per=0";"std.tec.dret.per=0";"std.tec.dret.mom=true"}) -> Lowest Daily Return | AN9: =_xll.ECONOMATICA($B$10:$B$509,"Return M",$AL$8,$C$2,,,,"decimal",,,"Highest Monthly Return",) -> Highest Monthly Return | AO9: =_xll.ECONOMATICA($B$10:$B$509,"Return M",$AL$8,$C$2,,,,"decimal",,,"Lowest Monthly Return",{"std.tec.dret.mom=true"}) -> Lowest Monthly Return | AP9: =_xll.ECONOMATICA($B$10:$B$509,"Number Return",$AL$8,$C$2,,,,,,,"Months Up",{"std.tec.dret.noprc=true"}) -> Months Up | AQ9: =_xll.ECONOMATICA($B$10:$B$509,"Number Return",$AL$8,$C$2,,,,,,,"Months Down",{"std.tec.dret.cmp=-1";"std.tec.dret.noprc=true"}) -> Months Down | AR9: =_xll.ECONOMATICA($B$10:$B$509,"Sharpe",$AL$8,$C$2,,,,,,,"Sharpe") -> Sharpe | AS9: =_xll.ECONOMATICA($B$10:$B$509,"VAR %",$AL$8,$C$2,,,,"decimal",,,"VaR 95%") -> VaR 95% | AT9: =_xll.ECONOMATICA($B$10:$B$509,"MaxLoss",$AL$8,$C$2,,,,"decimal",,,"Max Loss") -> Max Loss | AU9: =_xll.ECONOMATICA($B$10:$B$509,"MaxLoss",$AL$8,$C$2,,,,,,,"Peak",{"std.tec.tpmdd=2"}) -> Peak | AV9: =_xll.ECONOMATICA($B$10:$B$509,"MaxLoss",$AL$8,$C$2,,,,,,,"Bottom",{"std.tec.tpmdd=3"}) -> Bottom | AW9: =_xll.ECONOMATICA($B$10:$B$509,"MaxLoss",$AL$8,$C$2,,,,,,,"Days to recover",{"std.tec.tpmdd=1"}) -> Days to recover
B10: MMM<XNYS> | C10: 3M Company | D10: Fabricación de equipo no electrónico y material desechable de uso médico, dental y para laboratorio, y artículos oftálmicos | E10: 148.51 | F10: 179.7423205 | G10: =IFERROR(E10/F10,"") -> 0.8262383593 | H10: 2020-01-14 | I10: 320.1706299 | J10: 534.1902096 | K10: =IFERROR(I10/J10,"") -> 0.5993569783 | N10: 0.01900644984 | O10: =IF(N10="","",N10-N$6) -> 0.002134948831 | P10: -0.02244602422 | Q10: =IF(P10="","",P10-P$6) -> -0.02841011606 | R10: -0.150579009 | S10: =IF(R10="","",R10-R$6) -> -0.05741884336 | T10: -0.003221692731 | U10: =IF(T10="","",T10-T$6) -> -0.0686112592 | V10: -0.0638752422 | W10: =IF(V10="","",V10-V$6) -> 0.05569948036 | X10: -0.1270446559 | Y10: =IF(X10="","",X10-X$6) -> -0.07425584996 | Z10: -0.1385831366 | AA10: =IF(Z10="","",Z10-Z$6) -> -0.1560797158 | AB10: -0.2164116918 | AC10: =IF(AB10="","",AB10-AB$6) -> -0.3129265576 | AD10: -0.1860324958 | AE10: =IF(AD10="","",AD10-AD$6) -> -0.4070979377 | AF10: -0.01764984444 | AG10: =IF(AF10="","",AF10-AF$6) -> -0.4418601558 | AH10: 0.06131645486 | AI10: =IF(AH10="","",AH10-AH$6) -> -0.3232116865 | AJ10: 35.28017606 | AL10: 0.125986256 | AM10: -0.0927737028 | AN10: 0.1128855029 | AO10: -0.1006688584 | AP10: 7 | AQ10: 5 | AR10: -0.2716252606 | AS10: 0.03641834266 | AT10: -0.3442278943 | AU10: 2020-01-14 | AV10: 2020-03-23
B11: ABT<XNYS> | C11: Abbott Laboratories | D11: Fabricación de productos farmacéuticos | E11: 93.7 | F11: 98 | G11: 0.956122449 | H11: 2020-04-20 | I11: 574.7144783 | J11: 506.286378 | K11: 1.135156906 | N11: -0.003085434621 | O11: =IF(N11="","",N11-N$6) -> -0.01995693563 | P11: 0.01748289716 | Q11: 0.01151880532 | R11: 0.08789107838 | S11: =IF(R11="","",R11-R$6) -> 0.181051244 | T11: 0.107646527 | U11: =IF(T11="","",T11-T$6) -> 0.04225696048 | V11: 0.07083842568 | W11: =IF(V11="","",V11-V$6) -> 0.1904131482 | X11: 0.1284239201 | Y11: =IF(X11="","",X11-X$6) -> 0.1812127261 | Z11: 0.2493877787 | AA11: =IF(Z11="","",Z11-Z$6) -> 0.2318911996 | AB11: 0.6503150612 | AC11: =IF(AB11="","",AB11-AB$6) -> 0.5538001955 | AD11: 1.212275328 | AE11: =IF(AD11="","",AD11-AD$6) -> 0.9912098864 | AF11: 1.66916426 | AG11: =IF(AF11="","",AF11-AF$6) -> 1.244953949 | AH11: 1.180053044 | AI11: =IF(AH11="","",AH11-AH$6) -> 0.7955249022 | AJ11: 35.64666668 | AL11: 0.1093600764 | AM11: -0.09785670545 | AN11: 0.1719400928 | AO11: -0.1160201974 | AP11: 9 | AQ11: 3 | AR11: 0.8602272429 | AS11: 0.03690733176 | AT11: -0.3161332462 | AU11: 2020-01-22 | AV11: 2020-03-23 | AW11: 59
B12: ABBV<XNYS> | C12: Abbvie Inc | D12: Fabricación de productos farmacéuticos | E12: 83.96 | F12: 96.3529863 | G12: 0.8713793233 | H12: 2020-02-12 | I12: 1566.792505 | J12: 742.884879 | K12: 2.10906501 | N12: -0.003087152695 | O12: -0.01995865371 | P12: 0.02141119221 | Q12: 0.01544710037 | R12: -0.02458282879 | S12: =IF(R12="","",R12-R$6) -> 0.06857733686 | T12: 0.08467647689 | U12: =IF(T12="","",T12-T$6) -> 0.01928691042 | V12: -0.07669103885 | W12: =IF(V12="","",V12-V$6) -> 0.0428836837 | X12: 0.01353639642 | Y12: =IF(X12="","",X12-X$6) -> 0.0663252024 | Z12: 0.1406447945 | AA12: =IF(Z12="","",Z12-Z$6) -> 0.1231482153 | AB12: -0.06275803929 | AC12: =IF(AB12="","",AB12-AB$6) -> -0.159272905 | AD12: 0.4547876279 | AE12: =IF(AD12="","",AD12-AD$6) -> 0.233722186 | AF12: 0.6003497191 | AG12: =IF(AF12="","",AF12-AF$6) -> 0.1761394077 | AH12: 0.5905311698 | AI12: =IF(AH12="","",AH12-AH$6) -> 0.2060030284 | AJ12: 37.41902744 | AL12: 0.08717420115 | AM12: -0.1625239006 | AN12: 0.1518101612 | AO12: -0.1110722203 | AP12: 7 | AQ12: 5 | AR12: 0.5322813932 | AS12: 0.03774744494 | AT12: -0.3404233562 | AU12: 2020-02-12 | AV12: 2020-03-23
B13: ABMD<XNAS> | C13: Abiomed, Inc | D13: Fabricación de equipo no electrónico y material desechable de uso médico, dental y para laboratorio, y artículos oftálmicos | E13: 187.07 | F13: 279.23 | G13: 0.669949504 | H13: 2019-07-30 | I13: 72.91951186 | J13: 137.3392505 | K13: 0.530944443 | N13: -0.006690383901 | O13: -0.02356188491 | P13: -0.02185620915 | Q13: -0.02782030099 | R13: 0.09660589718 | S13: =IF(R13="","",R13-R$6) -> 0.1897660628 | T13: 0.1970947719 | U13: =IF(T13="","",T13-T$6) -> 0.1317052054 | V13: 0.0008560269653 | W13: =IF(V13="","",V13-V$6) -> 0.1204307495 | X13: -0.1482105455 | Y13: =IF(X13="","",X13-X$6) -> -0.09542173951 | Z13: -0.281246398 | AA13: =IF(Z13="","",Z13-Z$6) -> -0.2987429771 | AB13: -0.4614831021 | AC13: =IF(AB13="","",AB13-AB$6) -> -0.5579979678 | AD13: 0.430417495 | AE13: =IF(AD13="","",AD13-AD$6) -> 0.2093520531 | AF13: 0.9704023594 | AG13: =IF(AF13="","",AF13-AF$6) -> 0.546192048 | AH13: 1.776755232 | AI13: =IF(AH13="","",AH13-AH$6) -> 1.392227091 | AJ13: 58.61540951 | AL13: 0.141992628 | AM13: -0.264539058 | AN13: 0.3175117112 | AO13: -0.3068997702 | AP13: 4 | AQ13: 8 | AR13: -0.3581166934 | AS13: 0.05763763903 | AT13: -0.5326075278 | AU13: 2019-07-30 | AV13: 2020-03-20
B14: ATVI<XNAS> | C14: Activision Blizzard, Inc | D14: Edición de software | E14: 73.14 | F14: 73.14 | G14: 1 | H14: 2020-05-08 | I14: 444.1419186 | J14: 394.9146407 | K14: 1.124652958 | N14: 0.0005471956229 | O14: -0.01632430539 | P14: 0.147654166 | Q14: 0.1416900742 | R14: 0.238994107 | S14: =IF(R14="","",R14-R$6) -> 0.3321542726 | T14: 0.2055187463 | U14: =IF(T14="","",T14-T$6) -> 0.1401291798 | V14: 0.1965062545 | W14: =IF(V14="","",V14-V$6) -> 0.316080977 | X14: 0.3558200707 | Y14: =IF(X14="","",X14-X$6) -> 0.4086088766 | Z14: 0.5724269508 | AA14: =IF(Z14="","",Z14-Z$6) -> 0.5549303716 | AB14: 0.06611733373 | AC14: =IF(AB14="","",AB14-AB$6) -> -0.03039753198 | AD14: 0.3816451916 | AE14: =IF(AD14="","",AD14-AD$6) -> 0.1605797496 | AF14: 0.9818254059 | AG14: =IF(AF14="","",AF14-AF$6) -> 0.5576150945 | AH14: 2.021061198 | AI14: =IF(AH14="","",AH14-AH$6) -> 1.636533057 | AJ14: 39.10627009 | AL14: 0.09173444297 | AM14: -0.1063685637 | AN14: 0.147654166 | AO14: -0.02141709798 | AP14: 9 | AQ14: 3 | AR14: 1.851414925 | AS14: 0.04040369925 | AT14: -0.1913935063 | AU14: 2020-02-19 | AV14: 2020-03-20 | AW14: 39
B15: ADBE<XNAS> | C15: Adobe Inc | D15: Edición de software | E15: 367.51 | F15: 383.28 | G15: 0.9588551451 | H15: 2020-02-19 | I15: 935.7840978 | J15: 877.0596231 | K15: 1.066956081 | N15: 0.001990293909 | O15: -0.0148812071 | P15: 0.03922067639 | Q15: 0.03325658455 | R15: 0.1143082381 | S15: =IF(R15="","",R15-R$6) -> 0.2074684037 | T15: 0.1586796141 | U15: =IF(T15="","",T15-T$6) -> 0.09329004763 | V15: 0.003878827611 | W15: =IF(V15="","",V15-V$6) -> 0.1234535502 | X15: 0.2566162894 | Y15: =IF(X15="","",X15-X$6) -> 0.3094050954 | Z15: 0.3278534523 | AA15: =IF(Z15="","",Z15-Z$6) -> 0.3103568732 | AB15: 0.5668059345 | AC15: =IF(AB15="","",AB15-AB$6) -> 0.4702910688 | AD15: 1.719878626 | AE15: =IF(AD15="","",AD15-AD$6) -> 1.498813184 | AF15: 2.897242842 | AG15: =IF(AF15="","",AF15-AF$6) -> 2.473032531 | AH15: 3.816013629 | AI15: =IF(AH15="","",AH15-AH$6) -> 3.431485487 | AJ15: 43.38750975 | AL15: 0.1771929825 | AM15: -0.1474515648 | AN15: 0.1136976937 | AO15: -0.07788595271 | AP15: 8 | AQ15: 4 | AR15: 1.035499263 | AS15: 0.04490649979 | AT15: -0.2564182843 | AU15: 2020-02-19 | AV15: 2020-03-12
B16: AAP<XNYS> | C16: Advance Auto Parts, Inc | D16: Tienda de repuestos, accesorios y llantas | E16: 124.85 | F16: 169.1576687 | G16: 0.7380688146 | H16: 2019-11-06 | I16: 113.8025229 | J16: 157.0476808 | K16: 0.7246367619 | N16: 0.04380904607 | O16: 0.02693754506 | P16: 0.03258622116 | Q16: 0.02662212932 | R16: -0.2182647136 | S16: =IF(R16="","",R16-R$6) -> -0.1251045479 | T16: 0.2178111588 | U16: =IF(T16="","",T16-T$6) -> 0.1524215923 | V16: -0.05813041848 | W16: =IF(V16="","",V16-V$6) -> 0.06144430408 | X16: -0.251790455 | Y16: =IF(X16="","",X16-X$6) -> -0.199001649 | Z16: -0.209758717 | AA16: =IF(Z16="","",Z16-Z$6) -> -0.2272552961 | AB16: 0.07483422778 | AC16: =IF(AB16="","",AB16-AB$6) -> -0.02168063793 | AD16: -0.1438848041 | AE16: =IF(AD16="","",AD16-AD$6) -> -0.364950246 | AF16: -0.162785311 | AG16: =IF(AF16="","",AF16-AF$6) -> -0.5869956224 | AH16: -0.1281691834 | AI16: =IF(AH16="","",AH16-AH$6) -> -0.5126973248 | AJ16: 46.61533437 | AL16: 0.1318369758 | AM16: -0.1621954437 | AN16: 0.2956493785 | AO16: -0.2962577409 | AP16: 5 | AQ16: 7 | AR16: -0.294271863 | AS16: 0.0472305841 | AT16: -0.5564493139 | AU16: 2019-11-06 | AV16: 2020-03-20
B17: AMD<XNAS> | C17: Advanced Micro Devices, Inc | D17: Fabricación de componentes electrónicos | E17: 53.19 | F17: 58.9 | G17: 0.9030560272 | H17: 2020-02-19 | I17: 2148.675846 | J17: 2526.957264 | K17: 0.8503016162 | N17: 0.02386910491 | O17: 0.006997603898 | P17: 0.01527008971 | Q17: 0.009305997872 | R17: 0.1598342782 | S17: =IF(R17="","",R17-R$6) -> 0.2529944439 | T17: 0.09018241443 | U17: =IF(T17="","",T17-T$6) -> 0.02479284796 | V17: 0.06957570883 | W17: =IF(V17="","",V17-V$6) -> 0.1891504314 | X17: 0.4656930284 | Y17: =IF(X17="","",X17-X$6) -> 0.5184818344 | Z17: 0.9634551495 | AA17: =IF(Z17="","",Z17-Z$6) -> 0.9459585703 | AB17: 3.581395349 | AC17: =IF(AB17="","",AB17-AB$6) -> 3.484880483 | AD17: 4.297808765 | AE17: =IF(AD17="","",AD17-AD$6) -> 4.076743323 | AF17: 13.45380435 | AG17: =IF(AF17="","",AF17-AF$6) -> 13.02959404 | AH17: 22.02597403 | AI17: =IF(AH17="","",AH17-AH$6) -> 21.64144588 | AJ17: 57.75498828 | AL17: 0.1620417951 | AM17: -0.1463894967 | AN17: 0.1713920817 | AO17: -0.07821939587 | AP17: 9 | AQ17: 2 | AR17: 2.121728521 | AS17: 0.05973649031 | AT17: -0.3427843803 | AU17: 2020-02-19 | AV17: 2020-03-16
B18: AES<XNYS> | C18: AES Corp | D18: Generación, transmisión y suministro de energía eléctrica | E18: 12.87 | F18: 20.81955314 | G18: 0.6181688873 | H18: 2020-02-18 | I18: 96.5515122 | J18: 86.72505559 | K18: 1.113305855 | N18: 0.06188118812 | O18: 0.04500968711 | P18: -0.02867924528 | Q18: -0.03464333712 | R18: -0.3420893657 | S18: =IF(R18="","",R18-R$6) -> -0.2489292001 | T18: -0.07996520172 | U18: =IF(T18="","",T18-T$6) -> -0.1453547682 | V18: -0.3658491854 | W18: =IF(V18="","",V18-V$6) -> -0.2462744628 | X18: -0.2577992278 | Y18: =IF(X18="","",X18-X$6) -> -0.2050104218 | Z18: -0.1675235087 | AA18: =IF(Z18="","",Z18-Z$6) -> -0.1850200879 | AB18: 0.1743556953 | AC18: =IF(AB18="","",AB18-AB$6) -> 0.0778408296 | AD18: 0.2726313078 | AE18: =IF(AD18="","",AD18-AD$6) -> 0.05156586589 | AF18: 0.3512527381 | AG18: =IF(AF18="","",AF18-AF$6) -> -0.07295757329 | AH18: 0.1392324159 | AI18: =IF(AH18="","",AH18-AH$6) -> -0.2452957255 | AJ18: 52.22005927 | AL18: 0.14958159 | AM18: -0.1730103806 | AN18: 0.1090909091 | AO18: -0.1870890616 | AP18: 7 | AQ18: 5 | AR18: -0.1503819642 | AS18: 0.05274635114 | AT18: -0.5454113172 | AU18: 2020-02-18 | AV18: 2020-03-18
B19: AFL<XNYS> | C19: Aflac Inc | D19: Instituciones de seguros | E19: 36.26 | F19: 56.01886297 | G19: 0.6472819703 | H19: 2019-07-12 | I19: 92.8223366 | J19: 164.1966768 | K19: 0.5653119077 | N19: 0.01087259548 | O19: -0.005998905528 | P19: -0.02631578947 | Q19: -0.03227988131 | R19: -0.3109021508 | S19: =IF(R19="","",R19-R$6) -> -0.2177419851 | T19: -0.03997881917 | U19: =IF(T19="","",T19-T$6) -> -0.1053683856 | V19: -0.311292722 | W19: =IF(V19="","",V19-V$6) -> -0.1917179995 | X19: -0.3233258503 | Y19: =IF(X19="","",X19-X$6) -> -0.2705370443 | Z19: -0.2632269609 | AA19: =IF(Z19="","",Z19-Z$6) -> -0.2807235401 | AB19: -0.1553260015 | AC19: =IF(AB19="","",AB19-AB$6) -> -0.2518408672 | AD19: 0.04173135757 | AE19: =IF(AD19="","",AD19-AD$6) -> -0.1793340843 | AF19: 0.1516369194 | AG19: =IF(AF19="","",AF19-AF$6) -> -0.272573392 | AH19: 0.2669952162 | AI19: =IF(AH19="","",AH19-AH$6) -> -0.1175329252 | AJ19: 51.6044551 | AL19: 0.2617657162 | AM19: -0.164312482 | AN19: 0.08761682243 | AO19: -0.2009334889 | AP19: 5 | AQ19: 7 | AR19: -0.3287062665 | AS19: 0.05357544704 | AT19: -0.5489019473 | AU19: 2019-07-12 | AV19: 2020-03-18
B20: A<XNYS> | C20: Agilent Technologies, Inc | D20: Fabricación de instrumentos de medición, control, navegación, y equipo médico electrónico | E20: 79.71 | F20: 89.90121139 | G20: 0.886639888 | H20: 2020-01-22 | I20: 154.1157778 | J20: 169.363665 | K20: 0.9099695487 | N20: 0.01541401274 | O20: -0.001457488273 | P20: 0.03978606835 | Q20: 0.03382197651 | R20: -0.06326511425 | S20: =IF(R20="","",R20-R$6) -> 0.02989505141 | T20: 0.03937931934 | U20: =IF(T20="","",T20-T$6) -> -0.02601024713 | V20: -0.0391625213 | W20: =IF(V20="","",V20-V$6) -> 0.08041220125 | X20: 0.0449061045 | Y20: =IF(X20="","",X20-X$6) -> 0.09769491048 | Z20: 0.04987013762 | AA20: =IF(Z20="","",Z20-Z$6) -> 0.03237355845 | AB20: 0.2047035131 | AC20: =IF(AB20="","",AB20-AB$6) -> 0.1081886474 | AD20: 0.4536936393 | AE20: =IF(AD20="","",AD20-AD$6) -> 0.2326281974 | AF20: 0.9969769923 | AG20: =IF(AF20="","",AF20-AF$6) -> 0.5727666808 | AH20: 0.9682701167 | AI20: =IF(AH20="","",AH20-AH$6) -> 0.5837419753 | AJ20: 37.82075035 | AL20: 0.09839388742 | AM20: -0.1101170899 | AN20: 0.1136465324 | AO20: -0.06839717607 | AP20: 7 | AQ20: 5 | AR20: 0.2885199924 | AS20: 0.03886207433 | AT20: -0.2969044713 | AU20: 2020-01-22 | AV20: 2020-03-23
B21: APD<XNYS> | C21: Air Products And Chemicals, Inc | D21: Fabricación de productos químicos básicos | E21: 233.48 | F21: 254.3489658 | G21: 0.9179514424 | H21: 2020-02-14 | I21: 188.0426907 | J21: 249.5666912 | K21: 0.7534767152 | N21: 0.02945326279 | O21: 0.01258176178 | P21: 0.03502083518 | Q21: 0.02905674334 | R21: 6.276339263e-05 | S21: =IF(R21="","",R21-R$6) -> 0.09322292905 | T21: 0.08212829069 | U21: =IF(T21="","",T21-T$6) -> 0.01673872422 | V21: -0.05968010255 | W21: =IF(V21="","",V21-V$6) -> 0.05989462 | X21: 0.00982975087 | Y21: =IF(X21="","",X21-X$6) -> 0.06261855685 | Z21: 0.1624049121 | AA21: =IF(Z21="","",Z21-Z$6) -> 0.1449083329 | AB21: 0.4989258025 | AC21: =IF(AB21="","",AB21-AB$6) -> 0.4024109368 | AD21: 0.7199206261 | AE21: =IF(AD21="","",AD21-AD$6) -> 0.4988551842 | AF21: 0.9409912654 | AG21: =IF(AF21="","",AF21-AF$6) -> 0.516780954 | AH21: 0.9429463773 | AI21: =IF(AH21="","",AH21-AH$6) -> 0.5584182359 | AJ21: 40.38983326 | AL21: 0.1372331577 | AM21: -0.1260418686 | AN21: 0.1301037022 | AO21: -0.08513474055 | AP21: 6 | AQ21: 6 | AR21: 0.6327895853 | AS21: 0.0416656676 | AT21: -0.3096754033 | AU21: 2020-02-14 | AV21: 2020-03-23
B22: AKAM<XNAS> | C22: Akamai Technologies, Inc | D22: Servicios de apoyo secretarial, fotocopiado, cobranza, investigación crediticia y similares | E22: 101.15 | F22: 106.24 | G22: 0.9520896084 | H22: 2020-04-20 | I22: 121.9681872 | J22: 140.9308317 | K22: 0.8654471541 | N22: 0.005467196819 | O22: -0.01140430419 | P22: 0.0352062225 | Q22: 0.02924213065 | R22: 0.1709886548 | S22: =IF(R22="","",R22-R$6) -> 0.2641488204 | T22: 0.03882099209 | U22: =IF(T22="","",T22-T$6) -> -0.02656857438 | V22: 0.05233042031 | W22: =IF(V22="","",V22-V$6) -> 0.1719051429 | X22: 0.1966165858 | Y22: =IF(X22="","",X22-X$6) -> 0.2494053918 | Z22: 0.3141483695 | AA22: =IF(Z22="","",Z22-Z$6) -> 0.2966517903 | AB22: 0.3728284473 | AC22: =IF(AB22="","",AB22-AB$6) -> 0.2763135816 | AD22: 1.016145107 | AE22: =IF(AD22="","",AD22-AD$6) -> 0.7950796647 | AF22: 1.025430517 | AG22: =IF(AF22="","",AF22-AF$6) -> 0.6012202052 | AH22: 0.3234332069 | AI22: =IF(AH22="","",AH22-AH$6) -> -0.06109493454 | AJ22: 34.84712149 | AL22: 0.09804365034 | AM22: -0.08828073273 | AN22: 0.09970052408 | AO22: -0.07327262989 | AP22: 9 | AQ22: 3 | AR22: 1.034187502 | AS22: 0.03592180187 | AT22: -0.2194812793 | AU22: 2020-02-19 | AV22: 2020-03-12 | AW22: 40
B23: ALK<XNYS> | C23: Alaska Air Group, Inc | D23: Transporte aéreo regular | E23: 30 | F23: 71.14890038 | G23: 0.4216509298 | H23: 2019-11-11 | I23: 82.12626 | J23: 74.92841488 | K23: 1.096062957 | N23: 0.06194690266 | O23: 0.04507540164 | P23: -0.07749077491 | Q23: -0.08345486675 | R23: -0.5546843937 | S23: =IF(R23="","",R23-R$6) -> -0.4615242281 | T23: 0.02951269732 | U23: =IF(T23="","",T23-T$6) -> -0.03587686915 | V23: -0.528296868 | W23: =IF(V23="","",V23-V$6) -> -0.4087221454 | X23: -0.5739648958 | Y23: =IF(X23="","",X23-X$6) -> -0.5211760898 | Z23: -0.4946479702 | AA23: =IF(Z23="","",Z23-Z$6) -> -0.5121445493 | AB23: -0.4920808064 | AC23: =IF(AB23="","",AB23-AB$6) -> -0.5885956721 | AD23: -0.6189171828 | AE23: =IF(AD23="","",AD23-AD$6) -> -0.8399826247 | AF23: -0.5282313006 | AG23: =IF(AF23="","",AF23-AF$6) -> -0.952441612 | AH23: -0.5064411542 | AI23: =IF(AH23="","",AH23-AH$6) -> -0.8909692956 | AJ23: 62.56014937 | AL23: 0.203079484 | AM23: -0.2323851203 | AN23: 0.1422550053 | AO23: -0.4357907253 | AP23: 4 | AQ23: 8 | AR23: -0.6691444929 | AS23: 0.06247597703 | AT23: -0.6688634698 | AU23: 2019-11-11 | AV23: 2020-03-20
B24: ALB<XNYS> | C24: Albemarle Corp | D24: Fabricación de resinas y hules sintéticos, y fibras químicas | E24: 64.25 | F24: 93.79181319 | G24: 0.6850278059 | H24: 2020-02-20 | I24: 96.0988535 | J24: 114.4293525 | K24: 0.8398094665 | N24: 0.07549380649 | O24: 0.05862230548 | P24: 0.04590590916 | Q24: 0.03994181732 | R24: -0.1154850441 | S24: =IF(R24="","",R24-R$6) -> -0.02232487849 | T24: 0.03930766742 | U24: =IF(T24="","",T24-T$6) -> -0.02608189905 | V24: -0.217288922 | W24: =IF(V24="","",V24-V$6) -> -0.09771419947 | X24: -0.0442991037 | Y24: =IF(X24="","",X24-X$6) -> 0.008489702275 | Z24: -0.09548890536 | AA24: =IF(Z24="","",Z24-Z$6) -> -0.1129854845 | AB24: -0.338354917 | AC24: =IF(AB24="","",AB24-AB$6) -> -0.4348697827 | AD24: -0.3849209797 | AE24: =IF(AD24="","",AD24-AD$6) -> -0.6059864216 | AF24: -0.004023966587 | AG24: =IF(AF24="","",AF24-AF$6) -> -0.428234278 | AH24: 0.1069276216 | AI24: =IF(AH24="","",AH24-AH$6) -> -0.2776005198 | AJ24: 55.46213157 | AL24: 0.1373812754 | AM24: -0.1370681304 | AN24: 0.1322031617 | AO24: -0.3074961947 | AP24: 9 | AQ24: 3 | AR24: 0.1133113342 | AS24: 0.05692325451 | AT24: -0.457308711 | AU24: 2020-02-20 | AV24: 2020-03-23
B25: ARE<XNYS> | C25: Alexandria Real Estate Equities, Inc | D25: Otros fondos | E25: 152 | F25: 173.6741423 | G25: 0.8752022492 | H25: 2020-02-14 | I25: 66.29784 | J25: 123.1225667 | K25: 0.5384702561 | N25: 0.003366558849 | O25: -0.01350494216 | P25: -0.03240180788 | Q25: -0.03836589972 | R25: -0.05248713048 | S25: =IF(R25="","",R25-R$6) -> 0.04067303518 | T25: 0.03092783505 | U25: =IF(T25="","",T25-T$6) -> -0.03446173142 | V25: -0.08624810828 | W25: =IF(V25="","",V25-V$6) -> 0.03332661428 | X25: 0.001160425889 | Y25: =IF(X25="","",X25-X$6) -> 0.05394923187 | Z25: 0.1175578878 | AA25: =IF(Z25="","",Z25-Z$6) -> 0.1000613086 | AB25: 0.2547740182 | AC25: =IF(AB25="","",AB25-AB$6) -> 0.1582591525 | AD25: 0.4446561448 | AE25: =IF(AD25="","",AD25-AD$6) -> 0.2235907029 | AF25: 0.7861004028 | AG25: =IF(AF25="","",AF25-AF$6) -> 0.3618900913 | AH25: 0.8887258269 | AI25: =IF(AH25="","",AH25-AH$6) -> 0.5041976855 | AJ25: 39.68071173 | AL25: 0.1269578837 | AM25: -0.1721267091 | AN25: 0.1461403765 | AO25: -0.09105151039 | AP25: 8 | AQ25: 4 | AR25: 0.4616796845 | AS25: 0.04045327116 | AT25: -0.3430515063 | AU25: 2020-02-14 | AV25: 2020-03-23
B26: ALXN<XNAS> | C26: Alexion Pharmaceuticals, Inc | D26: Fabricación de productos farmacéuticos | E26: 97.34 | F26: 134.08 | G26: 0.7259844869 | H26: 2019-07-02 | I26: 211.3614478 | J26: 222.4932252 | K26: 0.9499680163 | N26: 0.004333470903 | O26: -0.01253803011 | P26: -0.09425886294 | Q26: -0.1002229548 | R26: -0.09995376792 | S26: =IF(R26="","",R26-R$6) -> -0.006793602259 | T26: -0.01237824675 | U26: =IF(T26="","",T26-T$6) -> -0.07776781322 | V26: -0.03202068417 | W26: =IF(V26="","",V26-V$6) -> 0.08755403839 | X26: -0.1214008485 | Y26: =IF(X26="","",X26-X$6) -> -0.06861204247 | Z26: -0.2716797606 | AA26: =IF(Z26="","",Z26-Z$6) -> -0.2891763397 | AB26: -0.1531970422 | AC26: =IF(AB26="","",AB26-AB$6) -> -0.2497119079 | AD26: -0.2180269923 | AE26: =IF(AD26="","",AD26-AD$6) -> -0.4390924342 | AF26: -0.3095964253 | AG26: =IF(AF26="","",AF26-AF$6) -> -0.7338067367 | AH26: -0.4028953503 | AI26: =IF(AH26="","",AH26-AH$6) -> -0.7874234917 | AJ26: 42.1767742 | AL26: 0.08999470619 | AM26: -0.1017206027 | AN26: 0.1969038868 | AO26: -0.1350587876 | AP26: 4 | AQ26: 8 | AR26: -0.525615735 | AS26: 0.04338471738 | AT26: -0.4364558473 | AU26: 2019-07-02 | AV26: 2020-03-16
B27: ALGN<XNAS> | C27: Align Technology Inc | D27: Fabricación de equipo no electrónico y material desechable de uso médico, dental y para laboratorio, y artículos oftálmicos | E27: 210.03 | F27: 330.87 | G27: 0.6347810318 | H27: 2019-05-16 | I27: 177.3043856 | J27: 247.2123608 | K27: 0.7172148876 | N27: -0.0162529274 | O27: -0.03312442841 | P27: -0.02243425646 | Q27: -0.0283983483 | R27: -0.2473122133 | S27: =IF(R27="","",R27-R$6) -> -0.1541520476 | T27: 0.1389295591 | U27: =IF(T27="","",T27-T$6) -> 0.07353999267 | V27: -0.1880388139 | W27: =IF(V27="","",V27-V$6) -> -0.06846409138 | X27: -0.191943675 | Y27: =IF(X27="","",X27-X$6) -> -0.139154869 | Z27: -0.349490507 | AA27: =IF(Z27="","",Z27-Z$6) -> -0.3669870862 | AB27: -0.2088073533 | AC27: =IF(AB27="","",AB27-AB$6) -> -0.305322219 | AD27: 0.5330656934 | AE27: =IF(AD27="","",AD27-AD$6) -> 0.3120002515 | AF27: 1.811646586 | AG27: =IF(AF27="","",AF27-AF$6) -> 1.387436275 | AH27: 2.517501256 | AI27: =IF(AH27="","",AH27-AH$6) -> 2.132973115 | AJ27: 65.37402962 | AL27: 0.2001161778 | AM27: -0.2698793429 | AN27: 0.3944837497 | AO27: -0.2360979174 | AP27: 4 | AQ27: 8 | AR27: -0.3563166344 | AS27: 0.06552712032 | AT27: -0.5837640161 | AU27: 2019-05-16 | AV27: 2020-03-23
B28: AGN<XNYS> | C28: Allergan Plc | D28: Fabricación de productos farmacéuticos | E28: 193.02 | F28: 200.5620222 | G28: 0.9623955618 | H28: 2020-02-12 | I28: 1826.685883 | J28: 586.0199749 | K28: 3.117105153 | N28: 0.0001554484697 | O28: -0.01671605254 | P28: 0.03031920572 | Q28: 0.02435511388 | R28: 0.01741979932 | S28: =IF(R28="","",R28-R$6) -> 0.110579965 | T28: 0.07017876254 | U28: =IF(T28="","",T28-T$6) -> 0.004789196071 | V28: -0.01294015206 | W28: =IF(V28="","",V28-V$6) -> 0.1066345705 | X28: 0.07731708157 | Y28: =IF(X28="","",X28-X$6) -> 0.1301058876 | Z28: 0.408425963 | AA28: =IF(Z28="","",Z28-Z$6) -> 0.3909293838 | AB28: 0.3967618945 | AC28: =IF(AB28="","",AB28-AB$6) -> 0.3002470288 | AD28: -0.1577173761 | AE28: =IF(AD28="","",AD28-AD$6) -> -0.378782818 | AF28: 0.01348571796 | AG28: =IF(AF28="","",AF28-AF$6) -> -0.4107245934 | AH28: -0.3020647667 | AI28: =IF(AH28="","",AH28-AH$6) -> -0.686592908 | AJ28: 32.38118267 | AL28: 0.2536080883 | AM28: -0.1041610008 | AN28: 0.3733902059 | AO28: -0.07117008444 | AP28: 8 | AQ28: 4 | AR28: 1.354281483 | AS28: 0.03530928895 | AT28: -0.1820619785 | AU28: 2020-02-12 | AV28: 2020-03-16
B29: ADS<XNYS> | C29: Alliance Data Systems Corp | D29: Servicios de apoyo secretarial, fotocopiado, cobranza, investigación crediticia y similares | E29: 47.18 | F29: 156.1942179 | G29: 0.3020598369 | H29: 2019-07-26 | I29: 57.3126127 | J29: 101.6566517 | K29: 0.5637861538 | N29: 0.03692307692 | O29: 0.02005157591 | P29: -0.05771919313 | Q29: -0.06368328497 | R29: -0.576953637 | S29: =IF(R29="","",R29-R$6) -> -0.4837934714 | T29: 0.1589290101 | U29: =IF(T29="","",T29-T$6) -> 0.0935394436 | V29: -0.5518712054 | W29: =IF(V29="","",V29-V$6) -> -0.4322964829 | X29: -0.5575314839 | Y29: =IF(X29="","",X29-X$6) -> -0.504742678 | Z29: -0.6786769909 | AA29: =IF(Z29="","",Z29-Z$6) -> -0.69617357 | AB29: -0.7583247488 | AC29: =IF(AB29="","",AB29-AB$6) -> -0.8548396145 | AD29: -0.8088595263 | AE29: =IF(AD29="","",AD29-AD$6) -> -1.029924968 | AF29: -0.7575269684 | AG29: =IF(AF29="","",AF29-AF$6) -> -1.18173728 | AH29: -0.8370242261 | AI29: =IF(AH29="","",AH29-AH$6) -> -1.221552367 | AJ29: 84.85687677 | AL29: 0.3542875564 | AM29: -0.2706523935 | AN29: 0.4879643388 | AO29: -0.6081741966 | AP29: 6 | AQ29: 6 | AR29: -0.6521913273 | AS29: 0.08672975001 | AT29: -0.8552443215 | AU29: 2019-07-26 | AV29: 2020-03-18
B30: LNT<XNYS> | C30: Alliant Energy Corp | D30: Generación, transmisión y suministro de energía eléctrica | E30: 47.99 | F30: 59.71361402 | G30: 0.8036693272 | H30: 2020-02-18 | I30: 62.96283201 | J30: 74.05844622 | K30: 0.8501775993 | N30: 0.03784602076 | O30: 0.02097451975 | P30: -0.01153450052 | Q30: -0.01749859236 | R30: -0.1106399623 | S30: =IF(R30="","",R30-R$6) -> -0.01747979661 | T30: -0.05616308669 | U30: =IF(T30="","",T30-T$6) -> -0.1215526532 | V30: -0.1710480873 | W30: =IF(V30="","",V30-V$6) -> -0.05147336473 | X30: -0.05832466593 | Y30: =IF(X30="","",X30-X$6) -> -0.005535859947 | Z30: 0.06902683222 | AA30: =IF(Z30="","",Z30-Z$6) -> 0.05153025305 | AB30: 0.2205348669 | AC30: =IF(AB30="","",AB30-AB$6) -> 0.1240200012 | AD30: 0.3204303791 | AE30: =IF(AD30="","",AD30-AD$6) -> 0.09936493723 | AF30: 0.4974869711 | AG30: =IF(AF30="","",AF30-AF$6) -> 0.07327665965 | AH30: 0.8662785719 | AI30: =IF(AH30="","",AH30-AH$6) -> 0.4817504305 | AJ30: 35.65296423 | AL30: 0.1011354079 | AM30: -0.09615811681 | AN30: 0.09181784672 | AO30: -0.121967655 | AP30: 7 | AQ30: 5 | AR30: 0.3840762746 | AS30: 0.03683002726 | AT30: -0.3353278484 | AU30: 2020-02-18 | AV30: 2020-03-23
B31: ALL<XNYS> | C31: Allstate Corp | D31: Instituciones de seguros | E31: 100.79 | F31: 124.9531168 | G31: 0.8066225363 | H31: 2020-02-14 | I31: 220.8848126 | J31: 183.4710801 | K31: 1.203921689 | N31: -0.0005949429842 | O31: -0.017466444 | P31: -0.009142744789 | Q31: -0.01510683663 | R31: -0.09926552351 | S31: =IF(R31="","",R31-R$6) -> -0.006105357851 | T31: 0.03640102828 | U31: =IF(T31="","",T31-T$6) -> -0.02898853819 | V31: -0.1859873673 | W31: =IF(V31="","",V31-V$6) -> -0.06641264479 | X31: -0.05962395162 | Y31: =IF(X31="","",X31-X$6) -> -0.006835145639 | Z31: 0.07818339137 | AA31: =IF(Z31="","",Z31-Z$6) -> 0.06068681219 | AB31: 0.09545780908 | AC31: =IF(AB31="","",AB31-AB$6) -> -0.001057056637 | AD31: 0.2581235836 | AE31: =IF(AD31="","",AD31-AD$6) -> 0.03705814169 | AF31: 0.619787256 | AG31: =IF(AF31="","",AF31-AF$6) -> 0.1955769446 | AH31: 0.6477627495 | AI31: =IF(AH31="","",AH31-AH$6) -> 0.2632346081 | AJ31: 39.77967017 | AL31: 0.1070405728 | AM31: -0.1408915169 | AN31: 0.1089065736 | AO31: -0.128456057 | AP31: 7 | AQ31: 5 | AR31: 0.3364528456 | AS31: 0.04066813392 | AT31: -0.4139401892 | AU31: 2020-02-14 | AV31: 2020-03-23
B32: GOOG<XNAS> | C32: Alphabet Inc | D32: Servicios profesionales, científicos y técnicos | E32: 1388.37 | F32: 1526.69 | G32: 0.9093987646 | H32: 2020-02-19 | I32: 1924.555717 | J32: 2044.751308 | K32: 0.9412175017 | N32: 0.01151862214 | O32: -0.005352878876 | P32: 0.02944404075 | Q32: 0.02347994891 | R32: 0.03840630656 | S32: =IF(R32="","",R32-R$6) -> 0.1315664722 | T32: 0.1471477675 | U32: =IF(T32="","",T32-T$6) -> 0.08175820099 | V32: -0.0614238489 | W32: =IF(V32="","",V32-V$6) -> 0.05815087366 | X32: 0.0587172194 | Y32: =IF(X32="","",X32-X$6) -> 0.1115060254 | Z32: 0.1904361769 | AA32: =IF(Z32="","",Z32-Z$6) -> 0.1729395977 | AB32: 0.3173515765 | AC32: =IF(AB32="","",AB32-AB$6) -> 0.2208367108 | AD32: 0.4860002141 | AE32: =IF(AD32="","",AD32-AD$6) -> 0.2649347722 | AF32: 0.9523709079 | AG32: =IF(AF32="","",AF32-AF$6) -> 0.5281605965 | AH32: 1.579558545 | AI32: =IF(AH32="","",AH32-AH$6) -> 1.195030403 | AJ32: 36.40492414 | AL32: 0.1044853902 | AM32: -0.1110081739 | AN32: 0.1598283468 | AO32: -0.1317972419 | AP32: 8 | AQ32: 4 | AR32: 0.719794066 | AS32: 0.03763953011 | AT32: -0.3079014076 | AU32: 2020-02-19 | AV32: 2020-03-23
B33: GOOGL<XNAS> | C33: Alphabet Inc | D33: Servicios profesionales, científicos y técnicos | E33: 1384.34 | F33: 1524.87 | G33: 0.9078413242 | H33: 2020-02-19 | I33: 2303.941834 | J33: 2184.031761 | K33: 1.054903081 | N33: 0.01099848095 | O33: -0.005873020058 | P33: 0.02794980322 | Q33: 0.02198571138 | R33: 0.03356005346 | S33: =IF(R33="","",R33-R$6) -> 0.1267202191 | T33: 0.1469262635 | U33: =IF(T33="","",T33-T$6) -> 0.08153669699 | V33: -0.06407231376 | W33: =IF(V33="","",V33-V$6) -> 0.0555024088 | X33: 0.05755538579 | Y33: =IF(X33="","",X33-X$6) -> 0.1103441918 | Z33: 0.182408309 | AA33: =IF(Z33="","",Z33-Z$6) -> 0.1649117298 | AB33: 0.3077206473 | AC33: =IF(AB33="","",AB33-AB$6) -> 0.2112057816 | AD33: 0.4439912798 | AE33: =IF(AD33="","",AD33-AD$6) -> 0.2229258379 | AF33: 0.9089605339 | AG33: =IF(AF33="","",AF33-AF$6) -> 0.4847502225 | AH33: 1.521796156 | AI33: =IF(AH33="","",AH33-AH$6) -> 1.137268015 | AJ33: 36.46323514 | AL33: 0.09620226421 | AM33: -0.1163415056 | AN33: 0.158999957 | AO33: -0.1323875303 | AP33: 8 | AQ33: 4 | AR33: 0.6919721754 | AS33: 0.03764246363 | AT33: -0.3087082833 | AU33: 2020-02-19 | AV33: 2020-03-23
B34: MO<XNYS> | C34: Altria Group, Inc | D34: Industria del tabaco | E34: 36.74 | F34: 49.87810707 | G34: 0.7365957161 | H34: 2020-01-15 | I34: 309.3845641 | J34: 443.6792424 | K34: 0.697315841 | N34: 0.04672364672 | O34: 0.02985214571 | P34: -0.06394904459 | Q34: -0.06991313643 | R34: -0.2436279212 | S34: =IF(R34="","",R34-R$6) -> -0.1504677556 | T34: -0.08447545477 | U34: =IF(T34="","",T34-T$6) -> -0.1498650212 | V34: -0.1832425259 | W34: =IF(V34="","",V34-V$6) -> -0.06366780337 | X34: -0.173112267 | Y34: =IF(X34="","",X34-X$6) -> -0.120323461 | Z34: -0.2353545875 | AA34: =IF(Z34="","",Z34-Z$6) -> -0.2528511666 | AB34: -0.2400936636 | AC34: =IF(AB34="","",AB34-AB$6) -> -0.3366085293 | AD34: -0.3828027164 | AE34: =IF(AD34="","",AD34-AD$6) -> -0.6038681584 | AF34: -0.2817162506 | AG34: =IF(AF34="","",AF34-AF$6) -> -0.705926562 | AH34: -0.09805113119 | AI34: =IF(AH34="","",AH34-AH$6) -> -0.4825792726 | AJ34: 35.38632726 | AL34: 0.1002196595 | AM34: -0.1002964427 | AN34: 0.1096226836 | AO34: -0.1506417 | AP34: 4 | AQ34: 8 | AR34: -0.5723218724 | AS34: 0.03638909569 | AT34: -0.3877073171 | AU34: 2020-01-15 | AV34: 2020-03-23
B35: AMZN<XNAS> | C35: Amazon.Com, Inc | D35: Ventas por correo o medio electrónico | E35: 2379.61 | F35: 2474 | G35: 0.961847211 | H35: 2020-04-30 | I35: 7553.688828 | J35: 7770.767353 | K35: 0.9720647247 | N35: 0.005068402314 | O35: -0.0118030987 | P35: -0.03815278901 | Q35: -0.04411688085 | R35: 0.287779245 | S35: =IF(R35="","",R35-R$6) -> 0.3809394106 | T35: 0.164762604 | U35: =IF(T35="","",T35-T$6) -> 0.09937303754 | V35: 0.1444394213 | W35: =IF(V35="","",V35-V$6) -> 0.2640141439 | X35: 0.3324579479 | Y35: =IF(X35="","",X35-X$6) -> 0.3852467539 | Z35: 0.2408213707 | AA35: =IF(Z35="","",Z35-Z$6) -> 0.2233247915 | AB35: 0.4943638179 | AC35: =IF(AB35="","",AB35-AB$6) -> 0.3978489522 | AD35: 1.507386412 | AE35: =IF(AD35="","",AD35-AD$6) -> 1.28632097 | AF35: 2.530840567 | AG35: =IF(AF35="","",AF35-AF$6) -> 2.106630255 | AH35: 4.486891558 | AI35: =IF(AH35="","",AH35-AH$6) -> 4.102363417 | AJ35: 31.45298796 | AL35: 0.0737913486 | AM35: -0.07922080775 | AN35: 0.2689001498 | AO35: -0.06221374806 | AP35: 7 | AQ35: 5 | AR35: 0.9230300895 | AS35: 0.03250506993 | AT35: -0.2274469869 | AU35: 2020-02-19 | AV35: 2020-03-12 | AW35: 38
B36: AEE<XNYS> | C36: Ameren Corp | D36: Generación, transmisión y suministro de energía eléctrica | E36: 70.86 | F36: 86.54181801 | G36: 0.8187949089 | H36: 2020-03-04 | I36: 86.38677234 | J36: 126.8198387 | K36: 0.6811771191 | N36: 0.01737257717 | O36: 0.0005010761597 | P36: -0.02597938144 | Q36: -0.03194347328 | R36: -0.07171259478 | S36: =IF(R36="","",R36-R$6) -> 0.02144757087 | T36: -0.06775424286 | U36: =IF(T36="","",T36-T$6) -> -0.1331438093 | V36: -0.1472192258 | W36: =IF(V36="","",V36-V$6) -> -0.02764450327 | X36: -0.02768666501 | Y36: =IF(X36="","",X36-X$6) -> 0.02510214097 | Z36: 0.01846238507 | AA36: =IF(Z36="","",Z36-Z$6) -> 0.0009658058989 | AB36: 0.3139978512 | AC36: =IF(AB36="","",AB36-AB$6) -> 0.2174829854 | AD36: 0.4115890204 | AE36: =IF(AD36="","",AD36-AD$6) -> 0.1905235785 | AF36: 0.6558957326 | AG36: =IF(AF36="","",AF36-AF$6) -> 0.2316854212 | AH36: 1.05693056 | AI36: =IF(AH36="","",AH36-AH$6) -> 0.6724024187 | AJ36: 40.5491524 | AL36: 0.1780136467 | AM36: -0.1339461589 | AN36: 0.068359375 | AO36: -0.07247473388 | AP36: 6 | AQ36: 6 | AR36: 0.2346313739 | AS36: 0.04182277253 | AT36: -0.2908630601 | AU36: 2020-03-04 | AV36: 2020-03-23
B37: AAL<XNAS> | C37: American Airlines Group Inc | D37: Transporte aéreo regular | E37: 10.14 | F37: 34.23089006 | G37: 0.2962236734 | H37: 2019-07-24 | I37: 590.1581501 | J37: 344.7984413 | K37: 1.711603301 | N37: 0.06289308176 | O37: 0.04602158075 | P37: -0.1557035803 | Q37: -0.1616676722 | R37: -0.6451369497 | S37: =IF(R37="","",R37-R$6) -> -0.551976784 | T37: -0.1050308914 | U37: =IF(T37="","",T37-T$6) -> -0.1704204579 | V37: -0.6427061311 | W37: =IF(V37="","",V37-V$6) -> -0.5231314085 | X37: -0.6691328906 | Y37: =IF(X37="","",X37-X$6) -> -0.6163440847 | Z37: -0.6964036485 | AA37: =IF(Z37="","",Z37-Z$6) -> -0.7139002276 | AB37: -0.7590844894 | AC37: =IF(AB37="","",AB37-AB$6) -> -0.8555993551 | AD37: -0.7670229739 | AE37: =IF(AD37="","",AD37-AD$6) -> -0.9880884158 | AF37: -0.6805554572 | AG37: =IF(AF37="","",AF37-AF$6) -> -1.104765769 | AH37: -0.7826606468 | AI37: =IF(AH37="","",AH37-AH$6) -> -1.167188788 | AJ37: 78.02172151 | AL37: 0.3580487805 | AM37: -0.2522464698 | AN37: 0.1975762027 | AO37: -0.3601049869 | AP37: 3 | AQ37: 9 | AR37: -0.7611572543 | AS37: 0.0807884914 | AT37: -0.7297762348 | AU37: 2019-07-24 | AV37: 2020-05-06
B38: AEP<XNYS> | C38: American Electric Power Co Inc | D38: Generación, transmisión y suministro de energía eléctrica | E38: 79.86 | F38: 103.4034458 | G38: 0.772314688 | H38: 2020-02-18 | I38: 191.5257623 | J38: 232.9015367 | K38: 0.8223464946 | N38: 0.01603053435 | O38: -0.0008409666607 | P38: -0.03049462883 | Q38: -0.03645872067 | R38: -0.1415616175 | S38: =IF(R38="","",R38-R$6) -> -0.04840145189 | T38: -0.03270598562 | U38: =IF(T38="","",T38-T$6) -> -0.09809555209 | V38: -0.2048984468 | W38: =IF(V38="","",V38-V$6) -> -0.08532372428 | X38: -0.08913201386 | Y38: =IF(X38="","",X38-X$6) -> -0.03634320788 | Z38: -0.008329599285 | AA38: =IF(Z38="","",Z38-Z$6) -> -0.02582617846 | AB38: 0.2792957698 | AC38: =IF(AB38="","",AB38-AB$6) -> 0.1827809041 | AD38: 0.3039608189 | AE38: =IF(AD38="","",AD38-AD$6) -> 0.08289537695 | AF38: 0.417557408 | AG38: =IF(AF38="","",AF38-AF$6) -> -0.006652903437 | AH38: 0.7018281141 | AI38: =IF(AH38="","",AH38-AH$6) -> 0.3172999727 | AJ38: 35.4134327 | AL38: 0.1168258633 | AM38: -0.1158272491 | AN38: 0.1027404507 | AO38: -0.1376388111 | AP38: 7 | AQ38: 5 | AR38: 0.1307785504 | AS38: 0.03655133543 | AT38: -0.3290520464 | AU38: 2020-02-18 | AV38: 2020-03-23
B39: AXP<XNYS> | C39: American Express Co | D39: Servicios financieros y de seguros | E39: 89.5 | F39: 136.1735779 | G39: 0.6572493828 | H39: 2020-02-19 | I39: 344.902749 | J39: 455.8175217 | K39: 0.7566684749 | N39: 0.03193819901 | O39: 0.015066698 | P39: -0.01917808219 | Q39: -0.02514217403 | R39: -0.2745674836 | S39: =IF(R39="","",R39-R$6) -> -0.1814073179 | T39: -0.02801911381 | U39: =IF(T39="","",T39-T$6) -> -0.09340868028 | V39: -0.3172723563 | W39: =IF(V39="","",V39-V$6) -> -0.1976976338 | X39: -0.2565317035 | Y39: =IF(X39="","",X39-X$6) -> -0.2037428976 | Z39: -0.2259937864 | AA39: =IF(Z39="","",Z39-Z$6) -> -0.2434903655 | AB39: -0.07465118282 | AC39: =IF(AB39="","",AB39-AB$6) -> -0.1711660485 | AD39: 0.1985517316 | AE39: =IF(AD39="","",AD39-AD$6) -> -0.02251371033 | AF39: 0.4791176719 | AG39: =IF(AF39="","",AF39-AF$6) -> 0.05490736049 | AH39: 0.2284834536 | AI39: =IF(AH39="","",AH39-AH$6) -> -0.1560446878 | AJ39: 53.2418434 | AL39: 0.2188225058 | AM39: -0.1481866482 | AN39: 0.07610496033 | AO39: -0.2212316929 | AP39: 6 | AQ39: 6 | AR39: -0.2168922484 | AS39: 0.05563402547 | AT39: -0.4963850142 | AU39: 2020-02-19 | AV39: 2020-03-23
B40: AIG<XNYS> | C40: American Intl Group, Inc | D40: Instituciones de seguros | E40: 27.65 | F40: 56.8102067 | G40: 0.4867083154 | H40: 2019-09-19 | I40: 270.9803411 | J40: 227.2491116 | K40: 1.192437406 | N40: 0.08346394984 | O40: 0.06659244883 | P40: 0.08729846638 | Q40: 0.08133437454 | R40: -0.4545288617 | S40: =IF(R40="","",R40-R$6) -> -0.361368696 | T40: 0.1458765023 | U40: =IF(T40="","",T40-T$6) -> 0.08048693581 | V40: -0.4762619991 | W40: =IF(V40="","",V40-V$6) -> -0.3566872765 | X40: -0.4960553679 | Y40: =IF(X40="","",X40-X$6) -> -0.4432665619 | Z40: -0.429422575 | AA40: =IF(Z40="","",Z40-Z$6) -> -0.4469191542 | AB40: -0.4477781276 | AC40: =IF(AB40="","",AB40-AB$6) -> -0.5442929933 | AD40: -0.5163945511 | AE40: =IF(AD40="","",AD40-AD$6) -> -0.737459993 | AF40: -0.444309888 | AG40: =IF(AF40="","",AF40-AF$6) -> -0.8685201994 | AH40: -0.4783610812 | AI40: =IF(AH40="","",AH40-AH$6) -> -0.8628892226 | AJ40: 61.80521903 | AL40: 0.1880829016 | AM40: -0.208448967 | AN40: 0.08729846638 | AO40: -0.4175494687 | AP40: 5 | AQ40: 7 | AR40: -0.5172788098 | AS40: 0.06246295696 | AT40: -0.6694255999 | AU40: 2019-09-19 | AV40: 2020-03-18
B41: AMT<XNYS> | C41: American Tower Corp | D41: Otros fondos | E41: 238.36 | F41: 258.52 | G41: 0.9220176389 | H41: 2020-04-09 | I41: 429.1335712 | J41: 427.5627481 | K41: 1.003673901 | N41: 0.01321997875 | O41: -0.003651522265 | P41: 0.001512605042 | Q41: -0.004451486799 | R41: 0.04149238121 | S41: =IF(R41="","",R41-R$6) -> 0.1346525469 | T41: -0.03969597171 | U41: =IF(T41="","",T41-T$6) -> -0.1050855382 | V41: 0.002537294451 | W41: =IF(V41="","",V41-V$6) -> 0.122112017 | X41: 0.1678492989 | Y41: =IF(X41="","",X41-X$6) -> 0.2206381049 | Z41: 0.2653950249 | AA41: =IF(Z41="","",Z41-Z$6) -> 0.2478984457 | AB41: 0.807771432 | AC41: =IF(AB41="","",AB41-AB$6) -> 0.7112565663 | AD41: 0.9608987124 | AE41: =IF(AD41="","",AD41-AD$6) -> 0.7398332705 | AF41: 1.420043229 | AG41: =IF(AF41="","",AF41-AF$6) -> 0.9958329177 | AH41: 1.770918621 | AI41: =IF(AH41="","",AH41-AH$6) -> 1.38639048 | AJ41: 41.46752925 | AL41: 0.1222194821 | AM41: -0.1516381439 | AN41: 0.09756268705 | AO41: -0.03990299824 | AP41: 6 | AQ41: 6 | AR41: 0.8223850901 | AS41: 0.04281023155 | AT41: -0.3028804982 | AU41: 2020-02-13 | AV41: 2020-03-23 | AW41: 39
B42: AWK<XNYS> | C42: American Water Works Company, Inc | D42: Agua, alcantarrillado y otros sistemas | E42: 118.03 | F42: 141 | G42: =IFERROR(E42/F42,"") -> 0.8370921986 | H42: 2020-03-06 | I42: 126.0974685 | J42: 129.2496704 | K42: =IFERROR(I42/J42,"") -> 0.9756115287 | N42: -0.008817601612 | O42: -0.02568910262 | P42: -0.0300764237 | Q42: -0.03604051554 | R42: -0.0356650794 | S42: =IF(R42="","",R42-R$6) -> 0.05749508625 | T42: -0.05839648983 | U42: =IF(T42="","",T42-T$6) -> -0.1237860563 | V42: -0.1221271848 | W42: =IF(V42="","",V42-V$6) -> -0.00255246227 | X42: 0.01864613065 | Y42: =IF(X42="","",X42-X$6) -> 0.07143493663 | Z42: 0.1339608539 | AA42: =IF(Z42="","",Z42-Z$6) -> 0.1164642747 | AB42: 0.476025116 | AC42: =IF(AB42="","",AB42-AB$6) -> 0.3795102503 | AD42: 0.624383795 | AE42: =IF(AD42="","",AD42-AD$6) -> 0.4033183531 | AF42: 0.7149198361 | AG42: =IF(AF42="","",AF42-AF$6) -> 0.2907095247 | AH42: 1.451017909 | AI42: =IF(AH42="","",AH42-AH$6) -> 1.066489768 | AJ42: 40.92380728 | AL42: 0.1657267907 | AM42: -0.1253474635 | AN42: 0.1139546979 | AO42: -0.08869703762 | AP42: 5 | AQ42: 7 | AR42: 0.5881713728 | AS42: 0.04234190385 | AT42: -0.3115602837 | AU42: 2020-03-06 | AV42: 2020-03-23
B43: AMP<XNYS> | C43: Ameriprise Financial, Inc | D43: Otros servicios relacionados con la intermediación bursátil | E43: 125.61 | F43: 179.72 | G43: 0.6989205431 | H43: 2020-02-20 | I43: 109.6016336 | J43: 131.623579 | K43: 0.8326899663 | N43: 0.03187381911 | O43: 0.0150023181 | P43: 0.09283104228 | Q43: 0.08686695044 | R43: -0.2418311003 | S43: =IF(R43="","",R43-R$6) -> -0.1486709346 | T43: 0.1246306742 | U43: =IF(T43="","",T43-T$6) -> 0.05924110772 | V43: -0.2796271086 | W43: =IF(V43="","",V43-V$6) -> -0.1600523861 | X43: -0.2033822675 | Y43: =IF(X43="","",X43-X$6) -> -0.1505934615 | Z43: -0.1051092667 | AA43: =IF(Z43="","",Z43-Z$6) -> -0.1226058459 | AB43: -0.02096957769 | AC43: =IF(AB43="","",AB43-AB$6) -> -0.1174844434 | AD43: 0.04803554922 | AE43: =IF(AD43="","",AD43-AD$6) -> -0.1730298927 | AF43: 0.4857117785 | AG43: =IF(AF43="","",AF43-AF$6) -> 0.06150146713 | AH43: 0.1271140502 | AI43: =IF(AH43="","",AH43-AH$6) -> -0.2574140912 | AJ43: 65.92683176 | AL43: 0.2263579312 | AM43: -0.2382212811 | AN43: 0.1404868972 | AO43: -0.2747346072 | AP43: 8 | AQ43: 4 | AR43: 0.1383392445 | AS43: 0.06779418276 | AT43: -0.5388381927 | AU43: 2020-02-20 | AV43: 2020-03-23
B44: ABC<XNYS> | C44: Amerisourcebergen Corp | D44: Comercio al por mayor de remédios | E44: 88.09 | F44: 97 | G44: 0.9081443299 | H44: 2020-02-21 | I44: 103.525306 | J44: 120.3591795 | K44: 0.8601363555 | N44: -0.007324768988 | O44: -0.02419627 | P44: -0.01751059558 | Q44: -0.02347468742 | R44: 0.04067255099 | S44: =IF(R44="","",R44-R$6) -> 0.1338327166 | T44: -0.002717083664 | U44: =IF(T44="","",T44-T$6) -> -0.06810665013 | V44: -0.03765520682 | W44: =IF(V44="","",V44-V$6) -> 0.08191951574 | X44: 0.03277334545 | Y44: =IF(X44="","",X44-X$6) -> 0.08556215143 | Z44: 0.1403596553 | AA44: =IF(Z44="","",Z44-Z$6) -> 0.1228630762 | AB44: 0.07911187106 | AC44: =IF(AB44="","",AB44-AB$6) -> -0.01740299466 | AD44: 0.07401729683 | AE44: =IF(AD44="","",AD44-AD$6) -> -0.1470481451 | AF44: 0.2362137417 | AG44: =IF(AF44="","",AF44-AF$6) -> -0.1879965697 | AH44: -0.1691024532 | AI44: =IF(AH44="","",AH44-AH$6) -> -0.5536305946 | AJ44: 41.07940747 | AL44: 0.1181513231 | AM44: -0.1055555556 | AN44: 0.09504238377 | AO44: -0.05158262728 | AP44: 8 | AQ44: 4 | AR44: 0.6228415085 | AS44: 0.04267772276 | AT44: -0.2378350515 | AU44: 2020-02-21 | AV44: 2020-03-23
B45: AME<XNYS> | C45: Ametek Inc | D45: Fabricación de equipo de generación y distribución de energía eléctrica | E45: 84.32 | F45: 101.6226563 | G45: 0.8297362327 | H45: 2020-01-08 | I45: 95.16127536 | J45: 114.9175747 | K45: 0.8280828728 | N45: 0.01212339455 | O45: -0.004748106463 | P45: 0.005365446525 | Q45: -0.0005986453161 | R45: -0.1526275049 | S45: =IF(R45="","",R45-R$6) -> -0.05946733927 | T45: 0.09180370322 | U45: =IF(T45="","",T45-T$6) -> 0.02641413676 | V45: -0.1402143168 | W45: =IF(V45="","",V45-V$6) -> -0.02063959424 | X45: -0.1232704402 | Y45: =IF(X45="","",X45-X$6) -> -0.07048163418 | Z45: -0.006777338848 | AA45: =IF(Z45="","",Z45-Z$6) -> -0.02427391802 | AB45: 0.1644905666 | AC45: =IF(AB45="","",AB45-AB$6) -> 0.06797570093 | AD45: 0.4356140507 | AE45: =IF(AD45="","",AD45-AD$6) -> 0.2145486088 | AF45: 0.8543162775 | AG45: =IF(AF45="","",AF45-AF$6) -> 0.430105966 | AH45: 0.649225295 | AI45: =IF(AH45="","",AH45-AH$6) -> 0.2646971537 | AJ45: 44.15201305 | AL45: 0.1671534101 | AM45: -0.1616621984 | AN45: 0.1645376284 | AO45: -0.1606022613 | AP45: 6 | AQ45: 6 | AR45: 0.1852641146 | AS45: 0.04497697339 | AT45: -0.427194662 | AU45: 2020-01-08 | AV45: 2020-03-23
B46: AMGN<XNAS> | C46: Amgen Inc | D46: Fabricación de productos farmacéuticos | E46: 234.82 | F46: 242.43 | G46: 0.9686094955 | H46: 2020-04-27 | I46: 358.3590368 | J46: 565.9708786 | K46: 0.6331757523 | N46: 0.006385805511 | O46: -0.0104856955 | P46: -0.01839311094 | Q46: -0.02435720278 | R46: -0.01901162405 | S46: =IF(R46="","",R46-R$6) -> 0.07414854161 | T46: 0.07130799763 | U46: =IF(T46="","",T46-T$6) -> 0.005918431159 | V46: 0.03120772594 | W46: =IF(V46="","",V46-V$6) -> 0.1507824485 | X46: 0.07665073994 | Y46: =IF(X46="","",X46-X$6) -> 0.1294395459 | Z46: 0.4046404433 | AA46: =IF(Z46="","",Z46-Z$6) -> 0.3871438641 | AB46: 0.477577347 | AC46: =IF(AB46="","",AB46-AB$6) -> 0.3810624813 | AD46: 0.570846117 | AE46: =IF(AD46="","",AD46-AD$6) -> 0.3497806751 | AF46: 0.7157208482 | AG46: =IF(AF46="","",AF46-AF$6) -> 0.2915105368 | AH46: 0.6542641928 | AI46: =IF(AH46="","",AH46-AH$6) -> 0.2697360515 | AJ46: 34.69260308 | AL46: 0.108977173 | AM46: -0.08260760131 | AN46: 0.1799930943 | AO46: -0.1037872817 | AP46: 8 | AQ46: 4 | AR46: 1.304981034 | AS46: 0.03617235218 | AT46: -0.2453386961 | AU46: 2019-12-16 | AV46: 2020-03-12 | AW46: 90
B47: APH<XNYS> | C47: Amphenol Corp | D47: Fabricación de componentes electrónicos | E47: 89.56 | F47: 109.4451822 | G47: 0.818309205 | H47: 2020-01-16 | I47: 96.1641544 | J47: 135.9023698 | K47: 0.7075973327 | N47: 0.02659330582 | O47: 0.009721804812 | P47: 0.01472920916 | Q47: 0.008765117314 | R47: -0.169895892 | S47: =IF(R47="","",R47-R$6) -> -0.07673572631 | T47: 0.1248430043 | U47: =IF(T47="","",T47-T$6) -> 0.0594534378 | V47: -0.1307839821 | W47: =IF(V47="","",V47-V$6) -> -0.01120925953 | X47: -0.1231519451 | Y47: =IF(X47="","",X47-X$6) -> -0.07036313913 | Z47: -0.04289645025 | AA47: =IF(Z47="","",Z47-Z$6) -> -0.06039302942 | AB47: 0.06631241522 | AC47: =IF(AB47="","",AB47-AB$6) -> -0.03020245049 | AD47: 0.2714380753 | AE47: =IF(AD47="","",AD47-AD$6) -> 0.05037263342 | AF47: 0.6659941787 | AG47: =IF(AF47="","",AF47-AF$6) -> 0.2417838673 | AH47: 0.6546539602 | AI47: =IF(AH47="","",AH47-AH$6) -> 0.2701258188 | AJ47: 38.8025615 | AL47: 0.1011400175 | AM47: -0.1387523629 | AN47: 0.2110318332 | AO47: -0.2025565486 | AP47: 7 | AQ47: 5 | AR47: 0.05521846813 | AS47: 0.03958629727 | AT47: -0.375577813 | AU47: 2020-01-16 | AV47: 2020-03-16
B48: ADI<XNAS> | C48: Analog Devices, Inc | D48: Fabricación de componentes electrónicos | E48: 109.83 | F48: 123.8775775 | G48: 0.8866011284 | H48: 2020-02-20 | I48: 141.258843 | J48: 269.9980666 | K48: 0.5231846463 | N48: 0.03272214386 | O48: 0.01585064285 | P48: 0.002098540146 | Q48: -0.003865551695 | R48: -0.07079964197 | S48: =IF(R48="","",R48-R$6) -> 0.02236052368 | T48: 0.08313609467 | U48: =IF(T48="","",T48-T$6) -> 0.01774652821 | V48: -0.01642317139 | W48: =IF(V48="","",V48-V$6) -> 0.1031515512 | X48: -0.01831595257 | Y48: =IF(X48="","",X48-X$6) -> 0.03447285341 | Z48: 0.0142419599 | AA48: =IF(Z48="","",Z48-Z$6) -> -0.003254619269 | AB48: 0.2512516257 | AC48: =IF(AB48="","",AB48-AB$6) -> 0.15473676 | AD48: 0.5302739107 | AE48: =IF(AD48="","",AD48-AD$6) -> 0.3092084688 | AF48: 1.160349103 | AG48: =IF(AF48="","",AF48-AF$6) -> 0.7361387919 | AH48: 0.9661146477 | AI48: =IF(AH48="","",AH48-AH$6) -> 0.5815865063 | AJ48: 49.71916558 | AL48: 0.1469775267 | AM48: -0.1661489127 | AN48: 0.2225320692 | AO48: -0.1779000459 | AP48: 7 | AQ48: 5 | AR48: 0.2895154824 | AS48: 0.05101785804 | AT48: -0.3361994829 | AU48: 2020-02-20 | AV48: 2020-03-18
B49: ANSS<XNAS> | C49: Ansys, Inc | D49: Edición de software | E49: 263.02 | F49: 296.14 | G49: 0.8881610049 | H49: 2020-02-19 | I49: 149.2388631 | J49: 125.4670722 | K49: 1.189466371 | N49: 0.008666973463 | O49: -0.008204527549 | P49: 0.004544933736 | Q49: -0.001419158105 | R49: 0.0217940251 | S49: =IF(R49="","",R49-R$6) -> 0.1149541908 | T49: 0.07631869706 | U49: =IF(T49="","",T49-T$6) -> 0.01092913059 | V49: -0.07657199031 | W49: =IF(V49="","",V49-V$6) -> 0.04300273225 | X49: 0.1725736704 | Y49: =IF(X49="","",X49-X$6) -> 0.2253624763 | Z49: 0.3775729325 | AA49: =IF(Z49="","",Z49-Z$6) -> 0.3600763533 | AB49: 0.5704561739 | AC49: =IF(AB49="","",AB49-AB$6) -> 0.4739413082 | AD49: 1.171386114 | AE49: =IF(AD49="","",AD49-AD$6) -> 0.9503206722 | AF49: 2.108616003 | AG49: =IF(AF49="","",AF49-AF$6) -> 1.684405691 | AH49: 2.0340293 | AI49: =IF(AH49="","",AH49-AH$6) -> 1.649501158 | AJ49: 43.28605663 | AL49: 0.1514232613 | AM49: -0.1234814374 | AN49: 0.1568930275 | AO49: -0.1171581672 | AP49: 8 | AQ49: 4 | AR49: 1.062939066 | AS49: 0.04501500885 | AT49: -0.3095833052 | AU49: 2020-02-19 | AV49: 2020-03-12
B50: ANTM<XNYS> | C50: Anthem, Inc | D50: Instituciones de seguros | E50: 274.33 | F50: 307.4745525 | G50: 0.8922039167 | H50: 2019-07-12 | I50: 263.385056 | J50: 446.420448 | K50: 0.5899932612 | N50: 0.03236367742 | O50: 0.01549217641 | P50: -0.02279770598 | Q50: -0.02876179782 | R50: -0.08833237515 | S50: =IF(R50="","",R50-R$6) -> 0.004827790509 | T50: 0.1105578496 | U50: =IF(T50="","",T50-T$6) -> 0.0451682831 | V50: -0.004083576628 | W50: =IF(V50="","",V50-V$6) -> 0.1154911459 | X50: -0.02115342083 | Y50: =IF(X50="","",X50-X$6) -> 0.03163538514 | Z50: 0.04973501829 | AA50: =IF(Z50="","",Z50-Z$6) -> 0.03223843911 | AB50: 0.2536764308 | AC50: =IF(AB50="","",AB50-AB$6) -> 0.1571615651 | AD50: 0.5832969559 | AE50: =IF(AD50="","",AD50-AD$6) -> 0.362231514 | AF50: 1.113525006 | AG50: =IF(AF50="","",AF50-AF$6) -> 0.6893146945 | AH50: 0.8641355731 | AI50: =IF(AH50="","",AH50-AH$6) -> 0.4796074317 | AJ50: 51.30280643 | AL50: 0.1561744286 | AM50: -0.1712658134 | AN50: 0.2364781536 | AO50: -0.1216766546 | AP50: 6 | AQ50: 6 | AR50: 0.399898024 | AS50: 0.05293640354 | AT50: -0.4318879446 | AU50: 2019-07-12 | AV50: 2020-03-23
B51: APA<XNYS> | C51: Apache Corp | D51: Extracción de petróleo y gas | E51: 12.45 | F51: 32.35026651 | G51: 0.384849998 | H51: 2020-01-14 | I51: 241.7728124 | J51: 152.8762122 | K51: 1.581494 | N51: 0.04797979798 | O51: 0.03110829697 | P51: -0.04816513761 | Q51: -0.05412922946 | R51: -0.4948373806 | S51: =IF(R51="","",R51-R$6) -> -0.4016772149 | T51: 0.6923732916 | U51: =IF(T51="","",T51-T$6) -> 0.6269837251 | V51: -0.5436432035 | W51: =IF(V51="","",V51-V$6) -> -0.4240684809 | X51: -0.4708509443 | Y51: =IF(X51="","",X51-X$6) -> -0.4180621383 | Z51: -0.5683430839 | AA51: =IF(Z51="","",Z51-Z$6) -> -0.5858396631 | AB51: -0.6618927042 | AC51: =IF(AB51="","",AB51-AB$6) -> -0.7584075699 | AD51: -0.7239003875 | AE51: =IF(AD51="","",AD51-AD$6) -> -0.9449658294 | AF51: -0.7377687463 | AG51: =IF(AF51="","",AF51-AF$6) -> -1.161979058 | AH51: -0.7797213435 | AI51: =IF(AH51="","",AH51-AH$6) -> -1.164249485 | AJ51: 123.9495184 | AL51: 0.2946635731 | AM51: -0.538647343 | AN51: 2.224240874 | AO51: -0.8322632424 | AP51: 6 | AQ51: 6 | AR51: -0.1294450802 | AS51: 0.1138110868 | AT51: -0.8793986489 | AU51: 2020-01-14 | AV51: 2020-04-01
B52: AIV<XNYS> | C52: Apartment Investment & Mngmt Co | D52: Otros fondos | E52: 37.84 | F52: 55.49 | G52: 0.6819246711 | H52: 2020-02-21 | I52: 41.998616 | J52: 54.59191328 | K52: 0.7693193639 | N52: 0.01884760366 | O52: 0.001976102651 | P52: 0.004512874968 | Q52: -0.001451216873 | R52: -0.2617809024 | S52: =IF(R52="","",R52-R$6) -> -0.1686207367 | T52: 0.03557744937 | U52: =IF(T52="","",T52-T$6) -> -0.0298121171 | V52: -0.2855721118 | W52: =IF(V52="","",V52-V$6) -> -0.1659973892 | X52: -0.2776326658 | Y52: =IF(X52="","",X52-X$6) -> -0.2248438598 | Z52: -0.2054989503 | AA52: =IF(Z52="","",Z52-Z$6) -> -0.2229955295 | AB52: -0.01304474641 | AC52: =IF(AB52="","",AB52-AB$6) -> -0.1095596121 | AD52: -0.0283598474 | AE52: =IF(AD52="","",AD52-AD$6) -> -0.2494252893 | AF52: 0.00891018619 | AG52: =IF(AF52="","",AF52-AF$6) -> -0.4153001252 | AH52: 0.1417221838 | AI52: =IF(AH52="","",AH52-AH$6) -> -0.2428059576 | AJ52: 51.83791653 | AL52: 0.1592689295 | AM52: -0.2288816504 | AN52: 0.07169274538 | AO52: -0.2652591973 | AP52: 7 | AQ52: 5 | AR52: -0.2245450198 | AS52: 0.05206569249 | AT52: -0.5442422058 | AU52: 2020-02-21 | AV52: 2020-03-23
B53: AAPL<XNAS> | C53: Apple Inc | D53: Fabricación de computadoras y equipo periférico | E53: 310.13 | F53: 326.3166656 | G53: 0.9503958355 | H53: 2020-02-12 | I53: 10326.40543 | J53: 8281.661389 | K53: 1.246900223 | N53: 0.0238016638 | O53: 0.006930162794 | P53: 0.05843947367 | Q53: 0.05247538183 | R53: 0.06149343639 | S53: =IF(R53="","",R53-R$6) -> 0.154653602 | T53: 0.16875077 | U53: =IF(T53="","",T53-T$6) -> 0.1033612035 | V53: -0.02831135405 | W53: =IF(V53="","",V53-V$6) -> 0.09126336851 | X53: 0.1982299823 | Y53: =IF(X53="","",X53-X$6) -> 0.2510187883 | Z53: 0.5526851557 | AA53: =IF(Z53="","",Z53-Z$6) -> 0.5351885765 | AB53: 0.7190914987 | AC53: =IF(AB53="","",AB53-AB$6) -> 0.622576633 | AD53: 1.1233686 | AE53: =IF(AD53="","",AD53-AD$6) -> 0.9023031583 | AF53: 2.556485235 | AG53: =IF(AF53="","",AF53-AF$6) -> 2.132274924 | AH53: 1.636808032 | AI53: =IF(AH53="","",AH53-AH$6) -> 1.252279891 | AJ53: 40.64308964 | AL53: 0.1198082424 | AM53: -0.1286469763 | AN53: 0.1553737858 | AO53: -0.1147013964 | AP53: 9 | AQ53: 3 | AR53: 1.602946958 | AS53: 0.04187759002 | AT53: -0.3142726161 | AU53: 2020-02-12 | AV53: 2020-03-23
B54: AMAT<XNAS> | C54: Applied Materials Inc | D54: Fabricación de componentes electrónicos | E54: 53.81 | F54: 67.41 | G54: 0.7982495179 | H54: 2020-02-19 | I54: 434.3369394 | J54: 439.7051424 | K54: 0.9877913572 | N54: 0.04995121951 | O54: 0.0330797185 | P54: 0.08313204509 | Q54: 0.07716795325 | R54: -0.1156689166 | S54: =IF(R54="","",R54-R$6) -> -0.02250875099 | T54: 0.04566653712 | U54: =IF(T54="","",T54-T$6) -> -0.01972302935 | V54: -0.1252703074 | W54: =IF(V54="","",V54-V$6) -> -0.005695584886 | X54: -0.033263844 | Y54: =IF(X54="","",X54-X$6) -> 0.01952496198 | Z54: 0.3152723726 | AA54: =IF(Z54="","",Z54-Z$6) -> 0.2977757934 | AB54: 0.04309717146 | AC54: =IF(AB54="","",AB54-AB$6) -> -0.05341769426 | AD54: 0.3530412979 | AE54: =IF(AD54="","",AD54-AD$6) -> 0.131975856 | AF54: 1.868114659 | AG54: =IF(AF54="","",AF54-AF$6) -> 1.443904347 | AH54: 1.958422832 | AI54: =IF(AH54="","",AH54-AH$6) -> 1.57389469 | AJ54: 58.97221571 | AL54: 0.1281312348 | AM54: -0.2035763411 | AN54: 0.1607650556 | AO54: -0.2116311081 | AP54: 9 | AQ54: 3 | AR54: 0.891028374 | AS54: 0.06005547859 | AT54: -0.4364337635 | AU54: 2020-02-19 | AV54: 2020-03-20
B55: ADM<XNYS> | C55: Archer-Daniels-Midland Co | D55: Molienda de granos y de semillas oleaginosas | E55: 36.39 | F55: 45.98820468 | G55: 0.791289859 | H55: 2019-12-31 | I55: 104.9953028 | J55: 132.5676057 | K55: 0.7920132694 | N55: 0.04689298044 | O55: 0.03002147943 | P55: -0.02019386107 | Q55: -0.02615795291 | R55: -0.208710141 | S55: =IF(R55="","",R55-R$6) -> -0.1155499753 | T55: -0.002467105262 | U55: =IF(T55="","",T55-T$6) -> -0.06785667173 | V55: -0.1976310443 | W55: =IF(V55="","",V55-V$6) -> -0.07805632174 | X55: -0.1462318359 | Y55: =IF(X55="","",X55-X$6) -> -0.09344302991 | Z55: -0.112468236 | AA55: =IF(Z55="","",Z55-Z$6) -> -0.1299648152 | AB55: -0.1172883273 | AC55: =IF(AB55="","",AB55-AB$6) -> -0.213803193 | AD55: -0.0683833003 | AE55: =IF(AD55="","",AD55-AD$6) -> -0.2894487422 | AF55: 0.07882444838 | AG55: =IF(AF55="","",AF55-AF$6) -> -0.345385863 | AH55: -0.1732464493 | AI55: =IF(AH55="","",AH55-AH$6) -> -0.5577745907 | AJ55: 36.70378384 | AL55: 0.1026953258 | AM55: -0.1006558312 | AN55: 0.07966457023 | AO55: -0.152229724 | AP55: 7 | AQ55: 5 | AR55: -0.1755240431 | AS55: 0.03784704848 | AT55: -0.362662661 | AU55: 2019-12-31 | AV55: 2020-03-23
B56: ANET<XNYS> | C56: Arista Networks, Inc | D56: Fabricación de equipo de comunicación | E56: 218.01 | F56: 287.36 | G56: 0.7586650891 | H56: 2019-07-22 | I56: 236.2120909 | J56: 192.6673229 | K56: 1.226010137 | N56: 0.03602147983 | O56: 0.01914997882 | P56: -0.005882352942 | Q56: -0.01184644478 | R56: 0.07182890855 | S56: =IF(R56="","",R56-R$6) -> 0.1649890742 | T56: 0.01593736894 | U56: =IF(T56="","",T56-T$6) -> -0.04945219753 | V56: -0.05936920223 | W56: =IF(V56="","",V56-V$6) -> 0.06020552033 | X56: 0.1318726961 | Y56: =IF(X56="","",X56-X$6) -> 0.1846615021 | Z56: -0.1811830986 | AA56: =IF(Z56="","",Z56-Z$6) -> -0.1986796778 | AB56: -0.1592039801 | AC56: =IF(AB56="","",AB56-AB$6) -> -0.2557188458 | AD56: 0.5272154116 | AE56: =IF(AD56="","",AD56-AD$6) -> 0.3061499697 | AF56: 2.262157714 | AG56: =IF(AF56="","",AF56-AF$6) -> 1.837947402 | AH56: 2.313221884 | AI56: =IF(AH56="","",AH56-AH$6) -> 1.928693743 | AJ56: 53.92237787 | AL56: 0.1524586113 | AM56: -0.2423437053 | AN56: 0.09803343166 | AO56: -0.2021507135 | AP56: 8 | AQ56: 4 | AR56: -0.1097678573 | AS56: 0.05384703048 | AT56: -0.4535077951 | AU56: 2019-07-22 | AV56: 2020-03-16
B57: AJG<XNYS> | C57: Arthur J. Gallagher & Co. | D57: Servicios relacionados con los seguros y las fianzas | E57: 86.4 | F57: 108.6975012 | G57: 0.7948664787 | H57: 2020-02-14 | I57: 94.7703456 | J57: 86.30064579 | K57: 1.098141789 | N57: 0.01194659171 | O57: -0.004924909303 | P57: 0.1006369427 | Q57: 0.09467285084 | R57: -0.0888624928 | S57: =IF(R57="","",R57-R$6) -> 0.004297672859 | T57: 0.01599247413 | U57: =IF(T57="","",T57-T$6) -> -0.04939709234 | V57: -0.1730903954 | W57: =IF(V57="","",V57-V$6) -> -0.05351567284 | X57: -0.0436367635 | Y57: =IF(X57="","",X57-X$6) -> 0.009152042478 | Z57: 0.06448410419 | AA57: =IF(Z57="","",Z57-Z$6) -> 0.04698752502 | AB57: 0.3102027554 | AC57: =IF(AB57="","",AB57-AB$6) -> 0.2136878897 | AD57: 0.6644666695 | AE57: =IF(AD57="","",AD57-AD$6) -> 0.4434012276 | AF57: 1.026153007 | AG57: =IF(AF57="","",AF57-AF$6) -> 0.6019426958 | AH57: 1.057491929 | AI57: =IF(AH57="","",AH57-AH$6) -> 0.6729637876 | AJ57: 39.28812552 | AL57: 0.1323270809 | AM57: -0.1523519775 | AN57: 0.1006369427 | AO57: -0.1603567723 | AP57: 8 | AQ57: 4 | AR57: 0.320419421 | AS57: 0.04006961042 | AT57: -0.3722026794 | AU57: 2020-02-14 | AV57: 2020-03-23
B58: AIZ<XNYS> | C58: Assurant, Inc | D58: Instituciones de seguros | E58: 98.8 | F58: 141.8857724 | G58: 0.6963347933 | H58: 2020-02-14 | I58: 51.5664864 | J58: 56.33769046 | K58: 0.9153106203 | N58: 0.002130033472 | O58: -0.01474146754 | P58: -0.07003012048 | Q58: -0.07599421232 | R58: -0.2428926248 | S58: =IF(R58="","",R58-R$6) -> -0.1497324592 | T58: -0.07421289355 | U58: =IF(T58="","",T58-T$6) -> -0.13960246 | V58: -0.2722086042 | W58: =IF(V58="","",V58-V$6) -> -0.1526338816 | X58: -0.2333627188 | Y58: =IF(X58="","",X58-X$6) -> -0.1805739129 | Z58: 0.04776914008 | AA58: =IF(Z58="","",Z58-Z$6) -> 0.0302725609 | AB58: 0.1928603266 | AC58: =IF(AB58="","",AB58-AB$6) -> 0.09634546087 | AD58: 0.002563458764 | AE58: =IF(AD58="","",AD58-AD$6) -> -0.2185019831 | AF58: 0.2510126425 | AG58: =IF(AF58="","",AF58-AF$6) -> -0.1731976689 | AH58: 0.7072164448 | AI58: =IF(AH58="","",AH58-AH$6) -> 0.3226883034 | AJ58: 43.83244108 | AL58: 0.1025029797 | AM58: -0.1973596097 | AN58: 0.09032481057 | AO58: -0.1368272659 | AP58: 7 | AQ58: 5 | AR58: 0.335180805 | AS58: 0.0439393041 | AT58: -0.4332765109 | AU58: 2020-02-14 | AV58: 2020-03-18
B59: T<XNYS> | C59: AT&T Inc | D59: Operadores de servicios de telecomunicaciones alámbricas | E59: 29.79 | F59: 38.43052156 | G59: 0.7751651238 | H59: 2019-11-18 | I59: 713.8590808 | J59: 1169.475508 | K59: 0.610409603 | N59: 0.03115264797 | O59: 0.01428114696 | P59: -0.02231703315 | Q59: -0.02828112499 | R59: -0.2139254387 | S59: =IF(R59="","",R59-R$6) -> -0.120765273 | T59: -0.003345600536 | U59: =IF(T59="","",T59-T$6) -> -0.068735167 | V59: -0.2115982833 | W59: =IF(V59="","",V59-V$6) -> -0.09202356072 | X59: -0.2199138178 | Y59: =IF(X59="","",X59-X$6) -> -0.1671250118 | Z59: 0.0433770932 | AA59: =IF(Z59="","",Z59-Z$6) -> 0.02588051403 | AB59: 0.06161186205 | AC59: =IF(AB59="","",AB59-AB$6) -> -0.03490300366 | AD59: -0.08025808207 | AE59: =IF(AD59="","",AD59-AD$6) -> -0.301323524 | AF59: -0.04669957069 | AG59: =IF(AF59="","",AF59-AF$6) -> -0.4709098821 | AH59: 0.1641760662 | AI59: =IF(AH59="","",AH59-AH$6) -> -0.2203520752 | AJ59: 33.73234808 | AL59: 0.100223428 | AM59: -0.09241019699 | AN59: 0.09581425769 | AO59: -0.1723452584 | AP59: 7 | AQ59: 5 | AR59: 0.2691325105 | AS59: 0.0347348989 | AT59: -0.3154602207 | AU59: 2019-11-18 | AV59: 2020-03-23
B60: ATO<XNYS> | C60: Atmos Energy Corp | D60: Suministro de gas por ductos al consumidor final | E60: 97.33 | F60: 119.9885377 | G60: 0.8111608147 | H60: 2020-02-18 | I60: 84.5048259 | J60: 88.59475127 | K60: 0.9538355793 | N60: 0.009856816767 | O60: -0.007014684244 | P60: -0.04550357948 | Q60: -0.05146767132 | R60: -0.1256779954 | S60: =IF(R60="","",R60-R$6) -> -0.03251782976 | T60: -0.05182659523 | U60: =IF(T60="","",T60-T$6) -> -0.1172161617 | V60: -0.1682825118 | W60: =IF(V60="","",V60-V$6) -> -0.04870778928 | X60: -0.08381517925 | Y60: =IF(X60="","",X60-X$6) -> -0.03102637327 | Z60: -0.01433663631 | AA60: =IF(Z60="","",Z60-Z$6) -> -0.03183321548 | AB60: 0.1563663123 | AC60: =IF(AB60="","",AB60-AB$6) -> 0.05985144661 | AD60: 0.266596529 | AE60: =IF(AD60="","",AD60-AD$6) -> 0.04553108708 | AF60: 0.4433841466 | AG60: =IF(AF60="","",AF60-AF$6) -> 0.01917383517 | AH60: 1.023970824 | AI60: =IF(AH60="","",AH60-AH$6) -> 0.6394426827 | AJ60: 38.23873478 | AL60: 0.1538215201 | AM60: -0.1249619328 | AN60: 0.0462184874 | AO60: -0.1134722067 | AP60: 7 | AQ60: 5 | AR60: 0.1098777217 | AS60: 0.03967926541 | AT60: -0.3291025831 | AU60: 2020-02-18 | AV60: 2020-03-23
B61: ADSK<XNAS> | C61: Autodesk, Inc | D61: Edición de software | E61: 184.29 | F61: 210.76 | G61: 0.8744069083 | H61: 2020-02-19 | I61: 185.1932053 | J61: 309.0538192 | K61: 0.599226393 | N61: 0.001576086957 | O61: -0.01529541405 | P61: -0.01517661519 | Q61: -0.02114070703 | R61: 0.004524146954 | S61: =IF(R61="","",R61-R$6) -> 0.09768431261 | T61: 0.1575277935 | U61: =IF(T61="","",T61-T$6) -> 0.09213822701 | V61: -0.109753152 | W61: =IF(V61="","",V61-V$6) -> 0.009821570535 | X61: 0.2048247908 | Y61: =IF(X61="","",X61-X$6) -> 0.2576135968 | Z61: 0.07451460556 | AA61: =IF(Z61="","",Z61-Z$6) -> 0.05701802639 | AB61: 0.3881440193 | AC61: =IF(AB61="","",AB61-AB$6) -> 0.2916291536 | AD61: 0.9733376164 | AE61: =IF(AD61="","",AD61-AD$6) -> 0.7522721745 | AF61: 2.141663825 | AG61: =IF(AF61="","",AF61-AF$6) -> 1.717453514 | AH61: 2.218196106 | AI61: =IF(AH61="","",AH61-AH$6) -> 1.833667964 | AJ61: 48.47332057 | AL61: 0.1619852941 | AM61: -0.1200273496 | AN61: 0.2276058632 | AO61: -0.1822087175 | AP61: 6 | AQ61: 6 | AR61: 0.3931983399 | AS61: 0.05000365571 | AT61: -0.3547162649 | AU61: 2020-02-19 | AV61: 2020-03-12
B62: ADP<XNAS> | C62: Automatic Data Processing, Inc | D62: Procesamiento electrónico de información, hospedaje y otros servicios relacionados | E62: 146 | F62: 180.1356327 | G62: 0.8105003868 | H62: 2020-02-19 | I62: 253.800268 | J62: 328.6622989 | K62: 0.7722220311 | N62: -0.01197807403 | O62: -0.02884957505 | P62: -0.004703797123 | Q62: -0.01066788896 | R62: -0.1383976827 | S62: =IF(R62="","",R62-R$6) -> -0.04523751701 | T62: 0.0539233379 | U62: =IF(T62="","",T62-T$6) -> -0.01146622857 | V62: -0.1797699882 | W62: =IF(V62="","",V62-V$6) -> -0.06019526569 | X62: -0.09231911722 | Y62: =IF(X62="","",X62-X$6) -> -0.03953031124 | Z62: -0.06308328639 | AA62: =IF(Z62="","",Z62-Z$6) -> -0.08057986556 | AB62: 0.2106232101 | AC62: =IF(AB62="","",AB62-AB$6) -> 0.1141083444 | AD62: 0.6093794442 | AE62: =IF(AD62="","",AD62-AD$6) -> 0.3883140023 | AF62: 0.8344626976 | AG62: =IF(AF62="","",AF62-AF$6) -> 0.4102523862 | AH62: 0.8693376922 | AI62: =IF(AH62="","",AH62-AH$6) -> 0.4848095508 | AJ62: 40.77125084 | AL62: 0.1180357289 | AM62: -0.1525259516 | AN62: 0.07323675739 | AO62: -0.1112476471 | AP62: 8 | AQ62: 4 | AR62: -0.005248144457 | AS62: 0.04177956747 | AT62: -0.3945118001 | AU62: 2020-02-14 | AV62: 2020-03-23
B63: AZO<XNYS> | C63: Autozone Inc | D63: Tienda de repuestos, accesorios y llantas | E63: 1057.9 | F63: 1250 | G63: 0.84632 | H63: 2019-12-10 | I63: 214.0618334 | J63: 278.1562045 | K63: 0.7695741815 | N63: 0.04519048372 | O63: 0.02831898271 | P63: 0.03683158225 | Q63: 0.03086749041 | R63: -0.111985965 | S63: =IF(R63="","",R63-R$6) -> -0.01882579937 | T63: 0.1558969428 | U63: =IF(T63="","",T63-T$6) -> 0.09050737634 | V63: -0.0009538109944 | W63: =IF(V63="","",V63-V$6) -> 0.1186209116 | X63: -0.09260116995 | Y63: =IF(X63="","",X63-X$6) -> -0.03981236397 | Z63: 0.052008751 | AA63: =IF(Z63="","",Z63-Z$6) -> 0.03451217182 | AB63: 0.6146954226 | AC63: =IF(AB63="","",AB63-AB$6) -> 0.5181805568 | AD63: 0.490041973 | AE63: =IF(AD63="","",AD63-AD$6) -> 0.2689765311 | AF63: 0.3629043687 | AG63: =IF(AF63="","",AF63-AF$6) -> -0.06130594274 | AH63: 0.5418360952 | AI63: =IF(AH63="","",AH63-AH$6) -> 0.1573079538 | AJ63: 42.13073877 | AL63: 0.1178203036 | AM63: -0.1593712046 | AN63: 0.2060520095 | AO63: -0.1806374757 | AP63: 7 | AQ63: 5 | AR63: 0.2877123615 | AS63: 0.04273435769 | AT63: -0.421424 | AU63: 2019-12-10 | AV63: 2020-03-23
B64: AVB<XNYS> | C64: Avalonbay Communities, Inc | D64: Otros fondos | E64: 163.96 | F64: 225.8073726 | G64: 0.72610561 | H64: 2020-02-18 | I64: 220.9749585 | J64: 148.6151478 | K64: 1.486893912 | N64: 0.02193966592 | O64: 0.005068164908 | P64: 0.006198220313 | Q64: 0.0002341284726 | R64: -0.210286569 | S64: =IF(R64="","",R64-R$6) -> -0.1171264034 | T64: 0.02009581285 | U64: =IF(T64="","",T64-T$6) -> -0.04529375362 | V64: -0.2444088768 | W64: =IF(V64="","",V64-V$6) -> -0.1248341542 | X64: -0.2050652805 | Y64: =IF(X64="","",X64-X$6) -> -0.1522764745 | Z64: -0.1383052501 | AA64: =IF(Z64="","",Z64-Z$6) -> -0.1558018292 | AB64: 0.06388038896 | AC64: =IF(AB64="","",AB64-AB$6) -> -0.03263447676 | AD64: -0.0578055485 | AE64: =IF(AD64="","",AD64-AD$6) -> -0.2788709904 | AF64: -0.007040087396 | AG64: =IF(AF64="","",AF64-AF$6) -> -0.4312503988 | AH64: 0.1388609718 | AI64: =IF(AH64="","",AH64-AH$6) -> -0.2456671696 | AJ64: 43.98353123 | AL64: 0.1108460268 | AM64: -0.1537067716 | AN64: 0.1072229395 | AO64: -0.2589627205 | AP64: 8 | AQ64: 4 | AR64: -0.1605509907 | AS64: 0.04466549213 | AT64: -0.4691103609 | AU64: 2020-02-18 | AV64: 2020-03-23
B65: AVY<XNYS> | C65: Avery Dennison Corp | D65: Fabricación de productos de cartón y papel | E65: 109.26 | F65: 139.4328581 | G65: 0.7836029577 | H65: 2020-02-05 | I65: 41.44854582 | J65: 65.95718402 | K65: 0.6284159404 | N65: 0.04735429448 | O65: 0.03048279347 | P65: -0.01023643446 | Q65: -0.0162005263 | R65: -0.1607505703 | S65: =IF(R65="","",R65-R$6) -> -0.0675904046 | T65: -0.008619907449 | U65: =IF(T65="","",T65-T$6) -> -0.07400947392 | V65: -0.194138209 | W65: =IF(V65="","",V65-V$6) -> -0.07456348649 | X65: -0.1759139262 | Y65: =IF(X65="","",X65-X$6) -> -0.1231251203 | Z65: 0.04928295512 | AA65: =IF(Z65="","",Z65-Z$6) -> 0.03178637595 | AB65: 0.07783067179 | AC65: =IF(AB65="","",AB65-AB$6) -> -0.01868419392 | AD65: 0.3823269147 | AE65: =IF(AD65="","",AD65-AD$6) -> 0.1612614728 | AF65: 0.5803863543 | AG65: =IF(AF65="","",AF65-AF$6) -> 0.1561760429 | AH65: 1.08121773 | AI65: =IF(AH65="","",AH65-AH$6) -> 0.6966895891 | AJ65: 44.3767069 | AL65: 0.2286984127 | AM65: -0.1327092511 | AN65: 0.1258254821 | AO65: -0.1276287717 | AP65: 7 | AQ65: 5 | AR65: 0.330534373 | AS65: 0.04648357329 | AT65: -0.4352120363 | AU65: 2020-02-05 | AV65: 2020-03-23
B66: BKR<XNYS> | C66: Baker Hughes Hldg Llc | D66: Fabricación de maquinaria y equipo agropecuario, para la construcción y para la industria extractiva | E66: 15.01 | F66: 25.43350336 | G66: 0.5901664348 | H66: 2020-01-03 | I66: 115.9932423 | J66: 123.0426643 | K66: 0.9427074991 | N66: 0.07061340941 | O66: 0.0537419084 | P66: 0.07598566308 | Q66: 0.07002157124 | R66: -0.4096033013 | S66: =IF(R66="","",R66-R$6) -> -0.3164431356 | T66: 0.1635658915 | U66: =IF(T66="","",T66-T$6) -> 0.098176325 | V66: -0.331403118 | W66: =IF(V66="","",V66-V$6) -> -0.2118283955 | X66: -0.3199160724 | Y66: =IF(X66="","",X66-X$6) -> -0.2671272665 | Z66: -0.3247712866 | AA66: =IF(Z66="","",Z66-Z$6) -> -0.3422678658 | AB66: -0.5587050591 | AC66: =IF(AB66="","",AB66-AB$6) -> -0.6552199248 | AD66: -0.6099880884 | AE66: =IF(AD66="","",AD66-AD$6) -> -0.8310535303 | AF66: -0.48618211 | AG66: =IF(AF66="","",AF66-AF$6) -> -0.9103924214 | AH66: -0.6473194863 | AI66: =IF(AH66="","",AH66-AH$6) -> -1.031847628 | AJ66: 62.40741016 | AL66: 0.2057877813 | AM66: -0.2226368159 | AN66: 0.3285714286 | AO66: -0.3474207582 | AP66: 7 | AQ66: 5 | AR66: -0.3153973392 | AS66: 0.06386816981 | AT66: -0.6331610369 | AU66: 2020-01-03 | AV66: 2020-03-23
B67: BLL<XNYS> | C67: Ball Corp | D67: Fabricación de calderas, tanques y envases metálicos | E67: 64.56 | F67: 80.43003734 | G67: 0.8026851924 | H67: 2019-09-04 | I67: 241.8980563 | J67: 157.1562383 | K67: 1.539220199 | N67: -0.02018515708 | O67: -0.03705665809 | P67: -0.01570361335 | Q67: -0.02166770519 | R67: 0.0003828983645 | S67: =IF(R67="","",R67-R$6) -> 0.09354306402 | T67: -0.04482911673 | U67: =IF(T67="","",T67-T$6) -> -0.1102186832 | V67: -0.1589344509 | W67: =IF(V67="","",V67-V$6) -> -0.03935972834 | X67: 0.002952975145 | Y67: =IF(X67="","",X67-X$6) -> 0.05574178112 | Z67: 0.05120409802 | AA67: =IF(Z67="","",Z67-Z$6) -> 0.03370751885 | AB67: 0.7258353582 | AC67: =IF(AB67="","",AB67-AB$6) -> 0.6293204924 | AD67: 0.6672954532 | AE67: =IF(AD67="","",AD67-AD$6) -> 0.4462300113 | AF67: 0.8708773728 | AG67: =IF(AF67="","",AF67-AF$6) -> 0.4466670614 | AH67: 0.8627510044 | AI67: =IF(AH67="","",AH67-AH$6) -> 0.478222863 | AJ67: 38.41583633 | AL67: 0.1209087409 | AM67: -0.0943233945 | AN67: 0.1400879622 | AO67: -0.09451560751 | AP67: 5 | AQ67: 7 | AR67: 0.2887602672 | AS67: 0.03986401441 | AT67: -0.3542213616 | AU67: 2019-09-04 | AV67: 2020-03-23
B68: BAC<XNYS> | C68: Bank Of America Corp | D68: Bancos | E68: 23.57 | F68: 35.41403311 | G68: 0.6655553725 | H68: 2020-01-02 | I68: 1056.144665 | J68: 1656.968012 | K68: 0.6373959291 | N68: 0.0319614711 | O68: 0.01508997009 | P68: -0.01995841996 | Q68: -0.0259225118 | R68: -0.3265078513 | S68: =IF(R68="","",R68-R$6) -> -0.2333476856 | T68: 0.005117270788 | U68: =IF(T68="","",T68-T$6) -> -0.06027229568 | V68: -0.3146375765 | W68: =IF(V68="","",V68-V$6) -> -0.1950628539 | X68: -0.2829255812 | Y68: =IF(X68="","",X68-X$6) -> -0.2301367752 | Z68: -0.1900399009 | AA68: =IF(Z68="","",Z68-Z$6) -> -0.2075364801 | AB68: -0.1776241242 | AC68: =IF(AB68="","",AB68-AB$6) -> -0.2741389899 | AD68: 0.04424753539 | AE68: =IF(AD68="","",AD68-AD$6) -> -0.1768179065 | AF68: 0.7996190245 | AG68: =IF(AF68="","",AF68-AF$6) -> 0.3754087131 | AH68: 0.5635391001 | AI68: =IF(AH68="","",AH68-AH$6) -> 0.1790109588 | AJ68: 50.29580261 | AL68: 0.1779619698 | AM68: -0.1539735099 | AN68: 0.1328308997 | AO68: -0.2503346455 | AP68: 7 | AQ68: 5 | AR68: -0.1992487959 | AS68: 0.05192888094 | AT68: -0.4894679196 | AU68: 2020-01-02 | AV68: 2020-03-23
B69: BAX<XNYS> | C69: Baxter Intl Inc | D69: Fabricación de equipo no electrónico y material desechable de uso médico, dental y para laboratorio, y artículos oftálmicos | E69: 88.08 | F69: 94.14 | G69: 0.9356277884 | H69: 2020-04-20 | I69: 115.8584062 | J69: 226.6855486 | K69: 0.5110974514 | N69: -0.004070556309 | O69: -0.02094205732 | P69: -0.007884658708 | Q69: -0.01384875055 | R69: 0.05600596177 | S69: =IF(R69="","",R69-R$6) -> 0.1491661274 | T69: 0.04261363636 | U69: =IF(T69="","",T69-T$6) -> -0.02277593011 | V69: -0.03229349564 | W69: =IF(V69="","",V69-V$6) -> 0.08728122692 | X69: 0.1277483687 | Y69: =IF(X69="","",X69-X$6) -> 0.1805371746 | Z69: 0.160758091 | AA69: =IF(Z69="","",Z69-Z$6) -> 0.1432615118 | AB69: 0.295359651 | AC69: =IF(AB69="","",AB69-AB$6) -> 0.1988447853 | AD69: 0.6315727572 | AE69: =IF(AD69="","",AD69-AD$6) -> 0.4105073153 | AF69: 1.039216214 | AG69: =IF(AF69="","",AF69-AF$6) -> 0.6150059027 | AH69: 1.472251302 | AI69: =IF(AH69="","",AH69-AH$6) -> 1.087723161 | AJ69: 36.29870162 | AL69: 0.1249126729 | AM69: -0.1163106556 | AN69: 0.1183918989 | AO69: -0.1231279296 | AP69: 7 | AQ69: 5 | AR69: 0.6261705765 | AS69: 0.03735827266 | AT69: -0.2309605818 | AU69: 2020-02-06 | AV69: 2020-03-16 | AW69: 50
B70: BDX<XNYS> | C70: Becton, Dickinson And Company | D70: Fabricación de equipo no electrónico y material desechable de uso médico, dental y para laboratorio, y artículos oftálmicos | E70: 254.48 | F70: 285.0451518 | G70: 0.8927708413 | H70: 2020-02-05 | I70: 360.3174686 | J70: 362.0303719 | K70: 0.9952686198 | N70: -0.006907317073 | O70: -0.02377881808 | P70: 0.007721854829 | Q70: 0.001757762988 | R70: -0.0612069974 | S70: =IF(R70="","",R70-R$6) -> 0.03195316825 | T70: 0.01792 | U70: =IF(T70="","",T70-T$6) -> -0.04746956647 | V70: 0.0340753024 | W70: =IF(V70="","",V70-V$6) -> 0.153650025 | X70: 0.04620132418 | Y70: =IF(X70="","",X70-X$6) -> 0.09899013016 | Z70: 0.1091713888 | AA70: =IF(Z70="","",Z70-Z$6) -> 0.0916748096 | AB70: 0.1787867806 | AC70: =IF(AB70="","",AB70-AB$6) -> 0.08227191493 | AD70: 0.4494241472 | AE70: =IF(AD70="","",AD70-AD$6) -> 0.2283587053 | AF70: 0.6317018341 | AG70: =IF(AF70="","",AF70-AF$6) -> 0.2074915227 | AH70: 0.9273563558 | AI70: =IF(AH70="","",AH70-AH$6) -> 0.5428282144 | AJ70: 33.94333472 | AL70: 0.1137402528 | AM70: -0.117976153 | AN70: 0.09905557732 | AO70: -0.1357656806 | AP70: 9 | AQ70: 3 | AR70: 0.5256522701 | AS70: 0.03489513726 | AT70: -0.2963220082 | AU70: 2020-02-05 | AV70: 2020-03-23
B71: BRK.B<XNYS> | C71: Berkshire Hathaway Inc | D71: Instituciones de seguros | E71: 176.83 | F71: 230.2 | G71: 0.7681581234 | H71: 2020-01-17 | I71: 1018.077329 | J71: 979.3078996 | K71: 1.0395886 | N71: 0.01931058335 | O71: 0.002439082342 | P71: -0.05620196413 | Q71: -0.06216605597 | R71: -0.2192935982 | S71: =IF(R71="","",R71-R$6) -> -0.1261334326 | T71: -0.07423695094 | U71: =IF(T71="","",T71-T$6) -> -0.1396265174 | V71: -0.2223150673 | W71: =IF(V71="","",V71-V$6) -> -0.1027403447 | X71: -0.2009850436 | Y71: =IF(X71="","",X71-X$6) -> -0.1481962376 | Z71: -0.1550958001 | AA71: =IF(Z71="","",Z71-Z$6) -> -0.1725923793 | AB71: -0.09890949857 | AC71: =IF(AB71="","",AB71-AB$6) -> -0.1954243643 | AD71: 0.07156708278 | AE71: =IF(AD71="","",AD71-AD$6) -> -0.1494983591 | AF71: 0.2227216153 | AG71: =IF(AF71="","",AF71-AF$6) -> -0.2014886961 | AH71: 0.1922999123 | AI71: =IF(AH71="","",AH71-AH$6) -> -0.192228229 | AJ71: 31.43626882 | AL71: 0.1160993351 | AM71: -0.09592067406 | AN71: 0.07977915105 | AO71: -0.1139381603 | AP71: 6 | AQ71: 6 | AR71: -0.3942991048 | AS71: 0.03242030566 | AT71: -0.2956993918 | AU71: 2020-01-17 | AV71: 2020-03-23
B72: BBY<XNYS> | C72: Best Buy Co., Inc | D72: Tienda de repuestos, accesorios y llantas | E72: 78.63 | F72: 91.09177885 | G72: 0.8631953508 | H72: 2020-02-20 | I72: 112.7951282 | J72: 195.8225069 | K72: 0.5760069663 | N72: 0.03121311475 | O72: 0.01434161374 | P72: 0.02476215301 | Q72: 0.01879806116 | R72: -0.09620104097 | S72: =IF(R72="","",R72-R$6) -> -0.003040875313 | T72: 0.2200155159 | U72: =IF(T72="","",T72-T$6) -> 0.1546259494 | V72: -0.08809987815 | W72: =IF(V72="","",V72-V$6) -> 0.0314748444 | X72: 0.03870222587 | Y72: =IF(X72="","",X72-X$6) -> 0.09149103185 | Z72: 0.1027526312 | AA72: =IF(Z72="","",Z72-Z$6) -> 0.08525605204 | AB72: 0.1001231064 | AC72: =IF(AB72="","",AB72-AB$6) -> 0.003608240648 | AD72: 0.646072183 | AE72: =IF(AD72="","",AD72-AD$6) -> 0.4250067411 | AF72: 1.745918179 | AG72: =IF(AF72="","",AF72-AF$6) -> 1.321707868 | AH72: 1.468699712 | AI72: =IF(AH72="","",AH72-AH$6) -> 1.084171571 | AJ72: 50.90662356 | AL72: 0.1678832117 | AM72: -0.1525164449 | AN72: 0.3461403509 | AO72: -0.2395966871 | AP72: 8 | AQ72: 4 | AR72: 0.5122298382 | AS72: 0.05243090639 | AT72: -0.4435282674 | AU72: 2020-02-20 | AV72: 2020-03-23
B73: BIIB<XNAS> | C73: Biogen Inc | D73: Fabricación de productos farmacéuticos | E73: 314.02 | F73: 342.55 | G73: 0.9167128886 | H73: 2020-04-17 | I73: 353.5877761 | J73: 504.2677614 | K73: 0.7011905245 | N73: 3.184612069e-05 | O73: -0.01683965489 | P73: 0.05791193612 | Q73: 0.05194784428 | R73: 0.05826845954 | S73: =IF(R73="","",R73-R$6) -> 0.1514286252 | T73: -0.00924436031 | U73: =IF(T73="","",T73-T$6) -> -0.07463392678 | V73: -0.07286684382 | W73: =IF(V73="","",V73-V$6) -> 0.04670787874 | X73: 0.07082693947 | Y73: =IF(X73="","",X73-X$6) -> 0.1236157454 | Z73: 0.359511646 | AA73: =IF(Z73="","",Z73-Z$6) -> 0.3420150669 | AB73: 0.1642012383 | AC73: =IF(AB73="","",AB73-AB$6) -> 0.06768637256 | AD73: 0.2058213655 | AE73: =IF(AD73="","",AD73-AD$6) -> -0.01524407642 | AF73: 0.2982953985 | AG73: =IF(AF73="","",AF73-AF$6) -> -0.1259149129 | AH73: -0.1410193761 | AI73: =IF(AH73="","",AH73-AH$6) -> -0.5255475175 | AJ73: 46.6925112 | AL73: 0.2611068856 | AM73: -0.09422206012 | AN73: 0.2830083326 | AO73: -0.09395746975 | AP73: 8 | AQ73: 4 | AR73: 0.9771423124 | AS73: 0.05032673992 | AT73: -0.2115880835 | AU73: 2020-02-19 | AV73: 2020-03-12 | AW73: 41
B74: BLK<XNYS> | C74: Blackrock, Inc | D74: Casas de bolsa, casas de cambio y centros cambiarios | E74: 498.78 | F74: 568.1692103 | G74: =IFERROR(E74/F74,"") -> 0.8778722799 | H74: 2020-02-12 | I74: 222.3217082 | J74: 293.3390053 | K74: =IFERROR(I74/J74,"") -> 0.7579002592 | N74: 0.002794587748 | O74: -0.01407691326 | P74: -0.006493506494 | Q74: -0.01245759833 | R74: -0.0002698969593 | S74: =IF(R74="","",R74-R$6) -> 0.0928902687 | T74: 0.1060159212 | U74: =IF(T74="","",T74-T$6) -> 0.04062635477 | V74: -0.09568445172 | W74: =IF(V74="","",V74-V$6) -> 0.02389027083 | X74: 0.03220093795 | Y74: =IF(X74="","",X74-X$6) -> 0.08498974393 | Z74: 0.104144426 | AA74: =IF(Z74="","",Z74-Z$6) -> 0.08664784683 | AB74: 0.01597498669 | AC74: =IF(AB74="","",AB74-AB$6) -> -0.08053987902 | AD74: 0.4128048612 | AE74: =IF(AD74="","",AD74-AD$6) -> 0.1917394193 | AF74: 0.5554964448 | AG74: =IF(AF74="","",AF74-AF$6) -> 0.1312861334 | AH74: 0.5362243216 | AI74: =IF(AH74="","",AH74-AH$6) -> 0.1516961802 | AJ74: 45.30711277 | AL74: 0.1352391424 | AM74: -0.1365459906 | AN74: 0.1410778008 | AO74: -0.1220062577 | AP74: 7 | AQ74: 5 | AR74: 0.4692801036 | AS74: 0.04671447412 | AT74: -0.4237280126 | AU74: 2020-02-12 | AV74: 2020-03-23
B75: BA<XNYS> | C75: Boeing Co | D75: Fabricación de equipo aeroespacial | E75: 133.44 | F75: 382.3702834 | G75: =IFERROR(E75/F75,"") -> 0.3489810945 | H75: 2019-09-26 | I75: 3008.677418 | J75: 2389.881815 | K75: =IFERROR(I75/J75,"") -> 1.258923098 | N75: 0.03723280218 | O75: =IF(N75="","",N75-N$6) -> 0.02036130117 | P75: -0.05375124096 | Q75: -0.0597153328 | R75: -0.5879361209 | S75: =IF(R75="","",R75-R$6) -> -0.4947759552 | T75: -0.09144141077 | U75: =IF(T75="","",T75-T$6) -> -0.1568309772 | V75: -0.6013840259 | W75: =IF(V75="","",V75-V$6) -> -0.4818093034 | X75: -0.6175671531 | Y75: =IF(X75="","",X75-X$6) -> -0.5647783471 | Z75: -0.6201797383 | AA75: =IF(Z75="","",Z75-Z$6) -> -0.6376763175 | AB75: -0.588219292 | AC75: =IF(AB75="","",AB75-AB$6) -> -0.6847341577 | AD75: -0.2328861916 | AE75: =IF(AD75="","",AD75-AD$6) -> -0.4539516335 | AF75: 0.1063029133 | AG75: =IF(AF75="","",AF75-AF$6) -> -0.3179073981 | AH75: 0.03578507921 | AI75: =IF(AH75="","",AH75-AH$6) -> -0.3487430622 | AJ75: 73.70496845 | AL75: 0.2431860902 | AM75: -0.2384841363 | AN75: 0.08357201681 | AO75: -0.4578895714 | AP75: 4 | AQ75: 8 | AR75: -0.7282281376 | AS75: 0.07524362165 | AT75: -0.7515235777 | AU75: 2019-09-26 | AV75: 2020-03-20
B76: BKNG<XNAS> | C76: Booking Hldg Inc | D76: Agencias de viajes y servicios de reservaciones | E76: 1430.83 | F76: 2086.9 | G76: 0.6856246107 | H76: 2020-01-10 | I76: 1249.764187 | J76: 744.9687565 | K76: =IFERROR(I76/J76,"") -> 1.677606176 | N76: -0.009058736347 | O76: -0.02593023736 | P76: -0.03359516943 | Q76: -0.03955926127 | R76: -0.3033017972 | S76: =IF(R76="","",R76-R$6) -> -0.2101416316 | T76: 0.04283340379 | U76: =IF(T76="","",T76-T$6) -> -0.02255616268 | V76: -0.2507135039 | W76: =IF(V76="","",V76-V$6) -> -0.1311387814 | X76: -0.2385921594 | Y76: =IF(X76="","",X76-X$6) -> -0.1858033534 | Z76: -0.1831437004 | AA76: =IF(Z76="","",Z76-Z$6) -> -0.2006402796 | AB76: -0.3380690229 | AC76: =IF(AB76="","",AB76-AB$6) -> -0.4345838887 | AD76: -0.2484781318 | AE76: =IF(AD76="","",AD76-AD$6) -> -0.4695435738 | AF76: 0.1445724342 | AG76: =IF(AF76="","",AF76-AF$6) -> -0.2796378772 | AH76: 0.1876473322 | AI76: =IF(AH76="","",AH76-AH$6) -> -0.1968808091 | AJ76: 42.11581759 | AL76: 0.1100671665 | AM76: -0.1123743501 | AN76: 0.1319208801 | AO76: -0.2066098156 | AP76: 6 | AQ76: 6 | AR76: -0.3214386104 | AS76: 0.04324359763 | AT76: -0.4478700465 | AU76: 2020-01-10 | AV76: 2020-03-23
B77: BWA<XNYS> | C77: Borgwarner Inc | D77: Fabricación de carrocerías y remolques | E77: 29.39 | F77: 45.86842756 | G77: 0.6407457495 | H77: 2019-11-08 | I77: 116.2980522 | J77: 78.06801774 | K77: =IFERROR(I77/J77,"") -> 1.489701616 | N77: 0.05567528736 | O77: 0.03880378634 | P77: 0.02870143507 | Q77: 0.02273734323 | R77: -0.3187126805 | S77: =IF(R77="","",R77-R$6) -> -0.2255525149 | T77: 0.1511946729 | U77: =IF(T77="","",T77-T$6) -> 0.08580510647 | V77: -0.1196233566 | W77: =IF(V77="","",V77-V$6) -> -4.863405687e-05 | X77: -0.3592542505 | Y77: =IF(X77="","",X77-X$6) -> -0.3064654445 | Z77: -0.2392416033 | AA77: =IF(Z77="","",Z77-Z$6) -> -0.2567381825 | AB77: -0.3866434473 | AC77: =IF(AB77="","",AB77-AB$6) -> -0.4831583131 | AD77: -0.2587883266 | AE77: =IF(AD77="","",AD77-AD$6) -> -0.4798537685 | AF77: -0.07720765512 | AG77: =IF(AF77="","",AF77-AF$6) -> -0.5014179665 | AH77: -0.4827518701 | AI77: =IF(AH77="","",AH77-AH$6) -> -0.8672800115 | AJ77: 46.70251519 | AL77: 0.1615782057 | AM77: -0.1148497084 | AN77: 0.1832018038 | AO77: -0.2287974684 | AP77: 7 | AQ77: 5 | AR77: -0.3445943575 | AS77: 0.04818702075 | AT77: -0.5698566302 | AU77: 2019-11-08 | AV77: 2020-03-18
B78: BXP<XNYS> | C78: Boston Properties Inc | D78: Otros fondos | E78: 86.91 | F78: 145.9691793 | G78: 0.595399662 | H78: 2020-02-18 | I78: 158.1361345 | J78: 100.7460418 | K78: =IFERROR(I78/J78,"") -> 1.569651091 | N78: 0.01234711706 | O78: -0.004524383947 | P78: -0.1056801811 | Q78: -0.1116442729 | R78: -0.3629232255 | S78: =IF(R78="","",R78-R$6) -> -0.2697630598 | T78: -0.1301171054 | U78: =IF(T78="","",T78-T$6) -> -0.1955066719 | V78: -0.3845742826 | W78: =IF(V78="","",V78-V$6) -> -0.26499956 | X78: -0.3605823528 | Y78: =IF(X78="","",X78-X$6) -> -0.3077935468 | Z78: -0.3125603984 | AA78: =IF(Z78="","",Z78-Z$6) -> -0.3300569776 | AB78: -0.2466266713 | AC78: =IF(AB78="","",AB78-AB$6) -> -0.343141537 | AD78: -0.2323843881 | AE78: =IF(AD78="","",AD78-AD$6) -> -0.45344983 | AF78: -0.2596283944 | AG78: =IF(AF78="","",AF78-AF$6) -> -0.6838387058 | AH78: -0.2503359218 | AI78: =IF(AH78="","",AH78-AH$6) -> -0.6348640632 | AJ78: 44.64721924 | AL78: 0.1239573977 | AM78: -0.1719630958 | AN78: 0.05815209008 | AO78: -0.2771555688 | AP78: 7 | AQ78: 5 | AR78: -0.5766305406 | AS78: 0.04497553588 | AT78: -0.4716968341 | AU78: 2020-02-18 | AV78: 2020-03-23
B79: BSX<XNYS> | C79: Boston Scientific Corp | D79: Fabricación de equipo no electrónico y material desechable de uso médico, dental y para laboratorio, y artículos oftálmicos | E79: 38.18 | F79: 45.71 | G79: 0.8352658062 | H79: 2020-01-09 | I79: 388.6847703 | J79: 314.3518546 | K79: =IFERROR(I79/J79,"") -> 1.23646406 | N79: 0.03189189189 | O79: 0.01502039088 | P79: 0.01867662753 | Q79: 0.01271253569 | R79: -0.155683326 | S79: =IF(R79="","",R79-R$6) -> -0.06252316031 | T79: 0.08682038144 | U79: =IF(T79="","",T79-T$6) -> 0.02143081497 | V79: -0.09504621948 | W79: =IF(V79="","",V79-V$6) -> 0.02452850307 | X79: -0.05751666255 | Y79: =IF(X79="","",X79-X$6) -> -0.004727856574 | Z79: 0.04032697548 | AA79: =IF(Z79="","",Z79-Z$6) -> 0.0228303963 | AB79: 0.2799195441 | AC79: =IF(AB79="","",AB79-AB$6) -> 0.1834046784 | AD79: 0.4467601364 | AE79: =IF(AD79="","",AD79-AD$6) -> 0.2256946945 | AF79: 0.7330912392 | AG79: =IF(AF79="","",AF79-AF$6) -> 0.3088809278 | AH79: 1.180468304 | AI79: =IF(AH79="","",AH79-AH$6) -> 0.7959401624 | AJ79: 40.1004108 | AL79: 0.09252806814 | AM79: -0.1478502938 | AN79: 0.1486362243 | AO79: -0.1273067665 | AP79: 7 | AQ79: 5 | AR79: 0.318996738 | AS79: 0.04078754276 | AT79: -0.4349157734 | AU79: 2020-01-09 | AV79: 2020-03-23
B80: BMY<XNYS> | C80: Bristol Myers Squibb Co | D80: Fabricación de productos farmacéuticos | E80: 61.05 | F80: 66.87648851 | G80: 0.9128768774 | H80: 2020-01-22 | I80: 1034.026988 | J80: 790.798107 | K80: =IFERROR(I80/J80,"") -> 1.307573929 | N80: 0.0001638269987 | O80: -0.01670767401 | P80: 0.003946719289 | Q80: -0.002017372552 | R80: -0.03427537115 | S80: =IF(R80="","",R80-R$6) -> 0.0588847945 | T80: 0.04806866953 | U80: =IF(T80="","",T80-T$6) -> -0.01732089694 | V80: -0.07086357973 | W80: =IF(V80="","",V80-V$6) -> 0.04871114282 | X80: 0.06842233584 | Y80: =IF(X80="","",X80-X$6) -> 0.1212111418 | Z80: 0.3290745967 | AA80: =IF(Z80="","",Z80-Z$6) -> 0.3115780175 | AB80: 0.2863978986 | AC80: =IF(AB80="","",AB80-AB$6) -> 0.1898830329 | AD80: 0.2141940959 | AE80: =IF(AD80="","",AD80-AD$6) -> -0.00687134603 | AF80: -0.03867472095 | AG80: =IF(AF80="","",AF80-AF$6) -> -0.4628850324 | AH80: 0.04702994011 | AI80: =IF(AH80="","",AH80-AH$6) -> -0.3374982013 | AJ80: 28.54593516 | AL80: 0.06120689655 | AM80: -0.07417916498 | AN80: 0.1408401114 | AO80: -0.06179507546 | AP80: 6 | AQ80: 6 | AR80: 1.270963711 | AS80: 0.02933303625 | AT80: -0.3118789856 | AU80: 2020-01-21 | AV80: 2020-03-23
B81: BR<XNYS> | C81: Broadridge Financial Solutions, Inc | D81: Servicios de apoyo secretarial, fotocopiado, cobranza, investigación crediticia y similares | E81: 116.81 | F81: 132.9394204 | G81: 0.8786708989 | H81: 2019-07-18 | I81: 103.7171175 | J81: 88.44228433 | K81: =IFERROR(I81/J81,"") -> 1.172709619 | N81: 0.001028365756 | O81: -0.01584313526 | P81: 0.006982758621 | Q81: 0.001018666781 | R81: -0.04921958776 | S81: =IF(R81="","",R81-R$6) -> 0.0439405779 | T81: 0.1440744368 | U81: =IF(T81="","",T81-T$6) -> 0.07868487036 | V81: -0.003314279777 | W81: =IF(V81="","",V81-V$6) -> 0.1162604428 | X81: -0.0132717908 | Y81: =IF(X81="","",X81-X$6) -> 0.03951701518 | Z81: 0.02733781955 | AA81: =IF(Z81="","",Z81-Z$6) -> 0.009841240382 | AB81: 0.07748144068 | AC81: =IF(AB81="","",AB81-AB$6) -> -0.01903342503 | AD81: 0.7973770478 | AE81: =IF(AD81="","",AD81-AD$6) -> 0.5763116059 | AF81: 1.079922448 | AG81: =IF(AF81="","",AF81-AF$6) -> 0.6557121371 | AH81: 1.509833044 | AI81: =IF(AH81="","",AH81-AH$6) -> 1.125304903 | AJ81: 35.0429005 | AL81: 0.125445051 | AM81: -0.08808290155 | AN81: 0.2232415902 | AO81: -0.1241292488 | AP81: 6 | AQ81: 6 | AR81: 0.2577962633 | AS81: 0.03629629099 | AT81: -0.3661774682 | AU81: 2019-07-18 | AV81: 2020-03-23
B82: BF.B<XNYS> | C82: Brown-Forman Corp | D82: Industria de las bebidas | E82: 65.97 | F82: 71.69727968 | G82: 0.9201185916 | H82: 2020-01-23 | I82: 46.27426068 | J82: 73.12649005 | K82: =IFERROR(I82/J82,"") -> 0.6327975081 | N82: 0.02041763341 | O82: 0.003546132399 | P82: 0.06061093247 | Q82: 0.05464684063 | R82: -0.02135315484 | S82: =IF(R82="","",R82-R$6) -> 0.07180701081 | T82: 0.07758902319 | U82: =IF(T82="","",T82-T$6) -> 0.01219945673 | V82: -0.03842257656 | W82: =IF(V82="","",V82-V$6) -> 0.08115214599 | X82: 0.02836991448 | Y82: =IF(X82="","",X82-X$6) -> 0.08115872046 | Z82: 0.2627990607 | AA82: =IF(Z82="","",Z82-Z$6) -> 0.2453024815 | AB82: 0.2187990782 | AC82: =IF(AB82="","",AB82-AB$6) -> 0.1222842125 | AD82: 0.7655788447 | AE82: =IF(AD82="","",AD82-AD$6) -> 0.5445134028 | AF82: 0.8191496042 | AG82: =IF(AF82="","",AF82-AF$6) -> 0.3949392928 | AH82: 0.9391870518 | AI82: =IF(AH82="","",AH82-AH$6) -> 0.5546589105 | AJ82: 37.9184312 | AL82: 0.1472684086 | AM82: -0.1355512299 | AN82: 0.1205188254 | AO82: -0.09351975853 | AP82: 8 | AQ82: 4 | AR82: 0.8918947866 | AS82: 0.03903284385 | AT82: -0.3517187792 | AU82: 2020-01-23 | AV82: 2020-03-23
B83: CHRW<XNAS> | C83: C.H. Robinson Worldwide, Inc | D83: Servicios de intermediación para el transporte de carga | E83: 73.8 | F83: 89.28010881 | G83: 0.8266118958 | H83: 2019-10-29 | I83: 108.2455596 | J83: 120.808056 | K83: =IFERROR(I83/J83,"") -> 0.8960127595 | N83: 0.02571230021 | O83: 0.008840799199 | P83: 0.04090267983 | Q83: 0.03493858799 | R83: -0.04941760179 | S83: =IF(R83="","",R83-R$6) -> 0.04374256387 | T83: 0.01345784125 | U83: =IF(T83="","",T83-T$6) -> -0.05193172521 | V83: -0.0005976937327 | W83: =IF(V83="","",V83-V$6) -> 0.1189770288 | X83: -0.04144364839 | Y83: =IF(X83="","",X83-X$6) -> 0.01134515759 | Z83: -0.09023189941 | AA83: =IF(Z83="","",Z83-Z$6) -> -0.1077284786 | AB83: -0.07796344804 | AC83: =IF(AB83="","",AB83-AB$6) -> -0.1744783138 | AD83: 0.1085023703 | AE83: =IF(AD83="","",AD83-AD$6) -> -0.1125630716 | AF83: 0.1136225272 | AG83: =IF(AF83="","",AF83-AF$6) -> -0.3105877842 | AH83: 0.2657845569 | AI83: =IF(AH83="","",AH83-AH$6) -> -0.1187435845 | AJ83: 32.50747785 | AL83: 0.06221570066 | AM83: -0.148475475 | AN83: 0.07099697885 | AO83: -0.1078084454 | AP83: 7 | AQ83: 5 | AR83: -0.1339468581 | AS83: 0.03297291353 | AT83: -0.326725731 | AU83: 2019-10-29 | AV83: 2020-03-12
B84: COG<XNYS> | C84: Cabot Oil & Gas Corp | D84: Extracción de petróleo y gas | E84: 20.51 | F84: 26.88713806 | G84: 0.7628182648 | H84: 2019-05-21 | I84: 71.83863365 | J84: 149.268176 | K84: =IFERROR(I84/J84,"") -> 0.4812722684 | N84: 0.02652652653 | O84: 0.009655025515 | P84: -0.0513413506 | Q84: -0.05730544244 | R84: 0.1857432484 | S84: =IF(R84="","",R84-R$6) -> 0.278903414 | T84: 0.06878582595 | U84: =IF(T84="","",T84-T$6) -> 0.003396259483 | V84: 0.4009562842 | W84: =IF(V84="","",V84-V$6) -> 0.5205310067 | X84: 0.1237773519 | Y84: =IF(X84="","",X84-X$6) -> 0.1765661579 | Z84: -0.1815481218 | AA84: =IF(Z84="","",Z84-Z$6) -> -0.199044701 | AB84: -0.09345346736 | AC84: =IF(AB84="","",AB84-AB$6) -> -0.1899683331 | AD84: -0.1004453349 | AE84: =IF(AD84="","",AD84-AD$6) -> -0.3215107768 | AF84: -0.1010767985 | AG84: =IF(AF84="","",AF84-AF$6) -> -0.5252871099 | AH84: -0.3878613991 | AI84: =IF(AH84="","",AH84-AH$6) -> -0.7723895405 | AJ84: 48.07351612 | AL84: 0.1562942008 | AM84: -0.1206975677 | AN84: 0.2577079697 | AO84: -0.1854157791 | AP84: 5 | AQ84: 7 | AR84: -0.1350010609 | AS84: 0.04995819377 | AT84: -0.4975292658 | AU84: 2019-05-21 | AV84: 2020-02-27
B85: CDNS<XNAS> | C85: Cadence Design Systems, Inc | D85: Edición de software | E85: 82.46 | F85: 82.46 | G85: 1 | H85: 2020-05-08 | I85: 92.82266574 | J85: 136.3317481 | K85: =IFERROR(I85/J85,"") -> 0.6808587659 | N85: 0.01339560034 | O85: -0.003475900668 | P85: 0.01639344262 | Q85: 0.01042935078 | R85: 0.1888696655 | S85: =IF(R85="","",R85-R$6) -> 0.2820298312 | T85: 0.1478285078 | U85: =IF(T85="","",T85-T$6) -> 0.08243894133 | V85: 0.1211420802 | W85: =IF(V85="","",V85-V$6) -> 0.2407168028 | X85: 0.2289120715 | Y85: =IF(X85="","",X85-X$6) -> 0.2817008775 | Z85: 0.1961125616 | AA85: =IF(Z85="","",Z85-Z$6) -> 0.1786159825 | AB85: 1.016136919 | AC85: =IF(AB85="","",AB85-AB$6) -> 0.9196220536 | AD85: 1.511727079 | AE85: =IF(AD85="","",AD85-AD$6) -> 1.290661637 | AF85: 2.531477516 | AG85: =IF(AF85="","",AF85-AF$6) -> 2.107267205 | AH85: 3.299270073 | AI85: =IF(AH85="","",AH85-AH$6) -> 2.914741932 | AJ85: 44.53358139 | AL85: 0.1339061941 | AM85: -0.1259804706 | AN85: 0.2284978801 | AO85: -0.08279018167 | AP85: 6 | AQ85: 6 | AR85: 0.6323270245 | AS85: 0.04603887332 | AT85: -0.3211697076 | AU85: 2020-02-19 | AV85: 2020-03-18 | AW85: 46
B86: CPB<XNYS> | C86: Campbell Soup Co | D86: Industria alimentaria | E86: 51.26 | F86: 53.43683355 | G86: 0.9592634256 | H86: 2020-03-17 | I86: 55.1011681 | J86: 108.505715 | K86: =IFERROR(I86/J86,"") -> 0.5078181191 | N86: 0.02030254777 | O86: 0.00343104676 | P86: 0.0256102441 | Q86: 0.01964615226 | R86: 0.05265241872 | S86: =IF(R86="","",R86-R$6) -> 0.1458125844 | T86: 0.1104852686 | U86: =IF(T86="","",T86-T$6) -> 0.04509570216 | V86: 0.05660275844 | W86: =IF(V86="","",V86-V$6) -> 0.176177481 | X86: 0.1248017845 | Y86: =IF(X86="","",X86-X$6) -> 0.1775905905 | Z86: 0.3698164227 | AA86: =IF(Z86="","",Z86-Z$6) -> 0.3523198435 | AB86: 0.3281198453 | AC86: =IF(AB86="","",AB86-AB$6) -> 0.2316049796 | AD86: -0.02288849197 | AE86: =IF(AD86="","",AD86-AD$6) -> -0.2439539339 | AF86: -0.09496577119 | AG86: =IF(AF86="","",AF86-AF$6) -> -0.5191760826 | AH86: 0.2923672264 | AI86: =IF(AH86="","",AH86-AH$6) -> -0.09216091497 | AJ86: 30.32091885 | AL86: 0.1010860485 | AM86: -0.06240713224 | AN86: 0.1035527403 | AO86: -0.06757594544 | AP86: 9 | AQ86: 3 | AR86: 1.366929476 | AS86: 0.03168709874 | AT86: -0.2308692422 | AU86: 2020-03-17 | AV86: 2020-03-25
B87: COF<XNYS> | C87: Capital One Financial Corp | D87: Bancos | E87: 62.2 | F87: 105.6480563 | G87: 0.5887472254 | H87: 2020-01-22 | I87: 185.911757 | J87: 229.5633594 | K87: =IFERROR(I87/J87,"") -> 0.8098494353 | N87: 0.02946044356 | O87: 0.01258894255 | P87: -0.03317195526 | Q87: -0.0391360471 | R87: -0.3892269577 | S87: =IF(R87="","",R87-R$6) -> -0.296066792 | T87: 0.1038748973 | U87: =IF(T87="","",T87-T$6) -> 0.03848533088 | V87: -0.3849530042 | W87: =IF(V87="","",V87-V$6) -> -0.2653782816 | X87: -0.3537461055 | Y87: =IF(X87="","",X87-X$6) -> -0.3009572995 | Z87: -0.29424586 | AA87: =IF(Z87="","",Z87-Z$6) -> -0.3117424392 | AB87: -0.2810991186 | AC87: =IF(AB87="","",AB87-AB$6) -> -0.3776139843 | AD87: -0.1957950701 | AE87: =IF(AD87="","",AD87-AD$6) -> -0.416860512 | AF87: -0.02726652724 | AG87: =IF(AF87="","",AF87-AF$6) -> -0.4514768386 | AH87: -0.1749776322 | AI87: =IF(AH87="","",AH87-AH$6) -> -0.5595057736 | AJ87: 62.38077959 | AL87: 0.1875437369 | AM87: -0.2387424492 | AN87: 0.284410948 | AO87: -0.428733288 | AP87: 7 | AQ87: 5 | AR87: -0.2511882777 | AS87: 0.06324464862 | AT87: -0.6025293714 | AU87: 2020-01-22 | AV87: 2020-04-03
B88: CAH<XNYS> | C88: Cardinal Health, Inc | D88: Comercio al por mayor de remédios | E88: 49.88 | F88: 59.81991614 | G88: 0.8338360067 | H88: 2020-02-20 | I88: 138.0173116 | J88: 136.1495742 | K88: =IFERROR(I88/J88,"") -> 1.013718275 | N88: 0.02802967848 | O88: 0.01115817747 | P88: 0.008084074374 | Q88: 0.002119982533 | R88: -0.003946786745 | S88: =IF(R88="","",R88-R$6) -> 0.08921337891 | T88: 0.00971659919 | U88: =IF(T88="","",T88-T$6) -> -0.05567296728 | V88: -0.134952412 | W88: =IF(V88="","",V88-V$6) -> -0.01537768942 | X88: -0.05372378401 | Y88: =IF(X88="","",X88-X$6) -> -0.0009349780357 | Z88: 0.04441533642 | AA88: =IF(Z88="","",Z88-Z$6) -> 0.02691875724 | AB88: 0.0283254385 | AC88: =IF(AB88="","",AB88-AB$6) -> -0.06818942722 | AD88: -0.2292408645 | AE88: =IF(AD88="","",AD88-AD$6) -> -0.4503063064 | AF88: -0.2606734414 | AG88: =IF(AF88="","",AF88-AF$6) -> -0.6848837528 | AH88: -0.3320137968 | AI88: =IF(AH88="","",AH88-AH$6) -> -0.7165419382 | AJ88: 41.27655873 | AL88: 0.1233781552 | AM88: -0.1286742035 | AN88: 0.1312390791 | AO88: -0.07207187219 | AP88: 8 | AQ88: 4 | AR88: 0.3011569064 | AS88: 0.04268961129 | AT88: -0.3214167494 | AU88: 2020-02-20 | AV88: 2020-03-23
B89: KMX<XNYS> | C89: Carmax Inc | D89: Comercio al por menor | E89: 76.69 | F89: 101.9 | G89: 0.7526005888 | H89: 2020-02-20 | I89: 119.6117825 | J89: 130.064107 | K89: =IFERROR(I89/J89,"") -> 0.9196371331 | N89: 0.05242212159 | O89: 0.03555062057 | P89: 0.04127630686 | Q89: 0.03531221502 | R89: -0.1252423862 | S89: =IF(R89="","",R89-R$6) -> -0.03208222057 | T89: 0.2130654856 | U89: =IF(T89="","",T89-T$6) -> 0.1476759191 | V89: -0.2036344756 | W89: =IF(V89="","",V89-V$6) -> -0.08405975304 | X89: -0.1831060929 | Y89: =IF(X89="","",X89-X$6) -> -0.1303172869 | Z89: -0.01312572385 | AA89: =IF(Z89="","",Z89-Z$6) -> -0.03062230302 | AB89: 0.2144101346 | AC89: =IF(AB89="","",AB89-AB$6) -> 0.1178952689 | AD89: 0.2722295952 | AE89: =IF(AD89="","",AD89-AD$6) -> 0.05116415331 | AF89: 0.5213251339 | AG89: =IF(AF89="","",AF89-AF$6) -> 0.0971148225 | AH89: 0.07213756466 | AI89: =IF(AH89="","",AH89-AH$6) -> -0.3123905767 | AJ89: 54.0855896 | AL89: 0.1807127883 | AM89: -0.2058100882 | AN89: 0.3681961731 | AO89: -0.3834612301 | AP89: 8 | AQ89: 4 | AR89: 0.2358479671 | AS89: 0.05539163022 | AT89: -0.5655544652 | AU89: 2020-02-20 | AV89: 2020-03-20
B90: CCL<XNYS> | C90: Carnival Corp | D90: Transporte por agua | E90: 14.21 | F90: 52.0213685 | G90: 0.2731569817 | H90: 2019-05-10 | I90: 586.6551039 | J90: 363.6896118 | K90: =IFERROR(I90/J90,"") -> 1.61306533 | N90: 0.0502586844 | O90: 0.03338718339 | P90: -0.1062893082 | Q90: -0.1122534 | R90: -0.7171778542 | S90: =IF(R90="","",R90-R$6) -> -0.6240176885 | T90: 0.1851542952 | U90: =IF(T90="","",T90-T$6) -> 0.1197647288 | V90: -0.6593400551 | W90: =IF(V90="","",V90-V$6) -> -0.5397653326 | X90: -0.6771952841 | Y90: =IF(X90="","",X90-X$6) -> -0.6244064782 | Z90: -0.7252249096 | AA90: =IF(Z90="","",Z90-Z$6) -> -0.7427214888 | AB90: -0.7571153433 | AC90: =IF(AB90="","",AB90-AB$6) -> -0.853630209 | AD90: -0.7491531317 | AE90: =IF(AD90="","",AD90-AD$6) -> -0.9702185736 | AF90: -0.6714214458 | AG90: =IF(AF90="","",AF90-AF$6) -> -1.095631757 | AH90: -0.6412880161 | AI90: =IF(AH90="","",AH90-AH$6) -> -1.025816158 | AJ90: 98.25274766 | AL90: 0.2025912839 | AM90: -0.3318147304 | AN90: 0.2072892938 | AO90: -0.6063956964 | AP90: 4 | AQ90: 8 | AR90: -0.6214044833 | AS90: 0.09498762621 | AT90: -0.8467937267 | AU90: 2019-05-10 | AV90: 2020-04-02
B91: CAT<XNYS> | C91: Caterpillar Inc | D91: Fabricación de maquinaria y equipo agropecuario, para la construcción y para la industria extractiva | E91: 112.11 | F91: 148.1215889 | G91: 0.7568781893 | H91: 2020-01-02 | I91: 434.439479 | J91: 525.6398321 | K91: =IFERROR(I91/J91,"") -> 0.8264964952 | N91: 0.04492496971 | O91: 0.0280534687 | P91: -0.03669015295 | Q91: -0.04265424479 | R91: -0.2285152097 | S91: =IF(R91="","",R91-R$6) -> -0.135355044 | T91: -0.1119366913 | U91: =IF(T91="","",T91-T$6) -> -0.1773262577 | V91: -0.1516887941 | W91: =IF(V91="","",V91-V$6) -> -0.03211407154 | X91: -0.2310146204 | Y91: =IF(X91="","",X91-X$6) -> -0.1782258145 | Z91: -0.1230620093 | AA91: =IF(Z91="","",Z91-Z$6) -> -0.1405585884 | AB91: -0.2087512535 | AC91: =IF(AB91="","",AB91-AB$6) -> -0.3052661192 | AD91: 0.22136315 | AE91: =IF(AD91="","",AD91-AD$6) -> 0.0002977081403 | AF91: 0.7131778989 | AG91: =IF(AF91="","",AF91-AF$6) -> 0.2889675875 | AH91: 0.5018756717 | AI91: =IF(AH91="","",AH91-AH$6) -> 0.1173475303 | AJ91: 40.58913689 | AL91: 0.1033206315 | AM91: -0.1428218433 | AN91: 0.1375511226 | AO91: -0.1043381205 | AP91: 6 | AQ91: 6 | AR91: -0.1542308112 | AS91: 0.04151142036 | AT91: -0.3855425757 | AU91: 2020-01-02 | AV91: 2020-03-23
B92: CBOE<XNAS> | C92: CBOE Global Markets, Inc | D92: Casas de bolsa, casas de cambio y centros cambiarios | E92: 100.18 | F92: 127.5501039 | G92: 0.7854168433 | H92: 2020-02-06 | I92: 50.03359866 | J92: 83.43001777 | K92: =IFERROR(I92/J92,"") -> 0.5997073954 | N92: 0.007239091094 | O92: -0.009632409918 | P92: 0.008049909438 | Q92: 0.002085817598 | R92: -0.1626801936 | S92: =IF(R92="","",R92-R$6) -> -0.06952002794 | T92: 0.04681295716 | U92: =IF(T92="","",T92-T$6) -> -0.01857660931 | V92: -0.1800360962 | W92: =IF(V92="","",V92-V$6) -> -0.06046137367 | X92: -0.122810702 | Y92: =IF(X92="","",X92-X$6) -> -0.07002189602 | Z92: -0.01229878888 | AA92: =IF(Z92="","",Z92-Z$6) -> -0.02979536805 | AB92: 0.002195686857 | AC92: =IF(AB92="","",AB92-AB$6) -> -0.09431917886 | AD92: 0.2600286239 | AE92: =IF(AD92="","",AD92-AD$6) -> 0.03896318197 | AF92: 0.6659454478 | AG92: =IF(AF92="","",AF92-AF$6) -> 0.2417351364 | AH92: 0.8617296687 | AI92: =IF(AH92="","",AH92-AH$6) -> 0.4772015273 | AJ92: 39.70649944 | AL92: 0.13525 | AM92: -0.1433250508 | AN92: 0.1135014006 | AO92: -0.2171052632 | AP92: 8 | AQ92: 4 | AR92: 0.1354310026 | AS92: 0.04046607438 | AT92: -0.4053317272 | AU92: 2020-02-06 | AV92: 2020-03-18
B93: CBRE<XNYS> | C93: CBRE Group, Inc | D93: Servicios inmobiliarios | E93: 41.6 | F93: 64.25 | G93: 0.6474708171 | H93: 2020-02-10 | I93: 54.683408 | J93: 83.80365488 | K93: =IFERROR(I93/J93,"") -> 0.6525181757 | N93: 0.0173636586 | O93: 0.0004921575837 | P93: -0.0309806662 | Q93: -0.03694475804 | R93: -0.3212595856 | S93: =IF(R93="","",R93-R$6) -> -0.2280994199 | T93: -0.08086610694 | U93: =IF(T93="","",T93-T$6) -> -0.1462556734 | V93: -0.3503045447 | W93: =IF(V93="","",V93-V$6) -> -0.2307298222 | X93: -0.2421206048 | Y93: =IF(X93="","",X93-X$6) -> -0.1893317989 | Z93: -0.1590863149 | AA93: =IF(Z93="","",Z93-Z$6) -> -0.1765828941 | AB93: -0.1049913941 | AC93: =IF(AB93="","",AB93-AB$6) -> -0.2015062599 | AD93: 0.1450591797 | AE93: =IF(AD93="","",AD93-AD$6) -> -0.07600626217 | AF93: 0.4178595774 | AG93: =IF(AF93="","",AF93-AF$6) -> -0.006350734035 | AH93: 0.1078561917 | AI93: =IF(AH93="","",AH93-AH$6) -> -0.2766719496 | AJ93: 52.07549232 | AL93: 0.1354748603 | AM93: -0.1720569211 | AN93: 0.138424821 | AO93: -0.3282864268 | AP93: 7 | AQ93: 5 | AR93: -0.1176676281 | AS93: 0.0531301569 | AT93: -0.5357198444 | AU93: 2020-02-10 | AV93: 2020-03-23
B94: CDW<XNAS> | C94: CDW Corp | D94: Ventas por correo o medio electrónico | E94: 108.54 | F94: 144.2195796 | G94: 0.7526023881 | H94: 2019-12-26 | I94: 63.2424591 | J94: 136.503069 | K94: =IFERROR(I94/J94,"") -> 0.463304302 | N94: 0.01753070217 | O94: 0.0006592011541 | P94: -0.02039711191 | Q94: -0.02636120375 | R94: -0.2379663722 | S94: =IF(R94="","",R94-R$6) -> -0.1448062065 | T94: 0.06130830155 | U94: =IF(T94="","",T94-T$6) -> -0.004081264915 | V94: -0.179489798 | W94: =IF(V94="","",V94-V$6) -> -0.05991507544 | X94: -0.1825169418 | Y94: =IF(X94="","",X94-X$6) -> -0.1297281359 | Z94: 0.03874015269 | AA94: =IF(Z94="","",Z94-Z$6) -> 0.02124357352 | AB94: 0.4494234165 | AC94: =IF(AB94="","",AB94-AB$6) -> 0.3529085508 | AD94: 0.9024085998 | AE94: =IF(AD94="","",AD94-AD$6) -> 0.6813431579 | AF94: 1.801239456 | AG94: =IF(AF94="","",AF94-AF$6) -> 1.377029145 | AH94: 2.1199527 | AI94: =IF(AH94="","",AH94-AH$6) -> 1.735424558 | AJ94: 46.04225162 | AL94: 0.107466929 | AM94: -0.1414610069 | AN94: 0.1879489654 | AO94: -0.1834179653 | AP94: 7 | AQ94: 5 | AR94: 0.3096019175 | AS94: 0.0470168989 | AT94: -0.4483412014 | AU94: 2019-12-26 | AV94: 2020-03-20
B95: CE<XNYS> | C95: Celanese Corp | D95: Fabricación de resinas y hules sintéticos, y fibras químicas | E95: 82.72 | F95: 125.668585 | G95: 0.6582392887 | H95: 2019-11-26 | I95: 45.77344288 | J95: 95.55930893 | K95: =IFERROR(I95/J95,"") -> 0.4790055871 | N95: 0.0294959552 | O95: 0.01262445418 | P95: -0.004213314072 | Q95: -0.01017740591 | R95: -0.3189319121 | S95: =IF(R95="","",R95-R$6) -> -0.2257717464 | T95: 0.0171092338 | U95: =IF(T95="","",T95-T$6) -> -0.04828033267 | V95: -0.227800875 | W95: =IF(V95="","",V95-V$6) -> -0.1082261524 | X95: -0.341347082 | Y95: =IF(X95="","",X95-X$6) -> -0.2885582761 | Z95: -0.1986368416 | AA95: =IF(Z95="","",Z95-Z$6) -> -0.2161334208 | AB95: -0.2034946579 | AC95: =IF(AB95="","",AB95-AB$6) -> -0.3000095236 | AD95: 0.02348086757 | AE95: =IF(AD95="","",AD95-AD$6) -> -0.1975845743 | AF95: 0.2702492939 | AG95: =IF(AF95="","",AF95-AF$6) -> -0.1539610175 | AH95: 0.3627952221 | AI95: =IF(AH95="","",AH95-AH$6) -> -0.02173291931 | AJ95: 49.26719896 | AL95: 0.0890748767 | AM95: -0.160584978 | AN95: 0.1409649626 | AO95: -0.2170898229 | AP95: 6 | AQ95: 6 | AR95: -0.1999011243 | AS95: 0.04975614061 | AT95: -0.5332947191 | AU95: 2019-11-26 | AV95: 2020-03-18
B96: CNC<XNYS> | C96: Centene Corp | D96: Instituciones de seguros | E96: 65.88 | F96: 72.85 | G96: 0.9043239533 | H96: 2020-04-16 | I96: 120.9786062 | J96: 313.8148419 | K96: =IFERROR(I96/J96,"") -> 0.385509511 | N96: 0.01965639994 | O96: 0.002784898927 | P96: -0.01051366777 | Q96: -0.01647775961 | R96: 0.0478765707 | S96: =IF(R96="","",R96-R$6) -> 0.1410367364 | T96: 0.01120491174 | U96: =IF(T96="","",T96-T$6) -> -0.05418465473 | V96: 0.04306523116 | W96: =IF(V96="","",V96-V$6) -> 0.1626399537 | X96: 0.196512895 | Y96: =IF(X96="","",X96-X$6) -> 0.249301701 | Z96: 0.16354645 | AA96: =IF(Z96="","",Z96-Z$6) -> 0.1460498708 | AB96: 0.1618023102 | AC96: =IF(AB96="","",AB96-AB$6) -> 0.06528744449 | AD96: 0.7384879272 | AE96: =IF(AD96="","",AD96-AD$6) -> 0.5174224853 | AF96: 1.204819277 | AG96: =IF(AF96="","",AF96-AF$6) -> 0.7806089657 | AH96: 1.009149131 | AI96: =IF(AH96="","",AH96-AH$6) -> 0.6246209894 | AJ96: 52.52747406 | AL96: 0.1560244309 | AM96: -0.1500707881 | AN96: 0.2269995377 | AO96: -0.1558669002 | AP96: 5 | AQ96: 7 | AR96: 0.6713506163 | AS96: 0.0544071998 | AT96: -0.3303440165 | AU96: 2020-01-23 | AV96: 2020-03-23 | AW96: 57
B97: CNP<XNYS> | C97: Centerpoint Energy Inc | D97: Generación, transmisión y suministro de energía eléctrica | E97: 18.59 | F97: 29.93862451 | G97: 0.6209370104 | H97: 2019-09-25 | I97: 331.723994 | J97: 141.6275253 | K97: =IFERROR(I97/J97,"") -> 2.342228273 | N97: 0.04379562044 | O97: 0.02692411943 | P97: 0.09160305344 | Q97: 0.08563896159 | R97: -0.3109191223 | S97: =IF(R97="","",R97-R$6) -> -0.2177589566 | T97: 0.1052318668 | U97: =IF(T97="","",T97-T$6) -> 0.03984230036 | V97: -0.296735197 | W97: =IF(V97="","",V97-V$6) -> -0.1771604745 | X97: -0.3395801985 | Y97: =IF(X97="","",X97-X$6) -> -0.2867913925 | Z97: -0.3631766053 | AA97: =IF(Z97="","",Z97-Z$6) -> -0.3806731845 | AB97: -0.240010424 | AC97: =IF(AB97="","",AB97-AB$6) -> -0.3365252897 | AD97: -0.2475728896 | AE97: =IF(AD97="","",AD97-AD$6) -> -0.4686383315 | AF97: 0.01366659209 | AG97: =IF(AF97="","",AF97-AF$6) -> -0.4105437193 | AH97: 0.1163924589 | AI97: =IF(AH97="","",AH97-AH$6) -> -0.2681356825 | AJ97: 55.96283398 | AL97: 0.1738782051 | AM97: -0.1974276527 | AN97: 0.1103420195 | AO97: -0.3288444831 | AP97: 6 | AQ97: 6 | AR97: -0.419998835 | AS97: 0.05667334904 | AT97: -0.5958398157 | AU97: 2019-09-25 | AV97: 2020-03-23
B98: CTL<XNYS> | C98: Centurylink, Inc | D98: Operadores de servicios de telecomunicaciones alámbricas | E98: 9.94 | F98: 14.85824841 | G98: 0.6689886807 | H98: 2020-02-12 | I98: 119.2255387 | J98: 148.5091164 | K98: =IFERROR(I98/J98,"") -> 0.8028162959 | N98: 0.04411764706 | O98: 0.02724614605 | P98: -0.06403013183 | Q98: -0.06999422367 | R98: -0.2322582589 | S98: =IF(R98="","",R98-R$6) -> -0.1390980933 | T98: 0.01119023398 | U98: =IF(T98="","",T98-T$6) -> -0.05419933249 | V98: -0.3020049278 | W98: =IF(V98="","",V98-V$6) -> -0.1824302052 | X98: -0.3022871 | Y98: =IF(X98="","",X98-X$6) -> -0.249498294 | Z98: -0.05515316479 | AA98: =IF(Z98="","",Z98-Z$6) -> -0.07264974396 | AB98: -0.3383931094 | AC98: =IF(AB98="","",AB98-AB$6) -> -0.4349079751 | AD98: -0.4554273901 | AE98: =IF(AD98="","",AD98-AD$6) -> -0.676492832 | AF98: -0.4856906855 | AG98: =IF(AF98="","",AF98-AF$6) -> -0.9099009969 | AH98: -0.5482851427 | AI98: =IF(AH98="","",AH98-AH$6) -> -0.9328132841 | AJ98: 53.0141717 | AL98: 0.1449942463 | AM98: -0.1428571429 | AN98: 0.1393602533 | AO98: -0.2003214393 | AP98: 7 | AQ98: 5 | AR98: 0.08310366509 | AS98: 0.05468952199 | AT98: -0.4151396745 | AU98: 2020-02-12 | AV98: 2020-03-23
B99: CERN<XNAS> | C99: Cerner Corp | D99: Servicios de diseño de sistemas de cómputo y servicios relacionados | E99: 68.75 | F99: 79.99212486 | G99: 0.8594596046 | H99: 2020-02-11 | I99: 114.8518938 | J99: 155.3973709 | K99: =IFERROR(I99/J99,"") -> 0.7390851795 | N99: 0.026272578 | O99: 0.009401076986 | P99: -0.009223231013 | Q99: -0.01518732285 | R99: -0.06043815128 | S99: =IF(R99="","",R99-R$6) -> 0.03272201437 | T99: 0.03523565728 | U99: =IF(T99="","",T99-T$6) -> -0.03015390919 | V99: -0.1263848464 | W99: =IF(V99="","",V99-V$6) -> -0.006810123798 | X99: 0.02695309639 | Y99: =IF(X99="","",X99-X$6) -> 0.07974190236 | Z99: 0.02145345191 | AA99: =IF(Z99="","",Z99-Z$6) -> 0.003956872733 | AB99: 0.182424503 | AC99: =IF(AB99="","",AB99-AB$6) -> 0.08590963732 | AD99: 0.07536393435 | AE99: =IF(AD99="","",AD99-AD$6) -> -0.1457015076 | AF99: 0.2955298116 | AG99: =IF(AF99="","",AF99-AF$6) -> -0.1286804998 | AH99: 0.02145345191 | AI99: =IF(AH99="","",AH99-AH$6) -> -0.3630746895 | AJ99: 27.67058354 | AL99: 0.07048825196 | AM99: -0.06053080863 | AN99: 0.1048793025 | AO99: -0.09065973726 | AP99: 4 | AQ99: 8 | AR99: 0.2118082622 | AS99: 0.02860488602 | AT99: -0.3182101458 | AU99: 2020-02-11 | AV99: 2020-03-23
B100: CF<XNYS> | C100: CF Industries Hldg Inc | D100: Fabricación de fertilizantes, pesticidas y otros agroquímicos | E100: 29.03 | F100: 51.64556134 | G100: 0.5621005803 | H100: 2019-08-02 | I100: 54.32717745 | J100: 100.9330956 | K100: =IFERROR(I100/J100,"") -> 0.5382493933 | N100: 0.05410312273 | O100: 0.03723162172 | P100: 0.05563636364 | Q100: 0.0496722718 | R100: -0.3874985206 | S100: =IF(R100="","",R100-R$6) -> -0.294338355 | T100: -0.02714477212 | U100: =IF(T100="","",T100-T$6) -> -0.09253433859 | V100: -0.3065966179 | W100: =IF(V100="","",V100-V$6) -> -0.1870218953 | X100: -0.3688760682 | Y100: =IF(X100="","",X100-X$6) -> -0.3160872622 | Z100: -0.2870292915 | AA100: =IF(Z100="","",Z100-Z$6) -> -0.3045258706 | AB100: -0.1890413095 | AC100: =IF(AB100="","",AB100-AB$6) -> -0.2855561752 | AD100: 0.1448634895 | AE100: =IF(AD100="","",AD100-AD$6) -> -0.07620195237 | AF100: 0.07087183197 | AG100: =IF(AF100="","",AF100-AF$6) -> -0.3533384794 | AH100: -0.4513641276 | AI100: =IF(AH100="","",AH100-AH$6) -> -0.835892269 | AJ100: 52.02389649 | AL100: 0.1624319419 | AM100: -0.1539087948 | AN100: 0.1607852883 | AO100: -0.2620727075 | AP100: 7 | AQ100: 5 | AR100: -0.3257848205 | AS100: 0.05313914337 | AT100: -0.590671503 | AU100: 2019-08-02 | AV100: 2020-03-18
B101: CHTR<XNAS> | C101: Charter Comm, Inc | D101: Producción de programación de canales para sistemas de televisión por cable o satelitales | E101: 515.28 | F101: 542.46 | G101: 0.9498949231 | H101: 2020-02-19 | I101: 311.6099119 | J101: 558.8752674 | K101: =IFERROR(I101/J101,"") -> 0.5575661156 | N101: 0.00200291687 | O101: -0.01486858414 | P101: 0.04048623872 | Q101: 0.03452214688 | R101: 0.06225777192 | S101: =IF(R101="","",R101-R$6) -> 0.1554179376 | T101: 0.1106848016 | U101: =IF(T101="","",T101-T$6) -> 0.04529523512 | V101: -0.01890672302 | W101: =IF(V101="","",V101-V$6) -> 0.1006679995 | X101: 0.09692389569 | Y101: =IF(X101="","",X101-X$6) -> 0.1497127017 | Z101: 0.3839707778 | AA101: =IF(Z101="","",Z101-Z$6) -> 0.3664741987 | AB101: 0.9013320542 | AC101: =IF(AB101="","",AB101-AB$6) -> 0.8048171885 | AD101: 0.5913035422 | AE101: =IF(AD101="","",AD101-AD$6) -> 0.3702381003 | AF101: 1.420063874 | AG101: =IF(AF101="","",AF101-AF$6) -> 0.9958535624 | AH101: 1.8520507 | AI101: =IF(AH101="","",AH101-AH$6) -> 1.467522559 | AJ101: 32.28701203 | AL101: 0.09853842527 | AM101: -0.1432880513 | AN101: 0.1352518684 | AO101: -0.1152949287 | AP101: 9 | AQ101: 3 | AR101: 1.326689157 | AS101: 0.03303959677 | AT101: -0.3147881871 | AU101: 2020-02-19 | AV101: 2020-03-20
B102: CVX<XNYS> | C102: Chevron Corp | D102: Fabricación de productos derivados del petróleo y del carbón | E102: 95.47 | F102: 122.5973808 | G102: 0.778727893 | H102: 2019-07-24 | I102: 715.6263173 | J102: 822.123771 | K102: =IFERROR(I102/J102,"") -> 0.870460559 | N102: 0.03054835924 | O102: 0.01367685823 | P102: 0.0377173913 | Q102: 0.03175329946 | R102: -0.1985241937 | S102: =IF(R102="","",R102-R$6) -> -0.1053640281 | T102: 0.1103745057 | U102: =IF(T102="","",T102-T$6) -> 0.04498493923 | V102: -0.1134032549 | W102: =IF(V102="","",V102-V$6) -> 0.006171467698 | X102: -0.19343792 | Y102: =IF(X102="","",X102-X$6) -> -0.1406491141 | Z102: -0.1531085716 | AA102: =IF(Z102="","",Z102-Z$6) -> -0.1706051507 | AB102: -0.1833854969 | AC102: =IF(AB102="","",AB102-AB$6) -> -0.2799003626 | AD102: 0.00774488505 | AE102: =IF(AD102="","",AD102-AD$6) -> -0.2133205569 | AF102: 0.09903693129 | AG102: =IF(AF102="","",AF102-AF$6) -> -0.3251733801 | AH102: 0.08013039456 | AI102: =IF(AH102="","",AH102-AH$6) -> -0.3043977468 | AJ102: 54.56253147 | AL102: 0.2274068609 | AM102: -0.2212477012 | AN102: 0.2696660226 | AO102: -0.2236983073 | AP102: 6 | AQ102: 6 | AR102: -0.06292306116 | AS102: 0.05530604384 | AT102: -0.557739328 | AU102: 2019-07-24 | AV102: 2020-03-23
B103: CMG<XNYS> | C103: Chipotle Mexican Grill, Inc | D103: Restaurante y otros lugares para comer | E103: 925.83 | F103: 933.84 | G103: 0.9914225135 | H103: 2020-02-19 | I103: 676.8511673 | J103: 411.7133141 | K103: =IFERROR(I103/J103,"") -> 1.64398659 | N103: 0.03155396597 | O103: 0.01468246496 | P103: 0.05381594673 | Q103: 0.04785185489 | R103: 0.105983682 | S103: =IF(R103="","",R103-R$6) -> 0.1991438476 | T103: 0.2767955649 | U103: =IF(T103="","",T103-T$6) -> 0.2114059984 | V103: 0.0712897179 | W103: =IF(V103="","",V103-V$6) -> 0.1908644405 | X103: 0.2654520106 | Y103: =IF(X103="","",X103-X$6) -> 0.3182408166 | Z103: 0.304776132 | AA103: =IF(Z103="","",Z103-Z$6) -> 0.2872795529 | AB103: 1.1814005 | AC103: =IF(AB103="","",AB103-AB$6) -> 1.084885634 | AD103: 0.9650429799 | AE103: =IF(AD103="","",AD103-AD$6) -> 0.743977538 | AF103: 1.134183168 | AG103: =IF(AF103="","",AF103-AF$6) -> 0.7099728563 | AH103: 0.4607143984 | AI103: =IF(AH103="","",AH103-AH$6) -> 0.07618625702 | AJ103: 46.59691011 | AL103: 0.1524902732 | AM103: -0.1128887702 | AN103: 0.3425275061 | AO103: -0.1540629282 | AP103: 9 | AQ103: 3 | AR103: 0.8829081412 | AS103: 0.04841422955 | AT103: -0.5018311488 | AU103: 2020-02-19 | AV103: 2020-03-18
B104: CHD<XNYS> | C104: Church & Dwight Co., Inc | D104: Fabricación de jabones, limpiadores y preparaciones de tocador | E104: 73.35 | F104: 79.75912908 | G104: 0.9196439436 | H104: 2019-08-28 | I104: 91.99300275 | J104: 119.1639769 | K104: =IFERROR(I104/J104,"") -> 0.7719866787 | N104: 0.01340149212 | O104: -0.003470008887 | P104: 0.04800685812 | Q104: 0.04204276628 | R104: 0.04610962479 | S104: =IF(R104="","",R104-R$6) -> 0.1392697904 | T104: 0.06908613905 | U104: =IF(T104="","",T104-T$6) -> 0.003696572578 | V104: -0.01217141888 | W104: =IF(V104="","",V104-V$6) -> 0.1074033037 | X104: 0.09246841948 | Y104: =IF(X104="","",X104-X$6) -> 0.1452572255 | Z104: 0.01492768982 | AA104: =IF(Z104="","",Z104-Z$6) -> -0.002568889349 | AB104: 0.5801375448 | AC104: =IF(AB104="","",AB104-AB$6) -> 0.4836226791 | AD104: 0.5143467625 | AE104: =IF(AD104="","",AD104-AD$6) -> 0.2932813206 | AF104: 0.6073268843 | AG104: =IF(AF104="","",AF104-AF$6) -> 0.1831165729 | AH104: 0.9000914796 | AI104: =IF(AH104="","",AH104-AH$6) -> 0.5155633382 | AJ104: 31.05862043 | AL104: 0.136687076 | AM104: -0.07422053232 | AN104: 0.09052664381 | AO104: -0.07681242808 | AP104: 7 | AQ104: 5 | AR104: 0.1778684818 | AS104: 0.03228450505 | AT104: -0.2439736906 | AU104: 2019-08-28 | AV104: 2020-03-25
B105: CI<XNYS> | C105: Cigna Corp | D105: Instituciones de seguros | E105: 189.27 | F105: 222.5144681 | G105: 0.8505963753 | H105: 2020-02-12 | I105: 246.1401462 | J105: 379.0026938 | K105: =IFERROR(I105/J105,"") -> 0.64944168 | N105: 0.02763600825 | O105: 0.01076450724 | P105: -0.03325160895 | Q105: -0.03921570079 | R105: -0.07423967293 | S105: =IF(R105="","",R105-R$6) -> 0.01892049272 | T105: 0.01637847707 | U105: =IF(T105="","",T105-T$6) -> -0.0490110894 | V105: -0.0938697622 | W105: =IF(V105="","",V105-V$6) -> 0.02570496036 | X105: 0.005891228915 | Y105: =IF(X105="","",X105-X$6) -> 0.05868003489 | Z105: 0.2095631543 | AA105: =IF(Z105="","",Z105-Z$6) -> 0.1920665751 | AB105: 0.1092851024 | AC105: =IF(AB105="","",AB105-AB$6) -> 0.01277023674 | AD105: 0.1709367126 | AE105: =IF(AD105="","",AD105-AD$6) -> -0.05012872926 | AF105: 0.4478327916 | AG105: =IF(AF105="","",AF105-AF$6) -> 0.02362248022 | AH105: 0.4748470347 | AI105: =IF(AH105="","",AH105-AH$6) -> 0.09031889326 | AJ105: 49.79503056 | AL105: 0.1317853298 | AM105: -0.162228276 | AN105: 0.1757032743 | AO105: -0.09386770245 | AP105: 6 | AQ105: 6 | AR105: 0.7307999659 | AS105: 0.05124853107 | AT105: -0.4154986814 | AU105: 2020-02-12 | AV105: 2020-03-23
B106: XEC<XNYS> | C106: Cimarex Energy Co | D106: Extracción de petróleo y gas | E106: 24.07 | F106: 70.4164031 | G106: 0.3418237646 | H106: 2019-05-21 | I106: 45.00449738 | J106: 88.14814386 | K106: =IFERROR(I106/J106,"") -> 0.5105552472 | N106: 0.007534533277 | O106: -0.009336967734 | P106: -0.05310778914 | Q106: -0.05907188098 | R106: -0.5391825268 | S106: =IF(R106="","",R106-R$6) -> -0.4460223612 | T106: 0.3349972268 | U106: =IF(T106="","",T106-T$6) -> 0.2696076604 | V106: -0.4382649984 | W106: =IF(V106="","",V106-V$6) -> -0.3186902759 | X106: -0.4779873639 | Y106: =IF(X106="","",X106-X$6) -> -0.4251985579 | Z106: -0.636146127 | AA106: =IF(Z106="","",Z106-Z$6) -> -0.6536427062 | AB106: -0.7533362839 | AC106: =IF(AB106="","",AB106-AB$6) -> -0.8498511496 | AD106: -0.7969491154 | AE106: =IF(AD106="","",AD106-AD$6) -> -1.018014557 | AF106: -0.7747711889 | AG106: =IF(AF106="","",AF106-AF$6) -> -1.1989815 | AH106: -0.7891830047 | AI106: =IF(AH106="","",AH106-AH$6) -> -1.173711146 | AJ106: 89.21956038 | AL106: 0.2233009709 | AM106: -0.3821238212 | AN106: 0.5103980986 | AO106: -0.4907715582 | AP106: 5 | AQ106: 7 | AR106: -0.53089724 | AS106: 0.08821189374 | AT106: -0.8118336152 | AU106: 2019-05-21 | AV106: 2020-03-17
B107: CINF<XNAS> | C107: Cincinnati Financial Corp | D107: Instituciones de seguros | E107: 55.73 | F107: 115.8948392 | G107: 0.4808669685 | H107: 2019-10-04 | I107: 68.91399037 | J107: 75.7724541 | K107: =IFERROR(I107/J107,"") -> 0.9094860552 | N107: 0.01308852936 | O107: -0.003782971653 | P107: -0.1530395137 | Q107: -0.1590036055 | R107: -0.4659140994 | S107: =IF(R107="","",R107-R$6) -> -0.3727539338 | T107: -0.3126541687 | U107: =IF(T107="","",T107-T$6) -> -0.3780437352 | V107: -0.5022677263 | W107: =IF(V107="","",V107-V$6) -> -0.3826930037 | X107: -0.4806017408 | Y107: =IF(X107="","",X107-X$6) -> -0.4278129348 | Z107: -0.4005051963 | AA107: =IF(Z107="","",Z107-Z$6) -> -0.4180017755 | AB107: -0.1640664094 | AC107: =IF(AB107="","",AB107-AB$6) -> -0.2605812751 | AD107: -0.1320410951 | AE107: =IF(AD107="","",AD107-AD$6) -> -0.353106537 | AF107: -0.06673910485 | AG107: =IF(AF107="","",AF107-AF$6) -> -0.4909494163 | AH107: 0.2604181054 | AI107: =IF(AH107="","",AH107-AH$6) -> -0.124110036 | AJ107: 48.11344273 | AL107: 0.1683138664 | AM107: -0.1331419739 | AN107: 0.06099354447 | AO107: -0.1845669188 | AP107: 4 | AQ107: 8 | AR107: -0.7111563576 | AS107: 0.0494319329 | AT107: -0.5416534475 | AU107: 2019-10-04 | AV107: 2020-05-06
B108: CTAS<XNAS> | C108: Cintas Corp | D108: Confección de prendas de vestir | E108: 218.21 | F108: 304.26 | G108: 0.7171826727 | H108: 2020-02-19 | I108: 81.79645492 | J108: 154.7404868 | K108: =IFERROR(I108/J108,"") -> 0.5286040946 | N108: 0.0225398313 | O108: 0.005668330292 | P108: -0.01631880269 | Q108: -0.02228289453 | R108: -0.1890515832 | S108: =IF(R108="","",R108-R$6) -> -0.09589141752 | T108: 0.1340886648 | U108: =IF(T108="","",T108-T$6) -> 0.06869909836 | V108: -0.2516290555 | W108: =IF(V108="","",V108-V$6) -> -0.1320543329 | X108: -0.1635617909 | Y108: =IF(X108="","",X108-X$6) -> -0.1107729849 | Z108: 0.001866870312 | AA108: =IF(Z108="","",Z108-Z$6) -> -0.01562970886 | AB108: 0.2615997321 | AC108: =IF(AB108="","",AB108-AB$6) -> 0.1650848664 | AD108: 0.8632737934 | AE108: =IF(AD108="","",AD108-AD$6) -> 0.6422083515 | AF108: 1.507655512 | AG108: =IF(AF108="","",AF108-AF$6) -> 1.0834452 | AH108: 1.800846215 | AI108: =IF(AH108="","",AH108-AH$6) -> 1.416318073 | AJ108: 47.28138628 | AL108: 0.1066168009 | AM108: -0.1686099023 | AN108: 0.2806257938 | AO108: -0.350603584 | AP108: 8 | AQ108: 4 | AR108: 0.2358913687 | AS108: 0.04790783226 | AT108: -0.4837967528 | AU108: 2020-02-19 | AV108: 2020-03-23
B109: CSCO<XNAS> | C109: Cisco Systems, Inc | D109: Fabricación de equipo de comunicación | E109: 42.99 | F109: 56.65601259 | G109: 0.7587897213 | H109: 2019-07-15 | I109: 939.2399313 | J109: 1076.938964 | K109: =IFERROR(I109/J109,"") -> 0.872138499 | N109: 0.03915881073 | O109: 0.02228730972 | P109: 0.01439358188 | Q109: 0.008429490037 | R109: -0.08847730582 | S109: =IF(R109="","",R109-R$6) -> 0.00468285984 | T109: 0.02994729277 | U109: =IF(T109="","",T109-T$6) -> -0.0354422737 | V109: -0.09531800146 | W109: =IF(V109="","",V109-V$6) -> 0.0242567211 | X109: -0.1047178289 | Y109: =IF(X109="","",X109-X$6) -> -0.05192902296 | Z109: -0.1710169772 | AA109: =IF(Z109="","",Z109-Z$6) -> -0.1885135564 | AB109: -0.002223016936 | AC109: =IF(AB109="","",AB109-AB$6) -> -0.09873788265 | AD109: 0.3751727592 | AE109: =IF(AD109="","",AD109-AD$6) -> 0.1541073173 | AF109: 0.8398420216 | AG109: =IF(AF109="","",AF109-AF$6) -> 0.4156317102 | AH109: 0.725186326 | AI109: =IF(AH109="","",AH109-AH$6) -> 0.3406581846 | AJ109: 41.1668691 | AL109: 0.1337349398 | AM109: -0.1044102019 | AN109: 0.08831879819 | AO109: -0.1550541516 | AP109: 6 | AQ109: 6 | AR109: -0.2151435653 | AS109: 0.0425152485 | AT109: -0.4195111855 | AU109: 2019-07-15 | AV109: 2020-03-12
B110: C<XNYS> | C110: Citigroup Inc | D110: Bancos | E110: 46.32 | F110: 80.51590081 | G110: 0.5752900922 | H110: 2020-01-14 | I110: 1057.875522 | J110: 1024.112397 | K110: =IFERROR(I110/J110,"") -> 1.032968182 | N110: 0.0376344086 | O110: 0.02076290759 | P110: -0.03600416233 | Q110: -0.04196825417 | R110: -0.4101638321 | S110: =IF(R110="","",R110-R$6) -> -0.3170036665 | T110: 0.05765110432 | U110: =IF(T110="","",T110-T$6) -> -0.007738462149 | V110: -0.4051132561 | W110: =IF(V110="","",V110-V$6) -> -0.2855385335 | X110: -0.3809509794 | Y110: =IF(X110="","",X110-X$6) -> -0.3281621734 | Z110: -0.299096836 | AA110: =IF(Z110="","",Z110-Z$6) -> -0.3165934152 | AB110: -0.3084106927 | AC110: =IF(AB110="","",AB110-AB$6) -> -0.4049255584 | AD110: -0.1739051977 | AE110: =IF(AD110="","",AD110-AD$6) -> -0.3949706396 | AF110: 0.1394870467 | AG110: =IF(AF110="","",AF110-AF$6) -> -0.2847232647 | AH110: -0.05941950102 | AI110: =IF(AH110="","",AH110-AH$6) -> -0.4439476424 | AJ110: 58.22702385 | AL110: 0.1798428109 | AM110: -0.1929858934 | AN110: 0.1528964862 | AO110: -0.3362748188 | AP110: 7 | AQ110: 5 | AR110: -0.311603774 | AS110: 0.0594883958 | AT110: -0.5650757528 | AU110: 2020-01-14 | AV110: 2020-03-23
B111: CFG<XNAS> | C111: Citizens Financial Group Inc | D111: Bancos | E111: 22.2 | F111: 39.74829561 | G111: 0.5585145139 | H111: 2020-01-17 | I111: 103.6495356 | J111: 147.5277245 | K111: =IFERROR(I111/J111,"") -> 0.7025766575 | N111: 0.04470588235 | O111: 0.02783438134 | P111: -0.008485931219 | Q111: -0.01445002306 | R111: -0.4379096729 | S111: =IF(R111="","",R111-R$6) -> -0.3447495073 | T111: 0.1004788707 | U111: =IF(T111="","",T111-T$6) -> 0.03508930426 | V111: -0.4119512958 | W111: =IF(V111="","",V111-V$6) -> -0.2923765732 | X111: -0.407412041 | Y111: =IF(X111="","",X111-X$6) -> -0.354623235 | Z111: -0.3473712783 | AA111: =IF(Z111="","",Z111-Z$6) -> -0.3648678575 | AB111: -0.418138844 | AC111: =IF(AB111="","",AB111-AB$6) -> -0.5146537097 | AD111: -0.3434663382 | AE111: =IF(AD111="","",AD111-AD$6) -> -0.5645317802 | AF111: 0.1301021055 | AG111: =IF(AF111="","",AF111-AF$6) -> -0.2941082059 | AH111: -0.01517135638 | AI111: =IF(AH111="","",AH111-AH$6) -> -0.3996994978 | AJ111: 64.85323333 | AL111: 0.1699604743 | AM111: -0.2176669484 | AN111: 0.2113872028 | AO111: -0.4064373619 | AP111: 7 | AQ111: 5 | AR111: -0.328447473 | AS111: 0.06553143802 | AT111: -0.6212762238 | AU111: 2020-01-17 | AV111: 2020-03-18
B112: CTXS<XNAS> | C112: Citrix Systems, Inc | D112: Edición de software | E112: 150.98 | F112: 151.69 | G112: 0.9953194014 | H112: 2020-04-22 | I112: 223.4614215 | J112: 215.8437115 | K112: =IFERROR(I112/J112,"") -> 1.035292712 | N112: 0.00199097425 | O112: -0.01488052676 | P112: 0.04116957451 | Q112: 0.03520548267 | R112: 0.365747102 | S112: =IF(R112="","",R112-R$6) -> 0.4589072677 | T112: 0.02833401444 | U112: =IF(T112="","",T112-T$6) -> -0.03705555203 | V112: 0.2509196698 | W112: =IF(V112="","",V112-V$6) -> 0.3704943923 | X112: 0.3721756403 | Y112: =IF(X112="","",X112-X$6) -> 0.4249644462 | Z112: 0.5693902726 | AA112: =IF(Z112="","",Z112-Z$6) -> 0.5518936935 | AB112: 0.436223965 | AC112: =IF(AB112="","",AB112-AB$6) -> 0.3397090993 | AD112: 0.7673181466 | AE112: =IF(AD112="","",AD112-AD$6) -> 0.5462527047 | AF112: 1.381994458 | AG112: =IF(AF112="","",AF112-AF$6) -> 0.9577841469 | AH112: 1.906040393 | AI112: =IF(AH112="","",AH112-AH$6) -> 1.521512252 | AJ112: 32.27876474 | AL112: 0.1509842875 | AM112: -0.08484320557 | AN112: 0.3734528382 | AO112: -0.1470879393 | AP112: 8 | AQ112: 4 | AR112: 1.887117986 | AS112: 0.03389812853 | AT112: -0.1985523039 | AU112: 2020-01-23 | AV112: 2020-02-27 | AW112: 38
B113: CME<XNAS> | C113: CME Group Inc | D113: Casas de bolsa, casas de cambio y centros cambiarios | E113: 181.53 | F113: 222.7510326 | G113: 0.8149457173 | H113: 2020-03-04 | I113: 258.4219328 | J113: 314.1663623 | K113: =IFERROR(I113/J113,"") -> 0.8225639783 | N113: 0.01703176649 | O113: 0.0001602654738 | P113: 0.01862970653 | Q113: 0.01266561469 | R113: -0.09203711261 | S113: =IF(R113="","",R113-R$6) -> 0.001123053044 | T113: 0.003094435542 | U113: =IF(T113="","",T113-T$6) -> -0.06229513093 | V113: -0.1451861597 | W113: =IF(V113="","",V113-V$6) -> -0.02561143712 | X113: -0.06550437211 | Y113: =IF(X113="","",X113-X$6) -> -0.01271556613 | Z113: 0.04651582682 | AA113: =IF(Z113="","",Z113-Z$6) -> 0.02901924765 | AB113: 0.2077220625 | AC113: =IF(AB113="","",AB113-AB$6) -> 0.1112071968 | AD113: 0.7062192162 | AE113: =IF(AD113="","",AD113-AD$6) -> 0.4851537743 | AF113: 1.260435624 | AG113: =IF(AF113="","",AF113-AF$6) -> 0.8362253123 | AH113: 1.346358585 | AI113: =IF(AH113="","",AH113-AH$6) -> 0.9618304435 | AJ113: 45.72478499 | AL113: 0.1184033775 | AM113: -0.183890995 | AN113: 0.1176319309 | AO113: -0.1268871514 | AP113: 7 | AQ113: 5 | AR113: 0.3173263027 | AS113: 0.04610458263 | AT113: -0.3735607041 | AU113: 2020-03-04 | AV113: 2020-03-23
B114: CMS<XNYS> | C114: CMS Energy Corp | D114: Generación, transmisión y suministro de energía eléctrica | E114: 55.29 | F114: 68.86 | G114: 0.8029334882 | H114: 2020-02-18 | I114: 80.57621802 | J114: 125.6817185 | K114: =IFERROR(I114/J114,"") -> 0.641113274 | N114: 0.01375137514 | O114: -0.003120125873 | P114: -0.03152916448 | Q114: -0.03749325632 | R114: -0.1148348915 | S114: =IF(R114="","",R114-R$6) -> -0.02167472588 | T114: -0.08822559367 | U114: =IF(T114="","",T114-T$6) -> -0.1536151601 | V114: -0.1764968722 | W114: =IF(V114="","",V114-V$6) -> -0.05692214965 | X114: -0.06687174273 | Y114: =IF(X114="","",X114-X$6) -> -0.01408293675 | Z114: 0.03793651725 | AA114: =IF(Z114="","",Z114-Z$6) -> 0.02043993808 | AB114: 0.2891127888 | AC114: =IF(AB114="","",AB114-AB$6) -> 0.1925979231 | AD114: 0.3142209277 | AE114: =IF(AD114="","",AD114-AD$6) -> 0.09315548581 | AF114: 0.4976024191 | AG114: =IF(AF114="","",AF114-AF$6) -> 0.07339210773 | AH114: 0.8887312285 | AI114: =IF(AH114="","",AH114-AH$6) -> 0.5042030871 | AJ114: 36.78029902 | AL114: 0.138191396 | AM114: -0.1228536024 | AN114: 0.09022915341 | AO114: -0.1127609945 | AP114: 7 | AQ114: 5 | AR114: 0.2738001994 | AS114: 0.03793740192 | AT114: -0.2955271565 | AU114: 2020-02-18 | AV114: 2020-03-23
B115: KO<XNYS> | C115: Coca Cola Co | D115: Industria de las bebidas | E115: 46.11 | F115: 59.60724131 | G115: 0.7735637313 | H115: 2020-02-21 | I115: 641.3177995 | J115: 701.6028966 | K115: =IFERROR(I115/J115,"") -> 0.9140751878 | N115: 0.03385650224 | O115: 0.01698500123 | P115: 0.004794072782 | Q115: -0.001170019059 | R115: -0.1596316682 | S115: =IF(R115="","",R115-R$6) -> -0.06647150253 | T115: -0.03575909661 | U115: =IF(T115="","",T115-T$6) -> -0.1011486631 | V115: -0.2141512559 | W115: =IF(V115="","",V115-V$6) -> -0.0945765333 | X115: -0.1024356719 | Y115: =IF(X115="","",X115-X$6) -> -0.04964686595 | Z115: -0.005789961357 | AA115: =IF(Z115="","",Z115-Z$6) -> -0.02328654053 | AB115: 0.1770765882 | AC115: =IF(AB115="","",AB115-AB$6) -> 0.08056172247 | AD115: 0.1590007347 | AE115: =IF(AD115="","",AD115-AD$6) -> -0.06206470716 | AF115: 0.1600680251 | AG115: =IF(AF115="","",AF115-AF$6) -> -0.2641422863 | AH115: 0.3249750158 | AI115: =IF(AH115="","",AH115-AH$6) -> -0.0595531256 | AJ115: 31.64278361 | AL115: 0.06479580196 | AM115: -0.09672476537 | AN115: 0.05510388437 | AO115: -0.1654874768 | AP115: 7 | AQ115: 5 | AR115: 0.1143299644 | AS115: 0.03246028515 | AT115: -0.3698752169 | AU115: 2020-02-21 | AV115: 2020-03-23
B116: CTSH<XNAS> | C116: Cognizant Technology Solutions Corp | D116: Servicios de diseño de sistemas de cómputo y servicios relacionados | E116: 57.16 | F116: 71.19427956 | G116: 0.8028734943 | H116: 2020-02-06 | I116: 442.8691638 | J116: 237.0909605 | K116: =IFERROR(I116/J116,"") -> 1.86792935 | N116: -0.02722940776 | O116: -0.04410090877 | P116: -0.01482247501 | Q116: -0.02078656685 | R116: -0.07543977813 | S116: =IF(R116="","",R116-R$6) -> 0.01772038753 | T116: 0.1122786534 | U116: =IF(T116="","",T116-T$6) -> 0.04688908697 | V116: -0.1760134364 | W116: =IF(V116="","",V116-V$6) -> -0.05643871385 | X116: -0.08490706371 | Y116: =IF(X116="","",X116-X$6) -> -0.03211825773 | Z116: -0.01825675792 | AA116: =IF(Z116="","",Z116-Z$6) -> -0.03575333709 | AB116: -0.2251843411 | AC116: =IF(AB116="","",AB116-AB$6) -> -0.3216992068 | AD116: -0.08118891569 | AE116: =IF(AD116="","",AD116-AD$6) -> -0.3022543576 | AF116: -0.02458833196 | AG116: =IF(AF116="","",AF116-AF$6) -> -0.4487986434 | AH116: -0.06385835315 | AI116: =IF(AH116="","",AH116-AH$6) -> -0.4483864945 | AJ116: 43.99379801 | AL116: 0.1496099128 | AM116: -0.1717977955 | AN116: 0.24854745 | AO116: -0.2373215165 | AP116: 5 | AQ116: 7 | AR116: 0.164597222 | AS116: 0.04534799998 | AT116: -0.4155429304 | AU116: 2020-02-06 | AV116: 2020-03-23
B117: CL<XNYS> | C117: Colgate-Palmolive Company | D117: Fabricación de jabones, limpiadores y preparaciones de tocador | E117: 69.37 | F117: 76.88275673 | G117: 0.9022829429 | H117: 2020-02-10 | I117: 272.7087314 | J117: 275.6234322 | K117: =IFERROR(I117/J117,"") -> 0.9894250616 | N117: 0.008284883721 | O117: -0.00858661729 | P117: -0.01280774157 | Q117: -0.01877183341 | R117: 0.01997533662 | S117: =IF(R117="","",R117-R$6) -> 0.1131355023 | T117: -0.006101030542 | U117: =IF(T117="","",T117-T$6) -> -0.07149059701 | V117: -0.08205201058 | W117: =IF(V117="","",V117-V$6) -> 0.03752271197 | X117: 0.05380612596 | Y117: =IF(X117="","",X117-X$6) -> 0.1065949319 | Z117: 0.001129222821 | AA117: =IF(Z117="","",Z117-Z$6) -> -0.01636735635 | AB117: 0.1712313283 | AC117: =IF(AB117="","",AB117-AB$6) -> 0.07471646258 | AD117: 0.03801508986 | AE117: =IF(AD117="","",AD117-AD$6) -> -0.183050352 | AF117: 0.06124641792 | AG117: =IF(AF117="","",AF117-AF$6) -> -0.3629638935 | AH117: 0.1434229622 | AI117: =IF(AH117="","",AH117-AH$6) -> -0.2411051792 | AJ117: 31.72524489 | AL117: 0.1260827719 | AM117: -0.097829233 | AN117: 0.07826437314 | AO117: -0.08416915153 | AP117: 6 | AQ117: 6 | AR117: 0.1699928238 | AS117: 0.03297591885 | AT117: -0.225727214 | AU117: 2020-02-10 | AV117: 2020-03-25
B118: CMCSA<XNAS> | C118: Comcast Corp | D118: Producción de programación de canales para sistemas de televisión por cable o satelitales | E118: 36.535 | F118: 47.19216681 | G118: 0.7741750903 | H118: 2020-01-17 | I118: 474.0392137 | J118: 853.8884343 | K118: =IFERROR(I118/J118,"") -> 0.5551535712 | N118: 0.02684092186 | O118: 0.009969420853 | P118: -0.02909912304 | Q118: -0.03506321488 | R118: -0.1784076069 | S118: =IF(R118="","",R118-R$6) -> -0.08524744122 | T118: -0.03038747346 | U118: =IF(T118="","",T118-T$6) -> -0.09577703993 | V118: -0.1780662318 | W118: =IF(V118="","",V118-V$6) -> -0.05849150924 | X118: -0.1824073928 | Y118: =IF(X118="","",X118-X$6) -> -0.1296185868 | Z118: -0.1233056413 | AA118: =IF(Z118="","",Z118-Z$6) -> -0.1408022205 | AB118: 0.2465141065 | AC118: =IF(AB118="","",AB118-AB$6) -> 0.1499992408 | AD118: -0.009763117586 | AE118: =IF(AD118="","",AD118-AD$6) -> -0.2308285595 | AF118: 0.2850384017 | AG118: =IF(AF118="","",AF118-AF$6) -> -0.1391719097 | AH118: 0.3747708469 | AI118: =IF(AH118="","",AH118-AH$6) -> -0.009757294481 | AJ118: 35.23005228 | AL118: 0.1256439611 | AM118: -0.08365115688 | AN118: 0.09453170448 | AO118: -0.1440944896 | AP118: 6 | AQ118: 6 | AR118: -0.2163809358 | AS118: 0.0364945338 | AT118: -0.313021584 | AU118: 2020-01-17 | AV118: 2020-04-01
B119: CMA<XNYS> | C119: Comerica Inc | D119: Bancos | E119: 33.89 | F119: 73.1575439 | G119: 0.4632468259 | H119: 2019-05-10 | I119: 60.68465404 | J119: 113.3353807 | K119: =IFERROR(I119/J119,"") -> 0.5354431572 | N119: 0.04695705901 | O119: 0.030085558 | P119: -0.02782558807 | Q119: -0.03378967991 | R119: -0.5190661088 | S119: =IF(R119="","",R119-R$6) -> -0.4259059431 | T119: 0.02634766808 | U119: =IF(T119="","",T119-T$6) -> -0.03904189839 | V119: -0.4439734661 | W119: =IF(V119="","",V119-V$6) -> -0.3243987435 | X119: -0.5149457799 | Y119: =IF(X119="","",X119-X$6) -> -0.4621569739 | Z119: -0.5315632466 | AA119: =IF(Z119="","",Z119-Z$6) -> -0.5490598257 | AB119: -0.6189872455 | AC119: =IF(AB119="","",AB119-AB$6) -> -0.7155021112 | AD119: -0.4851465207 | AE119: =IF(AD119="","",AD119-AD$6) -> -0.7062119626 | AF119: -0.1097608945 | AG119: =IF(AF119="","",AF119-AF$6) -> -0.5339712059 | AH119: -0.2020668289 | AI119: =IF(AH119="","",AH119-AH$6) -> -0.5865949703 | AJ119: 61.46510129 | AL119: 0.1516314779 | AM119: -0.2029069767 | AN119: 0.1881390593 | AO119: -0.4324815981 | AP119: 6 | AQ119: 6 | AR119: -0.7380556263 | AS119: 0.06167744262 | AT119: -0.6439191557 | AU119: 2019-05-10 | AV119: 2020-04-16
B120: CAG<XNYS> | C120: Conagra Brands, Inc | D120: Industria alimentaria | E120: 33.52 | F120: 34.63158475 | G120: 0.9679025734 | H120: 2019-12-20 | I120: 75.60496336 | J120: 139.0856227 | K120: =IFERROR(I120/J120,"") -> 0.5435857558 | N120: 0.01055170335 | O120: -0.006319797663 | P120: 0.002392344499 | Q120: -0.003571747342 | R120: -0.008634835046 | S120: =IF(R120="","",R120-R$6) -> 0.08452533061 | T120: 0.07719830734 | U120: =IF(T120="","",T120-T$6) -> 0.01180874087 | V120: 0.05562062607 | W120: =IF(V120="","",V120-V$6) -> 0.1751953486 | X120: 0.2370387481 | Y120: =IF(X120="","",X120-X$6) -> 0.2898275541 | Z120: 0.1644813994 | AA120: =IF(Z120="","",Z120-Z$6) -> 0.1469848202 | AB120: -0.05201771577 | AC120: =IF(AB120="","",AB120-AB$6) -> -0.1485325815 | AD120: -0.03557358925 | AE120: =IF(AD120="","",AD120-AD$6) -> -0.2566390312 | AF120: 0.0588875408 | AG120: =IF(AF120="","",AF120-AF$6) -> -0.3653227706 | AH120: 0.3007884095 | AI120: =IF(AH120="","",AH120-AH$6) -> -0.08373973192 | AJ120: 41.1227574 | AL120: 0.1586919105 | AM120: -0.1209816799 | AN120: 0.1860062348 | AO120: -0.1892466586 | AP120: 7 | AQ120: 5 | AR120: 0.6563149451 | AS120: 0.04267823312 | AT120: -0.3072282329 | AU120: 2019-12-20 | AV120: 2020-03-12
B121: CXO<XNYS> | C121: Concho Resources Inc | D121: Extracción de petróleo y gas | E121: 58.64 | F121: 114.4523897 | G121: 0.5123527798 | H121: 2019-05-21 | I121: 121.2512181 | J121: 163.1930271 | K121: =IFERROR(I121/J121,"") -> 0.7429926404 | N121: 0.02535408288 | O121: 0.00848258187 | P121: 0.03744399554 | Q121: 0.0314799037 | R121: -0.3260707769 | S121: =IF(R121="","",R121-R$6) -> -0.2329106112 | T121: 0.128790014 | U121: =IF(T121="","",T121-T$6) -> 0.06340044748 | V121: -0.2538123395 | W121: =IF(V121="","",V121-V$6) -> -0.134237617 | X121: -0.1887837516 | Y121: =IF(X121="","",X121-X$6) -> -0.1359949457 | Z121: -0.461735072 | AA121: =IF(Z121="","",Z121-Z$6) -> -0.4792316512 | AB121: -0.6250512168 | AC121: =IF(AB121="","",AB121-AB$6) -> -0.7215660826 | AD121: -0.5465442567 | AE121: =IF(AD121="","",AD121-AD$6) -> -0.7676096986 | AF121: -0.482278987 | AG121: =IF(AF121="","",AF121-AF$6) -> -0.9064892984 | AH121: -0.4982088643 | AI121: =IF(AH121="","",AH121-AH$6) -> -0.8827370057 | AJ121: 65.82002955 | AL121: 0.1856817607 | AM121: -0.2222563473 | AN121: 0.3236872812 | AO121: -0.3700382241 | AP121: 5 | AQ121: 7 | AR121: -0.5229472847 | AS121: 0.06691729073 | AT121: -0.6865482391 | AU121: 2019-05-21 | AV121: 2020-03-18
B122: COP<XNYS> | C122: Conocophillips | D122: Fabricación de productos derivados del petróleo y del carbón | E122: 43.08 | F122: 65.35917929 | G122: 0.6591270035 | H122: 2020-01-07 | I122: 299.6829182 | J122: 383.8303196 | K122: =IFERROR(I122/J122,"") -> 0.7807692696 | N122: 0.02571428572 | O122: 0.008842784704 | P122: 0.03351068884 | Q122: 0.027546597 | R122: -0.3261761772 | S122: =IF(R122="","",R122-R$6) -> -0.2330160116 | T122: 0.2194730942 | U122: =IF(T122="","",T122-T$6) -> 0.1540835277 | V122: -0.2443738025 | W122: =IF(V122="","",V122-V$6) -> -0.1247990799 | X122: -0.2593177283 | Y122: =IF(X122="","",X122-X$6) -> -0.2065289223 | Z122: -0.274042311 | AA122: =IF(Z122="","",Z122-Z$6) -> -0.2915388901 | AB122: -0.3304145297 | AC122: =IF(AB122="","",AB122-AB$6) -> -0.4269293954 | AD122: -0.01583105641 | AE122: =IF(AD122="","",AD122-AD$6) -> -0.2368964983 | AF122: 0.1097599067 | AG122: =IF(AF122="","",AF122-AF$6) -> -0.3144504047 | AH122: -0.2604180964 | AI122: =IF(AH122="","",AH122-AH$6) -> -0.6449462378 | AJ122: 64.62349269 | AL122: 0.2521384929 | AM122: -0.2484006177 | AN122: 0.3668831169 | AO122: -0.3638992152 | AP122: 6 | AQ122: 6 | AR122: -0.1764851515 | AS122: 0.06589474522 | AT122: -0.6565816034 | AU122: 2020-01-06 | AV122: 2020-03-18
B123: ED<XNYS> | C123: Consolidated Edison, Inc | D123: Generación, transmisión y suministro de energía eléctrica | E123: 74.18 | F123: 94.58 | G123: 0.7843095792 | H123: 2020-02-20 | I123: 172.4135326 | J123: 161.6280907 | K123: =IFERROR(I123/J123,"") -> 1.066729996 | N123: 0.001485081681 | O123: -0.01538641933 | P123: -0.05862944162 | Q123: -0.06459353347 | R123: -0.173353596 | S123: =IF(R123="","",R123-R$6) -> -0.08019343039 | T123: -0.115113921 | U123: =IF(T123="","",T123-T$6) -> -0.1805034875 | V123: -0.1939351135 | W123: =IF(V123="","",V123-V$6) -> -0.07436039098 | X123: -0.1421226503 | Y123: =IF(X123="","",X123-X$6) -> -0.08933384433 | Z123: -0.08574181588 | AA123: =IF(Z123="","",Z123-Z$6) -> -0.1032383951 | AB123: 0.04447071672 | AC123: =IF(AB123="","",AB123-AB$6) -> -0.052044149 | AD123: 0.03774710108 | AE123: =IF(AD123="","",AD123-AD$6) -> -0.1833183408 | AF123: 0.1520960756 | AG123: =IF(AF123="","",AF123-AF$6) -> -0.2721142358 | AH123: 0.4562148068 | AI123: =IF(AH123="","",AH123-AH$6) -> 0.07168666545 | AJ123: 37.91454515 | AL123: 0.1801382778 | AM123: -0.1313449024 | AN123: 0.06265466817 | AO123: -0.1546313873 | AP123: 6 | AQ123: 6 | AR123: -0.04747027005 | AS123: 0.03924213503 | AT123: -0.3090505392 | AU123: 2020-02-20 | AV123: 2020-03-23
B124: STZ<XNYS> | C124: Constellation Brands, Inc | D124: Industria de las bebidas | E124: 166.06 | F124: 207.6121233 | G124: 0.7998569512 | H124: 2019-09-04 | I124: 186.4221111 | J124: 257.2980627 | K124: =IFERROR(I124/J124,"") -> 0.7245375623 | N124: 0.007829095102 | O124: -0.009042405909 | P124: 0.01302105325 | Q124: 0.007056961405 | R124: -0.1174632328 | S124: =IF(R124="","",R124-R$6) -> -0.02430306716 | T124: 0.0574534909 | U124: =IF(T124="","",T124-T$6) -> -0.00793607557 | V124: -0.1641142479 | W124: =IF(V124="","",V124-V$6) -> -0.04453952536 | X124: -0.1071585009 | Y124: =IF(X124="","",X124-X$6) -> -0.05436969491 | Z124: -0.1824820124 | AA124: =IF(Z124="","",Z124-Z$6) -> -0.1999785915 | AB124: -0.2238186112 | AC124: =IF(AB124="","",AB124-AB$6) -> -0.320333477 | AD124: -0.03524847081 | AE124: =IF(AD124="","",AD124-AD$6) -> -0.2563139127 | AF124: 0.09674129215 | AG124: =IF(AF124="","",AF124-AF$6) -> -0.3274690193 | AH124: 0.5190171947 | AI124: =IF(AH124="","",AH124-AH$6) -> 0.1344890533 | AJ124: 43.39811103 | AL124: 0.1720939038 | AM124: -0.1524472819 | AN124: 0.1487862723 | AO124: -0.1683489964 | AP124: 6 | AQ124: 6 | AR124: -0.2337605755 | AS124: 0.04466288135 | AT124: -0.4935284962 | AU124: 2019-09-04 | AV124: 2020-03-23
B125: CPRT<XNAS> | C125: Copart, Inc | D125: Comercio al por menor | E125: 83.79 | F125: 104.5 | G125: 0.8018181818 | H125: 2020-02-19 | I125: 140.2043826 | J125: 141.1081124 | K125: =IFERROR(I125/J125,"") -> 0.9935954794 | N125: 0.02746781116 | O125: 0.01059631015 | P125: 0.04593683685 | Q125: 0.03997274501 | R125: -0.07862326809 | S125: =IF(R125="","",R125-R$6) -> 0.01453689757 | T125: 0.1640733537 | U125: =IF(T125="","",T125-T$6) -> 0.09868378724 | V125: -0.183174108 | W125: =IF(V125="","",V125-V$6) -> -0.06359938546 | X125: 0.02860299534 | Y125: =IF(X125="","",X125-X$6) -> 0.08139180132 | Z125: 0.2653276956 | AA125: =IF(Z125="","",Z125-Z$6) -> 0.2478311164 | AB125: 0.575 | AC125: =IF(AB125="","",AB125-AB$6) -> 0.4784851343 | AD125: 1.747213115 | AE125: =IF(AD125="","",AD125-AD$6) -> 1.526147673 | AF125: 2.909939337 | AG125: =IF(AF125="","",AF125-AF$6) -> 2.485729026 | AH125: 3.77028181 | AI125: =IF(AH125="","",AH125-AH$6) -> 3.385753669 | AJ125: 42.16641689 | AL125: 0.173528411 | AM125: -0.1405915131 | AN125: 0.1691476941 | AO125: -0.1889204545 | AP125: 9 | AQ125: 3 | AR125: 0.7862681382 | AS125: 0.04359654059 | AT125: -0.4375119617 | AU125: 2020-02-19 | AV125: 2020-03-23
B126: GLW<XNYS> | C126: Corning Inc | D126: Industria básica del aluminio | E126: 21.62 | F126: 33.34654818 | G126: 0.6483429674 | H126: 2019-07-01 | I126: 57.57775702 | J126: 153.7970298 | K126: =IFERROR(I126/J126,"") -> 0.374374961 | N126: 0.03198090692 | O126: 0.01510940591 | P126: -0.01771921854 | Q126: -0.02368331038 | R126: -0.2507719695 | S126: =IF(R126="","",R126-R$6) -> -0.1576118039 | T126: 0.05104521147 | U126: =IF(T126="","",T126-T$6) -> -0.014344355 | V126: -0.2120654636 | W126: =IF(V126="","",V126-V$6) -> -0.09249074108 | X126: -0.2769221741 | Y126: =IF(X126="","",X126-X$6) -> -0.2241333681 | Z126: -0.2789227427 | AA126: =IF(Z126="","",Z126-Z$6) -> -0.2964193218 | AB126: -0.1490707101 | AC126: =IF(AB126="","",AB126-AB$6) -> -0.2455855758 | AD126: -0.1997538678 | AE126: =IF(AD126="","",AD126-AD$6) -> -0.4208193098 | AF126: 0.2946189915 | AG126: =IF(AF126="","",AF126-AF$6) -> -0.1295913199 | AH126: 0.1591952197 | AI126: =IF(AH126="","",AH126-AH$6) -> -0.2253329217 | AJ126: 48.21490101 | AL126: 0.1311647429 | AM126: -0.1640350877 | AN126: 0.1522191401 | AO126: -0.1391450126 | AP126: 5 | AQ126: 7 | AR126: -0.3981647631 | AS126: 0.04938912242 | AT126: -0.4677110236 | AU126: 2019-07-01 | AV126: 2020-03-23
B127: CTVA<XNYS> | C127: Corteva, Inc | D127: Agricultura | E127: 25.98 | I127: 122.2035289 | K127: =IFERROR(I127/J127,"") ->  | N127: -0.01776937618 | O127: -0.03464087719 | P127: -0.008018327606 | Q127: -0.01398241945 | R127: -0.1168888558 | S127: =IF(R127="","",R127-R$6) -> -0.02372869013 | T127: -0.002687140114 | U127: =IF(T127="","",T127-T$6) -> -0.06807670658 | V127: -0.1589959593 | W127: =IF(V127="","",V127-V$6) -> -0.03942123675 | X127: 0.00139528518 | Y127: =IF(X127="","",X127-X$6) -> 0.05418409116 | AA127: =IF(Z127="","",Z127-Z$6) ->  | AC127: =IF(AB127="","",AB127-AB$6) ->  | AE127: =IF(AD127="","",AD127-AD$6) ->  | AG127: =IF(AF127="","",AF127-AF$6) ->  | AI127: =IF(AH127="","",AH127-AH$6) ->  | AJ127: 52.54650111 | AL127: 0.1231035977 | AM127: -0.1643835616 | AN127: 0.1360491929 | AO127: -0.1318803103 | AP127: 4 | AQ127: 8 | AR127: 0.02584431837 | AS127: 0.05402228642 | AT127: -0.342806653 | AU127: 2020-02-05 | AV127: 2020-03-16
B128: COST<XNAS> | C128: Costco Wholesale Corp | D128: Otras tiendas de mercancias diversas | E128: 305.94 | F128: 323.3412719 | G128: 0.9461829545 | H128: 2020-02-20 | I128: 709.4387591 | J128: 703.8718157 | K128: =IFERROR(I128/J128,"") -> 1.00790903 | N128: 0.003081967214 | O128: -0.0137895338 | P128: 0.009702970297 | Q128: 0.003738878457 | R128: 0.0454731556 | S128: =IF(R128="","",R128-R$6) -> 0.1386333213 | T128: 0.002186397027 | U128: =IF(T128="","",T128-T$6) -> -0.06320316944 | V128: -0.0222906868 | W128: =IF(V128="","",V128-V$6) -> 0.09728403576 | X128: 0.01541692516 | Y128: =IF(X128="","",X128-X$6) -> 0.06820573114 | Z128: 0.2822895712 | AA128: =IF(Z128="","",Z128-Z$6) -> 0.264792992 | AB128: 0.6079937007 | AC128: =IF(AB128="","",AB128-AB$6) -> 0.511478835 | AD128: 0.8327826484 | AE128: =IF(AD128="","",AD128-AD$6) -> 0.6117172065 | AF128: 1.267087009 | AG128: =IF(AF128="","",AF128-AF$6) -> 0.8428766976 | AH128: 1.300933125 | AI128: =IF(AH128="","",AH128-AH$6) -> 0.9164049834 | AJ128: 27.9756646 | AL128: 0.09959450807 | AM128: -0.06315545704 | AN128: 0.1030136071 | AO128: -0.07785828229 | AP128: 9 | AQ128: 3 | AR128: 1.136369332 | AS128: 0.02920199852 | AT128: -0.1364786472 | AU128: 2020-02-20 | AV128: 2020-03-12
B129: COTY<XNYS> | C129: Coty Inc | D129: Fabricación de jabones, limpiadores y preparaciones de tocador | E129: 5.2 | F129: 13.27268571 | G129: 0.3917820489 | H129: 2019-06-18 | I129: 53.4544348 | J129: 62.14006938 | K129: =IFERROR(I129/J129,"") -> 0.8602248973 | N129: 0.05476673428 | O129: 0.03789523327 | P129: -0.04587155963 | Q129: -0.05183565147 | R129: -0.5327162116 | S129: =IF(R129="","",R129-R$6) -> -0.439556046 | T129: -0.1156462585 | U129: =IF(T129="","",T129-T$6) -> -0.181035825 | V129: -0.5630139136 | W129: =IF(V129="","",V129-V$6) -> -0.443439191 | X129: -0.5863460059 | Y129: =IF(X129="","",X129-X$6) -> -0.5335571999 | Z129: -0.5309783202 | AA129: =IF(Z129="","",Z129-Z$6) -> -0.5484748994 | AB129: -0.6466749506 | AC129: =IF(AB129="","",AB129-AB$6) -> -0.7431898163 | AD129: -0.6794975138 | AE129: =IF(AD129="","",AD129-AD$6) -> -0.9005629557 | AF129: -0.7799179563 | AG129: =IF(AF129="","",AF129-AF$6) -> -1.204128268 | AH129: -0.7523500757 | AI129: =IF(AH129="","",AH129-AH$6) -> -1.136878217 | AJ129: 83.4316475 | AL129: 0.2416356877 | AM129: -0.3137614679 | AN129: 0.1145823691 | AO129: -0.4409534128 | AP129: 4 | AQ129: 8 | AR129: -0.4127102615 | AS129: 0.08362472707 | AT129: -0.7182182956 | AU129: 2019-06-18 | AV129: 2020-03-18
B130: CCI<XNYS> | C130: Crown Castle Intl Corp | D130: Otros fondos | E130: 157.7 | F130: 167.05 | G130: 0.9440287339 | H130: 2020-04-17 | I130: 215.7496854 | J130: 291.2440257 | K130: =IFERROR(I130/J130,"") -> 0.7407866475 | N130: 0.01945827138 | O130: 0.00258677037 | P130: -0.01085115725 | Q130: -0.01681524909 | R130: 0.1181125477 | S130: =IF(R130="","",R130-R$6) -> 0.2112727134 | T130: 0.002160650736 | U130: =IF(T130="","",T130-T$6) -> -0.06322891573 | V130: 0.05614790788 | W130: =IF(V130="","",V130-V$6) -> 0.1757226304 | X130: 0.2259715152 | Y130: =IF(X130="","",X130-X$6) -> 0.2787603212 | Z130: 0.3179117676 | AA130: =IF(Z130="","",Z130-Z$6) -> 0.3004151884 | AB130: 0.6494809435 | AC130: =IF(AB130="","",AB130-AB$6) -> 0.5529660778 | AD130: 0.8447186178 | AE130: =IF(AD130="","",AD130-AD$6) -> 0.6236531759 | AF130: 1.074000286 | AG130: =IF(AF130="","",AF130-AF$6) -> 0.6497899742 | AH130: 1.281982849 | AI130: =IF(AH130="","",AH130-AH$6) -> 0.8974547072 | AJ130: 40.08724668 | AL130: 0.1133948109 | AM130: -0.1242504352 | AN130: 0.1040858726 | AO130: -0.04371329418 | AP130: 7 | AQ130: 5 | AR130: 1.019225053 | AS130: 0.04141344399 | AT130: -0.2984672507 | AU130: 2020-02-21 | AV130: 2020-03-23 | AW130: 39
B131: CSX<XNYS> | C131: CSX Corp | D131: Transporte por ferrocarril | E131: 66.11 | F131: 80.17225468 | G131: 0.824599486 | H131: 2020-02-20 | I131: 186.6625105 | J131: 339.8198494 | K131: =IFERROR(I131/J131,"") -> 0.5492984324 | N131: 0.03426157697 | O131: 0.01739007596 | P131: -0.001811867734 | Q131: -0.007775959574 | R131: -0.08320855932 | S131: =IF(R131="","",R131-R$6) -> 0.009951606336 | T131: 0.04077455919 | U131: =IF(T131="","",T131-T$6) -> -0.02461500728 | V131: -0.1480797657 | W131: =IF(V131="","",V131-V$6) -> -0.02850504311 | X131: -0.1008908144 | Y131: =IF(X131="","",X131-X$6) -> -0.04810200845 | Z131: -0.1429185112 | AA131: =IF(Z131="","",Z131-Z$6) -> -0.1604150904 | AB131: 0.120703462 | AC131: =IF(AB131="","",AB131-AB$6) -> 0.02418859631 | AD131: 0.3308129816 | AE131: =IF(AD131="","",AD131-AD$6) -> 0.1097475397 | AF131: 1.695093133 | AG131: =IF(AF131="","",AF131-AF$6) -> 1.270882822 | AH131: 0.9720382988 | AI131: =IF(AH131="","",AH131-AH$6) -> 0.5875101574 | AJ131: 44.43597439 | AL131: 0.1644985313 | AM131: -0.1555056955 | AN131: 0.1558464223 | AO131: -0.1866572037 | AP131: 7 | AQ131: 5 | AR131: -0.1380680757 | AS131: 0.04557099876 | AT131: -0.405530003 | AU131: 2020-02-20 | AV131: 2020-03-23
B132: CMI<XNYS> | C132: Cummins Inc | D132: Fabricación de motores de combustión interna, turbinas y transmisiones | E132: 161.29 | F132: 183.6663506 | G132: 0.8781684804 | H132: 2019-11-11 | I132: 143.3663262 | J132: 203.038014 | K132: =IFERROR(I132/J132,"") -> 0.7061058339 | N132: 0.03576932957 | O132: 0.01889782856 | P132: -0.01351681957 | Q132: -0.01948091141 | R132: -0.09164195374 | S132: =IF(R132="","",R132-R$6) -> 0.001518211915 | T132: 0.07843006151 | U132: =IF(T132="","",T132-T$6) -> 0.01304049505 | V132: 0.01094375596 | W132: =IF(V132="","",V132-V$6) -> 0.1305184785 | X132: -0.1210300559 | Y132: =IF(X132="","",X132-X$6) -> -0.06824124996 | Z132: 0.005978127972 | AA132: =IF(Z132="","",Z132-Z$6) -> -0.0115184512 | AB132: 0.1746937963 | AC132: =IF(AB132="","",AB132-AB$6) -> 0.07817893056 | AD132: 0.1267540829 | AE132: =IF(AD132="","",AD132-AD$6) -> -0.09431135898 | AF132: 0.5794639506 | AG132: =IF(AF132="","",AF132-AF$6) -> 0.1552536392 | AH132: 0.33453479 | AI132: =IF(AH132="","",AH132-AH$6) -> -0.04999335141 | AJ132: 40.56868882 | AL132: 0.2114636045 | AM132: -0.1177884615 | AN132: 0.2082471179 | AO132: -0.1061130979 | AP132: 5 | AQ132: 7 | AR132: 0.166333698 | AS132: 0.04249261602 | AT132: -0.4405072041 | AU132: 2019-11-11 | AV132: 2020-03-23
B133: CVS<XNYS> | C133: CVS Health Corp | D133: Tienda de artículos de salud y cuidados personales | E133: 63.12 | F133: 75.43540182 | G133: 0.8367424111 | H133: 2019-11-25 | I133: 461.5227096 | J133: 521.0311034 | K133: =IFERROR(I133/J133,"") -> 0.8857872526 | N133: 0.02717656631 | O133: 0.0103050653 | P133: 0.0255077173 | Q133: 0.01954362546 | R133: -0.137464883 | S133: =IF(R133="","",R133-R$6) -> -0.04430471733 | T133: 0.07133817265 | U133: =IF(T133="","",T133-T$6) -> 0.005948606176 | V133: -0.1105617547 | W133: =IF(V133="","",V133-V$6) -> 0.0090129679 | X133: -0.1158033139 | Y133: =IF(X133="","",X133-X$6) -> -0.0630145079 | Z133: 0.1686681127 | AA133: =IF(Z133="","",Z133-Z$6) -> 0.1511715335 | AB133: 0.1074337837 | AC133: =IF(AB133="","",AB133-AB$6) -> 0.01091891797 | AD133: -0.1479037158 | AE133: =IF(AD133="","",AD133-AD$6) -> -0.3689691577 | AF133: -0.3268278174 | AG133: =IF(AF133="","",AF133-AF$6) -> -0.7510381288 | AH133: -0.2881078968 | AI133: =IF(AH133="","",AH133-AH$6) -> -0.6726360382 | AJ133: 36.9070296 | AL133: 0.1089866157 | AM133: -0.1230717639 | AN133: 0.1337550836 | AO133: -0.1273960484 | AP133: 9 | AQ133: 3 | AR133: 0.6599782569 | AS133: 0.03806835133 | AT133: -0.3124451669 | AU133: 2019-11-25 | AV133: 2020-03-16
B134: DHR<XNYS> | C134: Danaher Corp | D134: Fabricación de instrumentos de medición, control, navegación, y equipo médico electrónico | E134: 161.43 | F134: 169.51 | G134: 0.9523331957 | H134: 2020-04-27 | I134: 1473.207759 | J134: 688.5996076 | K134: =IFERROR(I134/J134,"") -> 2.139425789 | N134: -0.01253976022 | O134: -0.02941126123 | P134: -0.01241894041 | Q134: -0.01838303225 | R134: 0.05326431437 | S134: =IF(R134="","",R134-R$6) -> 0.14642448 | T134: 0.1123130986 | U134: =IF(T134="","",T134-T$6) -> 0.04692353213 | V134: -0.002067985869 | W134: =IF(V134="","",V134-V$6) -> 0.1175067367 | X134: 0.196734632 | Y134: =IF(X134="","",X134-X$6) -> 0.249523438 | Z134: 0.2315630296 | AA134: =IF(Z134="","",Z134-Z$6) -> 0.2140664504 | AB134: 0.6454947452 | AC134: =IF(AB134="","",AB134-AB$6) -> 0.5489798795 | AD134: 0.969714339 | AE134: =IF(AD134="","",AD134-AD$6) -> 0.7486488971 | AF134: 1.246139153 | AG134: =IF(AF134="","",AF134-AF$6) -> 0.8219288412 | AH134: 1.612235793 | AI134: =IF(AH134="","",AH134-AH$6) -> 1.227707652 | AJ134: 31.89141702 | AL134: 0.09698192257 | AM134: -0.09724874461 | AN134: 0.1809840329 | AO134: -0.1012618885 | AP134: 7 | AQ134: 5 | AR134: 0.8832965568 | AS134: 0.03293579635 | AT134: -0.2819284235 | AU134: 2020-01-30 | AV134: 2020-03-23 | AW134: 60
B135: DRI<XNYS> | C135: Darden Restaurants Inc | D135: Restaurante y otros lugares para comer | E135: 74.72 | F135: 125.6062979 | G135: 0.5948746303 | H135: 2019-09-09 | I135: 223.2668718 | J135: 177.2075335 | K135: =IFERROR(I135/J135,"") -> 1.259917496 | N135: 0.05940734439 | O135: 0.04253584338 | P135: 0.01260333378 | Q135: 0.006639241943 | R135: -0.3092189268 | S135: =IF(R135="","",R135-R$6) -> -0.2160587611 | T135: 0.1753971999 | U135: =IF(T135="","",T135-T$6) -> 0.1100076335 | V135: -0.380995775 | W135: =IF(V135="","",V135-V$6) -> -0.2614210524 | X135: -0.3446867567 | Y135: =IF(X135="","",X135-X$6) -> -0.2918979507 | Z135: -0.3570599502 | AA135: =IF(Z135="","",Z135-Z$6) -> -0.3745565294 | AB135: -0.1489119591 | AC135: =IF(AB135="","",AB135-AB$6) -> -0.2454268248 | AD135: -0.07199824972 | AE135: =IF(AD135="","",AD135-AD$6) -> -0.2930636916 | AF135: 0.3361693875 | AG135: =IF(AF135="","",AF135-AF$6) -> -0.08804092387 | AH135: 0.3470558316 | AI135: =IF(AH135="","",AH135-AH$6) -> -0.03747230983 | AJ135: 73.83186717 | AL135: 0.3134291981 | AM135: -0.2466319657 | AN135: 0.3549394051 | AO135: -0.4414358974 | AP135: 6 | AQ135: 6 | AR135: -0.1986926887 | AS135: 0.07598873628 | AT135: -0.7280391144 | AU135: 2019-09-09 | AV135: 2020-03-18
B136: DVA<XNYS> | C136: Davita Inc | D136: Servicios de salud y de asistencia social | E136: 80.76 | F136: 88.5 | G136: 0.9125423729 | H136: 2020-02-11 | I136: 98.18550444 | J136: 123.9556095 | K136: =IFERROR(I136/J136,"") -> 0.7921021473 | N136: 0.007485029941 | O136: -0.009386471071 | P136: 0.02214909505 | Q136: 0.01618500321 | R136: 0.07636945222 | S136: =IF(R136="","",R136-R$6) -> 0.1695296179 | T136: 0.04937629938 | U136: =IF(T136="","",T136-T$6) -> -0.01601326709 | V136: -0.007130563068 | W136: =IF(V136="","",V136-V$6) -> 0.1124441595 | X136: 0.1561918397 | Y136: =IF(X136="","",X136-X$6) -> 0.2089806456 | Z136: 0.5602782071 | AA136: =IF(Z136="","",Z136-Z$6) -> 0.5427816279 | AB136: 0.2587281796 | AC136: =IF(AB136="","",AB136-AB$6) -> 0.1622133138 | AD136: 0.2350512311 | AE136: =IF(AD136="","",AD136-AD$6) -> 0.01398578917 | AF136: 0.06684280053 | AG136: =IF(AF136="","",AF136-AF$6) -> -0.3573675109 | AH136: -0.01715954728 | AI136: =IF(AH136="","",AH136-AH$6) -> -0.4016876887 | AJ136: 41.59727318 | AL136: 0.1292440743 | AM136: -0.08901037286 | AN136: 0.2957162598 | AO136: -0.05814536341 | AP136: 9 | AQ136: 3 | AR136: 1.695330779 | AS136: 0.04326238258 | AT136: -0.2656497175 | AU136: 2020-02-11 | AV136: 2020-03-20
B137: DE<XNYS> | C137: Deere & Co | D137: Fabricación de herramientas de mano sin motor y utensilios de cocina metálicos | E137: 137 | F137: 178.0157406 | G137: 0.7695948659 | H137: 2019-11-11 | I137: 236.059494 | J137: 309.0808585 | K137: =IFERROR(I137/J137,"") -> 0.7637467268 | N137: 0.007352941177 | O137: -0.009518559835 | P137: -0.05556321522 | Q137: -0.06152730706 | R137: -0.204807857 | S137: =IF(R137="","",R137-R$6) -> -0.1116476913 | T137: -0.06656673707 | U137: =IF(T137="","",T137-T$6) -> -0.1319563035 | V137: -0.1772171353 | W137: =IF(V137="","",V137-V$6) -> -0.05764241273 | X137: -0.2241917644 | Y137: =IF(X137="","",X137-X$6) -> -0.1714029585 | Z137: -0.1024686902 | AA137: =IF(Z137="","",Z137-Z$6) -> -0.1199652694 | AB137: 0.002309739679 | AC137: =IF(AB137="","",AB137-AB$6) -> -0.09420512604 | AD137: 0.2865693755 | AE137: =IF(AD137="","",AD137-AD$6) -> 0.06550393361 | AF137: 0.8262360526 | AG137: =IF(AF137="","",AF137-AF$6) -> 0.4020257412 | AH137: 0.7044566831 | AI137: =IF(AH137="","",AH137-AH$6) -> 0.3199285417 | AJ137: 43.68482825 | AL137: 0.1336032389 | AM137: -0.1360823258 | AN137: 0.1876407834 | AO137: -0.1120810796 | AP137: 5 | AQ137: 7 | AR137: -0.05760274156 | AS137: 0.04470818908 | AT137: -0.3791291952 | AU137: 2019-11-11 | AV137: 2020-03-23
B138: DAL<XNYS> | C138: Delta Air Lines, Inc | D138: Transporte aéreo regular | E138: 22.72 | F138: 62.26507774 | G138: 0.3648915383 | H138: 2019-07-24 | I138: 973.5468426 | J138: 530.3786671 | K138: =IFERROR(I138/J138,"") -> 1.835569383 | N138: 0.04797047971 | O138: 0.03109897869 | P138: -0.1231184871 | Q138: -0.1290825789 | R138: -0.6088096689 | S138: =IF(R138="","",R138-R$6) -> -0.5156495032 | T138: -0.02195436935 | U138: =IF(T138="","",T138-T$6) -> -0.08734393582 | V138: -0.6050274419 | W138: =IF(V138="","",V138-V$6) -> -0.4854527194 | X138: -0.6026951969 | Y138: =IF(X138="","",X138-X$6) -> -0.5499063909 | Z138: -0.5891138102 | AA138: =IF(Z138="","",Z138-Z$6) -> -0.6066103894 | AB138: -0.5427134175 | AC138: =IF(AB138="","",AB138-AB$6) -> -0.6392282832 | AD138: -0.4952010542 | AE138: =IF(AD138="","",AD138-AD$6) -> -0.7162664961 | AF138: -0.4072634587 | AG138: =IF(AF138="","",AF138-AF$6) -> -0.8314737701 | AH138: -0.4555504037 | AI138: =IF(AH138="","",AH138-AH$6) -> -0.8400785451 | AJ138: 64.0751542 | AL138: 0.2101710171 | AM138: -0.2599243856 | AN138: 0.1019417476 | AO138: -0.3815304574 | AP138: 4 | AQ138: 8 | AR138: -0.8109832384 | AS138: 0.06396797155 | AT138: -0.6627322929 | AU138: 2019-07-24 | AV138: 2020-05-06
B139: XRAY<XNAS> | C139: Dentsply Sirona Inc | D139: Fabricación de equipo no electrónico y material desechable de uso médico, dental y para laboratorio, y artículos oftálmicos | E139: 40.65 | F139: 60.53654286 | G139: =IFERROR(E139/F139,"") -> 0.6714952338 | H139: 2020-01-22 | I139: 136.8878181 | J139: 90.4829936 | K139: =IFERROR(I139/J139,"") -> 1.512856866 | N139: -0.009985387238 | O139: =IF(N139="","",N139-N$6) -> -0.02685688825 | P139: -0.04217719133 | Q139: -0.04814128317 | R139: -0.2796169704 | S139: =IF(R139="","",R139-R$6) -> -0.1864568047 | T139: 0.02703385548 | U139: =IF(T139="","",T139-T$6) -> -0.03835571099 | V139: -0.2860512146 | W139: =IF(V139="","",V139-V$6) -> -0.1664764921 | X139: -0.2887868683 | Y139: =IF(X139="","",X139-X$6) -> -0.2359980623 | Z139: -0.2542859287 | AA139: =IF(Z139="","",Z139-Z$6) -> -0.2717825079 | AB139: -0.07074621162 | AC139: =IF(AB139="","",AB139-AB$6) -> -0.1672610773 | AD139: -0.364687921 | AE139: =IF(AD139="","",AD139-AD$6) -> -0.5857533629 | AF139: -0.3232968494 | AG139: =IF(AF139="","",AF139-AF$6) -> -0.7475071608 | AH139: -0.1781195186 | AI139: =IF(AH139="","",AH139-AH$6) -> -0.56264766 | AJ139: 36.84323473 | AL139: 0.1289398281 | AM139: -0.1304992585 | AN139: 0.09296935359 | AO139: -0.2091539248 | AP139: 6 | AQ139: 6 | AR139: -0.4957263452 | AS139: 0.03790577208 | AT139: -0.4745511448 | AU139: 2020-01-22 | AV139: 2020-03-23
B140: DVN<XNYS> | C140: Devon Energy Corp | D140: Extracción de petróleo y gas | E140: 12.7 | F140: 30.63609144 | G140: 0.4145437425 | H140: 2019-05-10 | I140: 93.458157 | J140: 149.8292755 | K140: =IFERROR(I140/J140,"") -> 0.6237643258 | N140: 0.05745212323 | O140: 0.04058062222 | P140: 0.01844426624 | Q140: 0.0124801744 | R140: -0.5056842585 | S140: =IF(R140="","",R140-R$6) -> -0.4125240928 | T140: 0.3496280553 | U140: =IF(T140="","",T140-T$6) -> 0.2842384888 | V140: -0.4411240833 | W140: =IF(V140="","",V140-V$6) -> -0.3215493607 | X140: -0.4374988001 | Y140: =IF(X140="","",X140-X$6) -> -0.3847099941 | Z140: -0.5883487289 | AA140: =IF(Z140="","",Z140-Z$6) -> -0.6058453081 | AB140: -0.6642056687 | AC140: =IF(AB140="","",AB140-AB$6) -> -0.7607205344 | AD140: -0.6542141646 | AE140: =IF(AD140="","",AD140-AD$6) -> -0.8752796065 | AF140: -0.5773101414 | AG140: =IF(AF140="","",AF140-AF$6) -> -1.001520453 | AH140: -0.7990892345 | AI140: =IF(AH140="","",AH140-AH$6) -> -1.183617376 | AJ140: 88.18440364 | AL140: 0.2107208872 | AM140: -0.3739715782 | AN140: 0.8046309696 | AO140: -0.5699047047 | AP140: 6 | AQ140: 6 | AR140: -0.4645993642 | AS140: 0.0868626557 | AT140: -0.8234108939 | AU140: 2019-05-10 | AV140: 2020-03-18
B141: FANG<XNAS> | C141: Diamondback Energy, Inc | D141: Extracción de petróleo y gas | E141: 42.08 | F141: 112.4136447 | G141: 0.3743317824 | H141: 2019-05-21 | I141: 116.9428027 | J141: 173.8332358 | K141: =IFERROR(I141/J141,"") -> 0.6727298276 | N141: 0.04235818677 | O141: 0.02548668576 | P141: -0.03353238401 | Q141: -0.03949647585 | R141: -0.5440871752 | S141: =IF(R141="","",R141-R$6) -> -0.4509270096 | T141: 0.1227321238 | U141: =IF(T141="","",T141-T$6) -> 0.05734255733 | V141: -0.429740505 | W141: =IF(V141="","",V141-V$6) -> -0.3101657824 | X141: -0.4373671726 | Y141: =IF(X141="","",X141-X$6) -> -0.3845783666 | Z141: -0.5975535491 | AA141: =IF(Z141="","",Z141-Z$6) -> -0.6150501282 | AB141: -0.6824452412 | AC141: =IF(AB141="","",AB141-AB$6) -> -0.7789601069 | AD141: -0.5748263059 | AE141: =IF(AD141="","",AD141-AD$6) -> -0.7958917478 | AF141: -0.4994034975 | AG141: =IF(AF141="","",AF141-AF$6) -> -0.9236138089 | AH141: -0.4444750409 | AI141: =IF(AH141="","",AH141-AH$6) -> -0.8290031823 | AJ141: 94.44986572 | AL141: 0.2011568123 | AM141: -0.4464579901 | AN141: 0.6618320611 | AO141: -0.5748478702 | AP141: 3 | AQ141: 9 | AR141: -0.4789010973 | AS141: 0.08876415193 | AT141: -0.8615826394 | AU141: 2019-05-21 | AV141: 2020-03-18
B142: DLR<XNYS> | C142: Digital Realty Trust, Inc | D142: Otros fondos | E142: 145.06 | F142: 154.23 | G142: 0.9405433444 | H142: 2020-04-27 | I142: 294.9285939 | J142: 250.6195459 | K142: =IFERROR(I142/J142,"") -> 1.176798054 | N142: -0.02663893176 | O142: -0.04351043277 | P142: -0.02963408924 | Q142: -0.03559818108 | R142: 0.2209985414 | S142: =IF(R142="","",R142-R$6) -> 0.3141587071 | T142: -0.005143680131 | U142: =IF(T142="","",T142-T$6) -> -0.0705332466 | V142: 0.1859374217 | W142: =IF(V142="","",V142-V$6) -> 0.3055121443 | X142: 0.2658854269 | Y142: =IF(X142="","",X142-X$6) -> 0.3186742329 | Z142: 0.2761171983 | AA142: =IF(Z142="","",Z142-Z$6) -> 0.2586206192 | AB142: 0.4891354857 | AC142: =IF(AB142="","",AB142-AB$6) -> 0.39262062 | AD142: 0.4178413785 | AE142: =IF(AD142="","",AD142-AD$6) -> 0.1967759366 | AF142: 0.8103851809 | AG142: =IF(AF142="","",AF142-AF$6) -> 0.3861748695 | AH142: 1.665843317 | AI142: =IF(AH142="","",AH142-AH$6) -> 1.281315176 | AJ142: 39.06718023 | AL142: 0.1166160318 | AM142: -0.1097359736 | AN142: 0.1656309495 | AO142: -0.04793765743 | AP142: 6 | AQ142: 6 | AR142: 0.8907424349 | AS142: 0.04054437222 | AT142: -0.2413162706 | AU142: 2020-03-13 | AV142: 2020-03-23 | AW142: 18
B143: DFS<XNYS> | C143: Discover Financial Services | D143: Instituciones financieras de fomento económico | E143: 42.72 | F143: 91.37617005 | G143: 0.4675179533 | H143: 2019-07-26 | I143: 155.2259822 | J143: 162.5239107 | K143: =IFERROR(I143/J143,"") -> 0.9550962785 | N143: 0.05533596838 | O143: 0.03846446737 | P143: -0.005818012567 | Q143: -0.01178210441 | R143: -0.4933868768 | S143: =IF(R143="","",R143-R$6) -> -0.4002267111 | T143: 0.1477700161 | U143: =IF(T143="","",T143-T$6) -> 0.08238044965 | V143: -0.4292611886 | W143: =IF(V143="","",V143-V$6) -> -0.309686466 | X143: -0.4900550099 | Y143: =IF(X143="","",X143-X$6) -> -0.4372662039 | Z143: -0.4477649297 | AA143: =IF(Z143="","",Z143-Z$6) -> -0.4652615088 | AB143: -0.3882127871 | AC143: =IF(AB143="","",AB143-AB$6) -> -0.4847276528 | AD143: -0.246889398 | AE143: =IF(AD143="","",AD143-AD$6) -> -0.4679548399 | AF143: -0.1635141984 | AG143: =IF(AF143="","",AF143-AF$6) -> -0.5877245098 | AH143: -0.2003594958 | AI143: =IF(AH143="","",AH143-AH$6) -> -0.5848876372 | AJ143: 74.86638448 | AL143: 0.2675422139 | AM143: -0.2683539413 | AN143: 0.2046537707 | AO143: -0.456084172 | AP143: 5 | AQ143: 7 | AR143: -0.3900628324 | AS143: 0.07499501371 | AT143: -0.7236697491 | AU143: 2019-07-26 | AV143: 2020-03-20
B144: DISCA<XNAS> | C144: Discovery, Inc | D144: Producción de programación de canales para sistemas de televisión por cable o satelitales | E144: 21.085 | F144: 33.36 | G144: 0.6320443645 | H144: 2019-11-26 | I144: 131.7699695 | J144: 118.308235 | K144: =IFERROR(I144/J144,"") -> 1.113785271 | N144: 0.02703360935 | O144: 0.01016210834 | P144: -0.05954504906 | Q144: -0.06550914091 | R144: -0.3559865608 | S144: =IF(R144="","",R144-R$6) -> -0.2628263951 | T144: -0.02293790547 | U144: =IF(T144="","",T144-T$6) -> -0.08832747194 | V144: -0.2922121517 | W144: =IF(V144="","",V144-V$6) -> -0.1726374292 | X144: -0.3177479372 | Y144: =IF(X144="","",X144-X$6) -> -0.2649591312 | Z144: -0.2709197787 | AA144: =IF(Z144="","",Z144-Z$6) -> -0.2884163579 | AB144: -0.0852494577 | AC144: =IF(AB144="","",AB144-AB$6) -> -0.1817643234 | AD144: -0.2262385321 | AE144: =IF(AD144="","",AD144-AD$6) -> -0.447303974 | AF144: -0.2544200849 | AG144: =IF(AF144="","",AF144-AF$6) -> -0.6786303963 | AH144: -0.3270028726 | AI144: =IF(AH144="","",AH144-AH$6) -> -0.711531014 | AJ144: 44.08467586 | AL144: 0.1206211629 | AM144: -0.1159283695 | AN144: 0.2220367279 | AO144: -0.2435797665 | AP144: 4 | AQ144: 8 | AR144: -0.4667495 | AS144: 0.04524816666 | AT144: -0.4496402878 | AU144: 2019-11-26 | AV144: 2020-04-03
B145: DISCK<XNAS> | C145: Discovery, Inc | D145: Producción de programación de canales para sistemas de televisión por cable o satelitales | E145: 19.35 | F145: 30.98 | G145: 0.6245965139 | H145: 2019-11-26 | I145: 44.6188554 | J145: 78.64605445 | K145: =IFERROR(I145/J145,"") -> 0.5673374934 | N145: 0.02543720191 | O145: 0.008565700897 | P145: -0.05193532582 | Q145: -0.05789941766 | R145: -0.3653656937 | S145: =IF(R145="","",R145-R$6) -> -0.272205528 | T145: -0.004117344312 | U145: =IF(T145="","",T145-T$6) -> -0.06950691078 | V145: -0.3174603175 | W145: =IF(V145="","",V145-V$6) -> -0.1978855949 | X145: -0.3237812336 | Y145: =IF(X145="","",X145-X$6) -> -0.2709924276 | Z145: -0.2925045704 | AA145: =IF(Z145="","",Z145-Z$6) -> -0.3100011496 | AB145: -0.1136051306 | AC145: =IF(AB145="","",AB145-AB$6) -> -0.2101199963 | AD145: -0.2700867597 | AE145: =IF(AD145="","",AD145-AD$6) -> -0.4911522016 | AF145: -0.3006866643 | AG145: =IF(AF145="","",AF145-AF$6) -> -0.7248969757 | AH145: -0.3305656461 | AI145: =IF(AH145="","",AH145-AH$6) -> -0.7150937875 | AJ145: 43.48607541 | AL145: 0.1124031008 | AM145: -0.11205074 | AN145: 0.2091917591 | AO145: -0.3011952191 | AP145: 4 | AQ145: 8 | AR145: -0.5279829351 | AS145: 0.04458479985 | AT145: -0.4686894771 | AU145: 2019-11-26 | AV145: 2020-03-23
B146: DISH<XNAS> | C146: Dish Network Corp | D146: Producción de programación de canales para sistemas de televisión por cable o satelitales | E146: 25.73 | F146: 43.26 | G146: 0.5947757744 | H146: 2019-07-23 | I146: 92.43134561 | J146: 93.79213626 | K146: =IFERROR(I146/J146,"") -> 0.9854914206 | N146: 0.1019271949 | O146: 0.08505569385 | P146: 0.02858285029 | Q146: 0.02261875845 | R146: -0.274598252 | S146: =IF(R146="","",R146-R$6) -> -0.1814380864 | T146: 0.181359045 | U146: =IF(T146="","",T146-T$6) -> 0.1159694785 | V146: -0.300435019 | W146: =IF(V146="","",V146-V$6) -> -0.1808602965 | X146: -0.2715175538 | Y146: =IF(X146="","",X146-X$6) -> -0.2187287478 | Z146: -0.2633839107 | AA146: =IF(Z146="","",Z146-Z$6) -> -0.2808804899 | AB146: -0.1368668232 | AC146: =IF(AB146="","",AB146-AB$6) -> -0.2333816889 | AD146: -0.5801240209 | AE146: =IF(AD146="","",AD146-AD$6) -> -0.8011894628 | AF146: -0.4490364026 | AG146: =IF(AF146="","",AF146-AF$6) -> -0.873246714 | AH146: -0.6151660185 | AI146: =IF(AH146="","",AH146-AH$6) -> -0.9996941599 | AJ146: 58.35351327 | AL146: 0.167022412 | AM146: -0.1581849025 | AN146: 0.2513756878 | AO146: -0.4036396181 | AP146: 7 | AQ146: 5 | AR146: -0.2524182217 | AS146: 0.05980239847 | AT146: -0.580443828 | AU146: 2019-07-23 | AV146: 2020-03-23
B147: DG<XNYS> | C147: Dollar General Corp | D147: Otras tiendas de mercancias diversas | E147: 176.36 | F147: 182.11 | G147: 0.9684256768 | H147: 2020-04-17 | I147: 276.4492381 | J147: 299.603059 | K147: =IFERROR(I147/J147,"") -> 0.9227183427 | N147: 0.01589861751 | O147: -0.0009728834993 | P147: 0.006046776954 | Q147: 8.268511374e-05 | R147: 0.135511231 | S147: =IF(R147="","",R147-R$6) -> 0.2286713967 | T147: 0.04219359414 | U147: =IF(T147="","",T147-T$6) -> -0.02319597233 | V147: 0.1405581633 | W147: =IF(V147="","",V147-V$6) -> 0.2601328859 | X147: 0.1219881022 | Y147: =IF(X147="","",X147-X$6) -> 0.1747769082 | Z147: 0.4546660362 | AA147: =IF(Z147="","",Z147-Z$6) -> 0.437169457 | AB147: 0.915695646 | AC147: =IF(AB147="","",AB147-AB$6) -> 0.8191807803 | AD147: 1.471746477 | AE147: =IF(AD147="","",AD147-AD$6) -> 1.250681035 | AF147: 1.216618906 | AG147: =IF(AF147="","",AF147-AF$6) -> 0.7924085948 | AH147: 1.49575399 | AI147: =IF(AH147="","",AH147-AH$6) -> 1.111225848 | AJ147: 31.07876238 | AL147: 0.1354151359 | AM147: -0.09934657108 | AN147: 0.1646769139 | AO147: -0.02027247246 | AP147: 7 | AQ147: 5 | AR147: 1.659257365 | AS147: 0.03249080595 | AT147: -0.1844439118 | AU147: 2020-02-21 | AV147: 2020-03-16 | AW147: 31
B148: DLTR<XNAS> | C148: Dollar Tree, Inc | D148: Otras tiendas de mercancias diversas | E148: 78.05 | F148: 118.44 | G148: 0.6589834515 | H148: 2019-10-22 | I148: 147.088347 | J148: 240.9501554 | K148: =IFERROR(I148/J148,"") -> 0.6104513472 | N148: 0.01773373321 | O148: 0.0008622322021 | P148: -0.02033387724 | Q148: -0.02629796908 | R148: -0.1701222754 | S148: =IF(R148="","",R148-R$6) -> -0.07696210973 | T148: -0.01476899773 | U148: =IF(T148="","",T148-T$6) -> -0.0801585642 | V148: -0.1043148956 | W148: =IF(V148="","",V148-V$6) -> 0.01525982699 | X148: -0.2927050295 | Y148: =IF(X148="","",X148-X$6) -> -0.2399162235 | Z148: -0.2644425596 | AA148: =IF(Z148="","",Z148-Z$6) -> -0.2819391388 | AB148: -0.1668445773 | AC148: =IF(AB148="","",AB148-AB$6) -> -0.263359443 | AD148: -0.05152509418 | AE148: =IF(AD148="","",AD148-AD$6) -> -0.2725905361 | AF148: -0.03867471363 | AG148: =IF(AF148="","",AF148-AF$6) -> -0.462885025 | AH148: -0.01427128063 | AI148: =IF(AH148="","",AH148-AH$6) -> -0.398799422 | AJ148: 46.66014297 | AL148: 0.1407042674 | AM148: -0.1591968447 | AN148: 0.12439673 | AO148: -0.171557971 | AP148: 4 | AQ148: 8 | AR148: -0.3989145966 | AS148: 0.04717937156 | AT148: -0.446386356 | AU148: 2019-10-22 | AV148: 2020-03-18
B149: D<XNYS> | C149: Dominion Energy, Inc | D149: Generación, transmisión y suministro de energía eléctrica | E149: 78.4 | F149: 89.03 | G149: 0.8806020443 | H149: 2020-03-04 | I149: 253.6399152 | J149: 285.2425527 | K149: =IFERROR(I149/J149,"") -> 0.8892078436 | N149: 0.003841229194 | O149: -0.01303027182 | P149: 0.01646570725 | Q149: 0.01050161541 | R149: -0.04300135813 | S149: =IF(R149="","",R149-R$6) -> 0.05015880752 | T149: 0.002301201739 | U149: =IF(T149="","",T149-T$6) -> -0.06308836473 | V149: -0.06545657918 | W149: =IF(V149="","",V149-V$6) -> 0.05411814337 | X149: -0.00158529561 | Y149: =IF(X149="","",X149-X$6) -> 0.05120351037 | Z149: 0.111812688 | AA149: =IF(Z149="","",Z149-Z$6) -> 0.09431610879 | AB149: 0.3638589593 | AC149: =IF(AB149="","",AB149-AB$6) -> 0.2673440936 | AD149: 0.1405997223 | AE149: =IF(AD149="","",AD149-AD$6) -> -0.0804657196 | AF149: 0.3056361972 | AG149: =IF(AF149="","",AF149-AF$6) -> -0.1185741142 | AH149: 0.3461720331 | AI149: =IF(AH149="","",AH149-AH$6) -> -0.03835610831 | AJ149: 41.85689071 | AL149: 0.1723233795 | AM149: -0.1231319453 | AN149: 0.06843053055 | AO149: -0.07829483259 | AP149: 9 | AQ149: 3 | AR149: 0.5113123959 | AS149: 0.04334944091 | AT149: -0.3329214871 | AU149: 2020-03-04 | AV149: 2020-03-23
B150: DOV<XNYS> | C150: Dover Corp | D150: Fabricación de maquinaria y equipo agropecuario, para la construcción y para la industria extractiva | E150: 92.23 | F150: 119.3774257 | G150: 0.772591631 | H150: 2020-02-18 | I150: 54.25106945 | J150: 92.73559176 | K150: =IFERROR(I150/J150,"") -> 0.5850080689 | N150: 0.01273745471 | O150: -0.004134046305 | P150: -0.01516284036 | Q150: -0.0211269322 | R150: -0.1961722333 | S150: =IF(R150="","",R150-R$6) -> -0.1030120677 | T150: 0.02935267857 | U150: =IF(T150="","",T150-T$6) -> -0.0360368879 | V150: -0.2102191767 | W150: =IF(V150="","",V150-V$6) -> -0.0906444541 | X150: -0.1490208982 | Y150: =IF(X150="","",X150-X$6) -> -0.09623209223 | Z150: -0.02871521562 | AA150: =IF(Z150="","",Z150-Z$6) -> -0.04621179479 | AB150: 0.2714059494 | AC150: =IF(AB150="","",AB150-AB$6) -> 0.1748910837 | AD150: 0.542938673 | AE150: =IF(AD150="","",AD150-AD$6) -> 0.3218732311 | AF150: 0.9489168691 | AG150: =IF(AF150="","",AF150-AF$6) -> 0.5247065577 | AH150: 0.7018167225 | AI150: =IF(AH150="","",AH150-AH$6) -> 0.3172885811 | AJ150: 44.41047909 | AL150: 0.1433379226 | AM150: -0.1630853994 | AN150: 0.1206800134 | AO150: -0.1829861787 | AP150: 6 | AQ150: 6 | AR150: 0.1467378799 | AS150: 0.04523000111 | AT150: -0.4524090327 | AU150: 2020-02-18 | AV150: 2020-03-23
B151: DOW<XNYS> | C151: Dow Inc | D151: Fabricación de resinas y hules sintéticos, y fibras químicas | E151: 34.33 | F151: 54.38326488 | G151: 0.6312603717 | H151: 2019-11-08 | I151: 142.0013075 | J151: 223.3332613 | K151: =IFERROR(I151/J151,"") -> 0.6358269548 | N151: 0.04505327245 | O151: 0.02818177144 | P151: -0.06432270373 | Q151: -0.07028679557 | R151: -0.362370948 | S151: =IF(R151="","",R151-R$6) -> -0.2692107823 | T151: -0.01322219028 | U151: =IF(T151="","",T151-T$6) -> -0.07861175675 | V151: -0.2734241512 | W151: =IF(V151="","",V151-V$6) -> -0.1538494287 | X151: -0.3687396283 | Y151: =IF(X151="","",X151-X$6) -> -0.3159508224 | Z151: -0.3052623764 | AA151: =IF(Z151="","",Z151-Z$6) -> -0.3227589556 | AC151: =IF(AB151="","",AB151-AB$6) ->  | AE151: =IF(AD151="","",AD151-AD$6) ->  | AG151: =IF(AF151="","",AF151-AF$6) ->  | AI151: =IF(AH151="","",AH151-AH$6) ->  | AJ151: 58.5147789 | AL151: 0.2090909091 | AM151: -0.216576854 | AN151: 0.2547879617 | AO151: -0.2764167285 | AP151: 6 | AQ151: 6 | AR151: -0.3172507303 | AS151: 0.05927863208 | AT151: -0.5954637875 | AU151: 2019-11-08 | AV151: 2020-03-16
B152: DTE<XNYS> | C152: DTE Energy Co | D152: Generación, transmisión y suministro de energía eléctrica | E152: 101.26 | F152: 133.461349 | G152: 0.7587215383 | H152: 2020-02-21 | I152: 102.9620793 | J152: 146.1596006 | K152: =IFERROR(I152/J152,"") -> 0.7044496488 | N152: 0.0257293355 | O152: 0.008857834484 | P152: -0.02390591864 | Q152: -0.02987001048 | R152: -0.2115418587 | S152: =IF(R152="","",R152-R$6) -> -0.1183816931 | T152: -0.02484591679 | U152: =IF(T152="","",T152-T$6) -> -0.09023548326 | V152: -0.2336123134 | W152: =IF(V152="","",V152-V$6) -> -0.1140375908 | X152: -0.1432175245 | Y152: =IF(X152="","",X152-X$6) -> -0.09042871852 | Z152: -0.1484808409 | AA152: =IF(Z152="","",Z152-Z$6) -> -0.1659774201 | AB152: 0.0704212537 | AC152: =IF(AB152="","",AB152-AB$6) -> -0.02609361202 | AD152: 0.06875894566 | AE152: =IF(AD152="","",AD152-AD$6) -> -0.1523064962 | AF152: 0.2816273449 | AG152: =IF(AF152="","",AF152-AF$6) -> -0.1425829665 | AH152: 0.5101761758 | AI152: =IF(AH152="","",AH152-AH$6) -> 0.1256480344 | AJ152: 44.141618 | AL152: 0.1264158313 | AM152: -0.1390501866 | AN152: 0.09234495104 | AO152: -0.1579066435 | AP152: 6 | AQ152: 6 | AR152: -0.1507796789 | AS152: 0.04502933924 | AT152: -0.4244775691 | AU152: 2020-02-21 | AV152: 2020-03-23
B153: DUK<XNYS> | C153: Duke Energy Corp | D153: Generación, transmisión y suministro de energía eléctrica | E153: 81.78 | F153: 102.43 | G153: 0.7983989066 | H153: 2020-02-21 | I153: 233.8901458 | J153: 305.7941137 | K153: =IFERROR(I153/J153,"") -> 0.764861504 | N153: 0.01830407172 | O153: 0.001432570711 | P153: -0.03401842665 | Q153: -0.03998251849 | R153: -0.09465049803 | S153: =IF(R153="","",R153-R$6) -> -0.001490332378 | T153: -0.04350877193 | U153: =IF(T153="","",T153-T$6) -> -0.1088983384 | V153: -0.1422361268 | W153: =IF(V153="","",V153-V$6) -> -0.02266140423 | X153: -0.07206344204 | Y153: =IF(X153="","",X153-X$6) -> -0.01927463606 | Z153: -0.02873653548 | AA153: =IF(Z153="","",Z153-Z$6) -> -0.04623311465 | AB153: 0.1446534413 | AC153: =IF(AB153="","",AB153-AB$6) -> 0.0481385756 | AD153: 0.1216103878 | AE153: =IF(AD153="","",AD153-AD$6) -> -0.09945505408 | AF153: 0.2230018402 | AG153: =IF(AF153="","",AF153-AF$6) -> -0.2012084712 | AH153: 0.3159163686 | AI153: =IF(AH153="","",AH153-AH$6) -> -0.06861177278 | AJ153: 38.08218269 | AL153: 0.1230086184 | AM153: -0.1150208929 | AN153: 0.08092056373 | AO153: -0.1179934569 | AP153: 6 | AQ153: 6 | AR153: 0.169718239 | AS153: 0.03931868357 | AT153: -0.3737186371 | AU153: 2020-02-21 | AV153: 2020-03-23
B154: DRE<XNYS> | C154: Duke Realty Corp | D154: Otros fondos | E154: 33.92 | F154: 38.83 | G154: 0.8735513778 | H154: 2020-02-21 | I154: 61.65906368 | J154: 75.59556521 | K154: =IFERROR(I154/J154,"") -> 0.8156439271 | N154: 0.02076436954 | O154: 0.003892868534 | P154: -0.02247838617 | Q154: -0.02844247801 | R154: -0.01552180167 | S154: =IF(R154="","",R154-R$6) -> 0.07763836399 | T154: 0.01496110114 | U154: =IF(T154="","",T154-T$6) -> -0.05042846533 | V154: -0.06819931378 | W154: =IF(V154="","",V154-V$6) -> 0.05137540878 | X154: -0.006555510768 | Y154: =IF(X154="","",X154-X$6) -> 0.04623329521 | Z154: 0.1541925857 | AA154: =IF(Z154="","",Z154-Z$6) -> 0.1366960065 | AB154: 0.2629039923 | AC154: =IF(AB154="","",AB154-AB$6) -> 0.1663891266 | AD154: 0.3497871764 | AE154: =IF(AD154="","",AD154-AD$6) -> 0.1287217345 | AF154: 0.6991028568 | AG154: =IF(AF154="","",AF154-AF$6) -> 0.2748925454 | AH154: 1.024411384 | AI154: =IF(AH154="","",AH154-AH$6) -> 0.6398832426 | AJ154: 43.28505227 | AL154: 0.1618075802 | AM154: -0.1797365119 | AN154: 0.07164916615 | AO154: -0.1001706787 | AP154: 8 | AQ154: 4 | AR154: 0.5778580912 | AS154: 0.04445817293 | AT154: -0.3265516353 | AU154: 2020-02-21 | AV154: 2020-03-16
B155: DD<XNYS> | C155: Dupont De Nemours, Inc | D155: Fabricación de resinas y hules sintéticos, y fibras químicas | E155: 46.93 | F155: 74.95936097 | G155: 0.6260725731 | H155: 2019-06-03 | I155: 223.3969369 | J155: 316.7259834 | K155: =IFERROR(I155/J155,"") -> 0.7053318912 | N155: 0.04848078642 | O155: 0.0316092854 | P155: -0.001914079116 | Q155: -0.007878170956 | R155: -0.2643332033 | S155: =IF(R155="","",R155-R$6) -> -0.1711730377 | T155: 0.2076685538 | U155: =IF(T155="","",T155-T$6) -> 0.1422789873 | V155: -0.1012405643 | W155: =IF(V155="","",V155-V$6) -> 0.01833415829 | X155: -0.3329317286 | Y155: =IF(X155="","",X155-X$6) -> -0.2801429226 | Z155: -0.2893702131 | AA155: =IF(Z155="","",Z155-Z$6) -> -0.3068667923 | AB155: -0.4616403738 | AC155: =IF(AB155="","",AB155-AB$6) -> -0.5581552395 | AE155: =IF(AD155="","",AD155-AD$6) ->  | AG155: =IF(AF155="","",AF155-AF$6) ->  | AI155: =IF(AH155="","",AH155-AH$6) ->  | AJ155: 51.59610117 | AL155: 0.1782009605 | AM155: -0.1320987654 | AN155: 0.3788856305 | AO155: -0.2051282051 | AP155: 3 | AQ155: 9 | AR155: -0.3998814069 | AS155: 0.05364147076 | AT155: -0.6203276064 | AU155: 2019-06-03 | AV155: 2020-03-23
B156: DXC<XNYS> | C156: Dxc Technology Co | D156: Procesamiento electrónico de información, hospedaje y otros servicios relacionados | E156: 17.65 | F156: 57.32538604 | G156: 0.3078915158 | H156: 2019-05-09 | I156: 39.51293145 | J156: 135.7853946 | K156: =IFERROR(I156/J156,"") -> 0.2909954459 | N156: 0.01846508944 | O156: 0.001593588429 | P156: -0.02647545505 | Q156: -0.03243954689 | R156: -0.5211842785 | S156: =IF(R156="","",R156-R$6) -> -0.4280241128 | T156: 0.1170886076 | U156: =IF(T156="","",T156-T$6) -> 0.05169904113 | V156: -0.4495815605 | W156: =IF(V156="","",V156-V$6) -> -0.3300068379 | X156: -0.3981549005 | Y156: =IF(X156="","",X156-X$6) -> -0.3453660945 | Z156: -0.6964996402 | AA156: =IF(Z156="","",Z156-Z$6) -> -0.7139962193 | AB156: -0.7867043359 | AC156: =IF(AB156="","",AB156-AB$6) -> -0.8832192016 | AD156: -0.7182600413 | AE156: =IF(AD156="","",AD156-AD$6) -> -0.9393254832 | AG156: =IF(AF156="","",AF156-AF$6) ->  | AI156: =IF(AH156="","",AH156-AH$6) ->  | AJ156: 92.95359226 | AL156: 0.4101599247 | AM156: -0.3047434656 | AN156: 0.3892720307 | AO156: -0.4480378229 | AP156: 5 | AQ156: 7 | AR156: -0.5675014361 | AS156: 0.09641361371 | AT156: -0.8407400132 | AU156: 2019-05-09 | AV156: 2020-03-18
B157: ETFC<XNAS> | C157: E*Trade Financial Corp | D157: Bancos | E157: 41.21 | F157: 54.58637863 | G157: 0.7549502464 | H157: 2020-02-20 | I157: 97.48410945 | J157: 167.6687016 | K157: =IFERROR(I157/J157,"") -> 0.5814091033 | N157: 0.03102326745 | O157: 0.01415176644 | P157: 0.01477468604 | Q157: 0.008810594198 | R157: -0.08930070559 | S157: =IF(R157="","",R157-R$6) -> 0.003859460068 | T157: 0.03231462926 | U157: =IF(T157="","",T157-T$6) -> -0.03307493721 | V157: -0.05254696199 | W157: =IF(V157="","",V157-V$6) -> 0.06702776056 | X157: -0.04971419072 | Y157: =IF(X157="","",X157-X$6) -> 0.003074615258 | Z157: -0.1620460827 | AA157: =IF(Z157="","",Z157-Z$6) -> -0.1795426619 | AB157: -0.3332839887 | AC157: =IF(AB157="","",AB157-AB$6) -> -0.4297988545 | AD157: 0.1757664822 | AE157: =IF(AD157="","",AD157-AD$6) -> -0.04529895975 | AF157: 0.6832372944 | AG157: =IF(AF157="","",AF157-AF$6) -> 0.259026983 | AH157: 0.4390639831 | AI157: =IF(AH157="","",AH157-AH$6) -> 0.05453584174 | AJ157: 62.57713186 | AL157: 0.218117071 | AM157: -0.1830517862 | AN157: 0.1832750583 | AO157: -0.250327654 | AP157: 7 | AQ157: 5 | AR157: 0.02177514593 | AS157: 0.0646108688 | AT157: -0.5004248187 | AU157: 2020-02-20 | AV157: 2020-03-23
B158: EMN<XNYS> | C158: Eastman Chemical Co | D158: Fabricación de resinas y hules sintéticos, y fibras químicas | E158: 62.53 | F158: 81.91248812 | G158: 0.7633756639 | H158: 2019-11-08 | I158: 49.24994113 | J158: 81.06144365 | K158: =IFERROR(I158/J158,"") -> 0.6075630894 | N158: 0.03406647925 | O158: 0.01719497824 | P158: 0.03338291192 | Q158: 0.02741882007 | R158: -0.1986058768 | S158: =IF(R158="","",R158-R$6) -> -0.1054457112 | T158: 0.1059426954 | U158: =IF(T158="","",T158-T$6) -> 0.04055312897 | V158: -0.1224302542 | W158: =IF(V158="","",V158-V$6) -> -0.002855531607 | X158: -0.2366243361 | Y158: =IF(X158="","",X158-X$6) -> -0.1838355301 | Z158: -0.1474321103 | AA158: =IF(Z158="","",Z158-Z$6) -> -0.1649286894 | AB158: -0.3657815071 | AC158: =IF(AB158="","",AB158-AB$6) -> -0.4622963728 | AD158: -0.1357667004 | AE158: =IF(AD158="","",AD158-AD$6) -> -0.3568321423 | AF158: -0.07252549704 | AG158: =IF(AF158="","",AF158-AF$6) -> -0.4967358084 | AH158: -0.09997598208 | AI158: =IF(AH158="","",AH158-AH$6) -> -0.4845041235 | AJ158: 48.27744547 | AL158: 0.1202501202 | AM158: -0.1360397322 | AN158: 0.2990553886 | AO158: -0.230753463 | AP158: 7 | AQ158: 5 | AR158: -0.08217329806 | AS158: 0.04952735634 | AT158: -0.5313290942 | AU158: 2019-11-08 | AV158: 2020-03-23
B159: ETN<XNYS> | C159: Eaton Corp Plc | D159: Fabricación de maquinaria y equipo para el comercio y los servicios | E159: 82.25 | F159: 103.2567076 | G159: 0.796558421 | H159: 2020-02-20 | I159: 127.6153165 | J159: 217.1348001 | K159: =IFERROR(I159/J159,"") -> 0.5877239227 | N159: 0.02479441814 | O159: 0.00792291713 | P159: -0.01497005988 | Q159: -0.02093415172 | R159: -0.1161498094 | S159: =IF(R159="","",R159-R$6) -> -0.02298964379 | T159: 0.03561179038 | U159: =IF(T159="","",T159-T$6) -> -0.02977777609 | V159: -0.1789104546 | W159: =IF(V159="","",V159-V$6) -> -0.05933573204 | X159: -0.09218943777 | Y159: =IF(X159="","",X159-X$6) -> -0.03940063179 | Z159: 0.05154044555 | AA159: =IF(Z159="","",Z159-Z$6) -> 0.03404386638 | AB159: 0.178141229 | AC159: =IF(AB159="","",AB159-AB$6) -> 0.08162636331 | AD159: 0.1863151005 | AE159: =IF(AD159="","",AD159-AD$6) -> -0.03475034145 | AF159: 0.5378807515 | AG159: =IF(AF159="","",AF159-AF$6) -> 0.1136704401 | AH159: 0.3576333408 | AI159: =IF(AH159="","",AH159-AH$6) -> -0.02689480064 | AJ159: 47.77854559 | AL159: 0.2326467024 | AM159: -0.1196820944 | AN159: 0.1180024164 | AO159: -0.1361544411 | AP159: 6 | AQ159: 6 | AR159: 0.3572501566 | AS159: 0.05003028024 | AT159: -0.4455355879 | AU159: 2020-02-20 | AV159: 2020-03-23
B160: EBAY<XNAS> | C160: Ebay Inc | D160: Servicios de apoyo secretarial, fotocopiado, cobranza, investigación crediticia y similares | E160: 42.15 | F160: 42.15 | G160: 1 | H160: 2020-05-08 | I160: 376.8987246 | J160: 354.658837 | K160: =IFERROR(I160/J160,"") -> 1.062707834 | N160: 0.01885424221 | O160: 0.001982741194 | P160: 0.0582475521 | Q160: 0.05228346026 | R160: 0.1726211195 | S160: =IF(R160="","",R160-R$6) -> 0.2657812851 | T160: 0.2768857922 | U160: =IF(T160="","",T160-T$6) -> 0.2114962257 | V160: 0.1697057631 | W160: =IF(V160="","",V160-V$6) -> 0.2892804856 | X160: 0.2097141284 | Y160: =IF(X160="","",X160-X$6) -> 0.2625029344 | Z160: 0.1407238221 | AA160: =IF(Z160="","",Z160-Z$6) -> 0.1232272429 | AB160: 0.1281601094 | AC160: =IF(AB160="","",AB160-AB$6) -> 0.03164524369 | AD160: 0.2931077066 | AE160: =IF(AD160="","",AD160-AD$6) -> 0.07204226471 | AF160: 0.8044878324 | AG160: =IF(AF160="","",AF160-AF$6) -> 0.380277521 | AH160: 0.736259005 | AI160: =IF(AH160="","",AH160-AH$6) -> 0.3517308636 | AJ160: 32.96313667 | AL160: 0.08781622564 | AM160: -0.09132653061 | AN160: 0.3250166334 | AO160: -0.1322170901 | AP160: 7 | AQ160: 5 | AR160: 0.5713458509 | AS160: 0.03391201559 | AT160: -0.3587528798 | AU160: 2019-07-29 | AV160: 2020-03-23 | AW160: 196
B161: ECL<XNYS> | C161: Ecolab Inc | D161: Fabricación de jabones, limpiadores y preparaciones de tocador | E161: 197.76 | F161: 209.7610707 | G161: 0.9427869497 | H161: 2020-02-19 | I161: 201.3264038 | J161: 231.8783551 | K161: =IFERROR(I161/J161,"") -> 0.8682414699 | N161: 0.01875128786 | O161: 0.001879786851 | P161: 0.02201550388 | Q161: 0.01605141204 | R161: 0.02739791381 | S161: =IF(R161="","",R161-R$6) -> 0.1205580795 | T161: 0.1577776477 | U161: =IF(T161="","",T161-T$6) -> 0.09238808121 | V161: -0.03580274565 | W161: =IF(V161="","",V161-V$6) -> 0.08377197691 | X161: 0.04407360575 | Y161: =IF(X161="","",X161-X$6) -> 0.09686241173 | Z161: 0.1014500954 | AA161: =IF(Z161="","",Z161-Z$6) -> 0.08395351622 | AB161: 0.3878627898 | AC161: =IF(AB161="","",AB161-AB$6) -> 0.291347924 | AD161: 0.621892864 | AE161: =IF(AD161="","",AD161-AD$6) -> 0.4008274221 | AF161: 0.7661112317 | AG161: =IF(AF161="","",AF161-AF$6) -> 0.3419009203 | AH161: 0.8229917072 | AI161: =IF(AH161="","",AH161-AH$6) -> 0.4384635659 | AJ161: 43.12121067 | AL161: 0.2216099665 | AM161: -0.1174231745 | AN161: 0.2417377912 | AO161: -0.1341768043 | AP161: 7 | AQ161: 5 | AR161: 0.469808222 | AS161: 0.04509651591 | AT161: -0.4030350837 | AU161: 2020-02-19 | AV161: 2020-03-23
B162: EIX<XNYS> | C162: Edison Intl | D162: Generación, transmisión y suministro de energía eléctrica | E162: 57.05 | F162: 77.29948519 | G162: 0.7380385505 | H162: 2020-02-10 | I162: 85.8746266 | J162: 166.3632769 | K162: =IFERROR(I162/J162,"") -> 0.5161873954 | N162: 0.04621309371 | O162: 0.0293415927 | P162: -0.02827456992 | Q162: -0.03423866176 | R162: -0.234655687 | S162: =IF(R162="","",R162-R$6) -> -0.1414955213 | T162: -0.009032482196 | U162: =IF(T162="","",T162-T$6) -> -0.07442204866 | V162: -0.25045955 | W162: =IF(V162="","",V162-V$6) -> -0.1308848275 | X162: -0.1220522621 | Y162: =IF(X162="","",X162-X$6) -> -0.06926345615 | Z162: -0.01522673245 | AA162: =IF(Z162="","",Z162-Z$6) -> -0.03272331162 | AB162: 0.007640545708 | AC162: =IF(AB162="","",AB162-AB$6) -> -0.08887432001 | AD162: -0.2005281227 | AE162: =IF(AD162="","",AD162-AD$6) -> -0.4215935646 | AF162: -0.09174868142 | AG162: =IF(AF162="","",AF162-AF$6) -> -0.5159589928 | AH162: 0.1093514126 | AI162: =IF(AH162="","",AH162-AH$6) -> -0.2751767288 | AJ162: 43.71473133 | AL162: 0.1328985833 | AM162: -0.1333333333 | AN162: 0.1354219303 | AO162: -0.17505155 | AP162: 7 | AQ162: 5 | AR162: 0.1962784799 | AS162: 0.04489033009 | AT162: -0.4313299233 | AU162: 2020-01-21 | AV162: 2020-03-23
B163: EW<XNYS> | C163: Edwards Lifesciences Corp | D163: Fabricación de equipo no electrónico y material desechable de uso médico, dental y para laboratorio, y artículos oftálmicos | E163: 217.84 | F163: 246.26 | G163: 0.884593519 | H163: 2019-11-27 | I163: 136.0545861 | J163: 275.9106482 | K163: =IFERROR(I163/J163,"") -> 0.4931110378 | N163: -0.000917262887 | O163: -0.0177887639 | P163: 0.001563218391 | Q163: -0.004400873449 | R163: -0.06622658494 | S163: =IF(R163="","",R163-R$6) -> 0.02693358072 | T163: 0.05211301618 | U163: =IF(T163="","",T163-T$6) -> -0.01327655029 | V163: -0.06269093412 | W163: =IF(V163="","",V163-V$6) -> 0.05688378843 | X163: -0.0696959344 | Y163: =IF(X163="","",X163-X$6) -> -0.01690712842 | Z163: 0.2254036114 | AA163: =IF(Z163="","",Z163-Z$6) -> 0.2079070322 | AB163: 0.6156641697 | AC163: =IF(AB163="","",AB163-AB$6) -> 0.519149304 | AD163: 0.980723768 | AE163: =IF(AD163="","",AD163-AD$6) -> 0.7596583261 | AF163: 1.060147532 | AG163: =IF(AF163="","",AF163-AF$6) -> 0.6359372203 | AH163: 2.446835443 | AI163: =IF(AH163="","",AH163-AH$6) -> 2.062307302 | AJ163: 40.54454794 | AL163: 0.1759206258 | AM163: -0.1065768194 | AN163: 0.1531120772 | AO163: -0.07918375317 | AP163: 7 | AQ163: 5 | AR163: 0.7579048011 | AS163: 0.04229721895 | AT163: -0.3615284658 | AU163: 2019-11-27 | AV163: 2020-03-23
B164: EA<XNAS> | C164: Electronic Arts Inc | D164: Edición de software | E164: 116.62 | F164: 119.61 | G164: 0.9750020901 | H164: 2020-05-05 | I164: 417.3416965 | J164: 322.3123934 | K164: =IFERROR(I164/J164,"") -> 1.29483602 | N164: -0.001541095891 | O164: -0.0184125969 | P164: 0.0206546473 | Q164: 0.01469055546 | R164: 0.0847363036 | S164: =IF(R164="","",R164-R$6) -> 0.1778964693 | T164: 0.09194756554 | U164: =IF(T164="","",T164-T$6) -> 0.02655799907 | V164: 0.06902557521 | W164: =IF(V164="","",V164-V$6) -> 0.1886002978 | X164: 0.1867304366 | Y164: =IF(X164="","",X164-X$6) -> 0.2395192425 | Z164: 0.2422241159 | AA164: =IF(Z164="","",Z164-Z$6) -> 0.2247275367 | AB164: -0.05868108806 | AC164: =IF(AB164="","",AB164-AB$6) -> -0.1551959538 | AD164: 0.2182179045 | AE164: =IF(AD164="","",AD164-AD$6) -> -0.002847537384 | AF164: 0.8238974038 | AG164: =IF(AF164="","",AF164-AF$6) -> 0.3996870924 | AH164: 0.8846153846 | AI164: =IF(AH164="","",AH164-AH$6) -> 0.5000872432 | AJ164: 35.7515192 | AL164: 0.1066488175 | AM164: -0.08644137647 | AN164: 0.1406608765 | AO164: -0.08650997432 | AP164: 8 | AQ164: 4 | AR164: 0.9315258858 | AS164: 0.03702601471 | AT164: -0.2338738104 | AU164: 2020-01-23 | AV164: 2020-03-20 | AW164: 57
B165: LLY<XNYS> | C165: Eli Lilly And Company | D165: Fabricación de productos farmacéuticos | E165: 153.51 | F165: 162.93 | G165: 0.9421837599 | H165: 2020-04-24 | I165: 301.0610488 | J165: 470.4984753 | K165: =IFERROR(I165/J165,"") -> 0.6398767788 | N165: 0.003530103942 | O165: -0.01334139707 | P165: -0.007307294361 | Q165: -0.0132713862 | R165: 0.1740520974 | S165: =IF(R165="","",R165-R$6) -> 0.267212263 | T165: 0.0498563808 | U165: =IF(T165="","",T165-T$6) -> -0.01553318567 | V165: 0.05392846907 | W165: =IF(V165="","",V165-V$6) -> 0.1735031916 | X165: 0.3669792433 | Y165: =IF(X165="","",X165-X$6) -> 0.4197680493 | Z165: 0.350010062 | AA165: =IF(Z165="","",Z165-Z$6) -> 0.3325134828 | AB165: 1.035460421 | AC165: =IF(AB165="","",AB165-AB$6) -> 0.938945555 | AD165: 1.043738932 | AE165: =IF(AD165="","",AD165-AD$6) -> 0.82267349 | AF165: 1.268795109 | AG165: =IF(AF165="","",AF165-AF$6) -> 0.8445847972 | AH165: 1.371517798 | AI165: =IF(AH165="","",AH165-AH$6) -> 0.9869896566 | AJ165: 34.48707916 | AL165: 0.1068171278 | AM165: -0.09998571633 | AN165: 0.119982957 | AO165: -0.09206708544 | AP165: 7 | AQ165: 5 | AR165: 1.229700129 | AS165: 0.03579531601 | AT165: -0.1878720366 | AU165: 2020-02-05 | AV165: 2020-03-23 | AW165: 47
B166: EMR<XNYS> | C166: Emerson Electric Co. | D166: Fabricación de otros equipos y accesorios eléctricos | E166: 56.1 | F166: 77.35362069 | G166: 0.7252407774 | H166: 2020-01-16 | I166: 164.7363036 | J166: 213.8217358 | K166: =IFERROR(I166/J166,"") -> 0.7704375937 | N166: 0.01520086862 | O166: -0.001670632391 | P166: -0.01630720673 | Q166: -0.02227129858 | R166: -0.25944795 | S166: =IF(R166="","",R166-R$6) -> -0.1662877844 | T166: 0.07677543186 | U166: =IF(T166="","",T166-T$6) -> 0.01138586539 | V166: -0.2344516832 | W166: =IF(V166="","",V166-V$6) -> -0.1148769606 | X166: -0.2303615656 | Y166: =IF(X166="","",X166-X$6) -> -0.1775727596 | Z166: -0.1283049614 | AA166: =IF(Z166="","",Z166-Z$6) -> -0.1458015405 | AB166: -0.1482580898 | AC166: =IF(AB166="","",AB166-AB$6) -> -0.2447729555 | AD166: 0.04568739483 | AE166: =IF(AD166="","",AD166-AD$6) -> -0.1753780471 | AF166: 0.1905424737 | AG166: =IF(AF166="","",AF166-AF$6) -> -0.2336678377 | AH166: 0.1208755198 | AI166: =IF(AH166="","",AH166-AH$6) -> -0.2636526216 | AJ166: 49.90468211 | AL166: 0.1633403361 | AM166: -0.1895719343 | AN166: 0.1968520462 | AO166: -0.2567462174 | AP166: 6 | AQ166: 6 | AR166: -0.06351111214 | AS166: 0.05060511149 | AT166: -0.5077153511 | AU166: 2020-01-16 | AV166: 2020-03-23
B167: ETR<XNYS> | C167: Entergy Corp | D167: Generación, transmisión y suministro de energía eléctrica | E167: 95.01 | F167: 133.4844403 | G167: 0.7117683513 | H167: 2020-02-18 | I167: 154.5770896 | J167: 161.3383875 | K167: =IFERROR(I167/J167,"") -> 0.9580924412 | N167: 0.02414573677 | O167: 0.007274235757 | P167: 0.004419834409 | Q167: -0.001544257431 | R167: -0.1935874058 | S167: =IF(R167="","",R167-R$6) -> -0.1004272402 | T167: -0.04564128149 | U167: =IF(T167="","",T167-T$6) -> -0.111030848 | V167: -0.2677866547 | W167: =IF(V167="","",V167-V$6) -> -0.1482119321 | X167: -0.1591973126 | Y167: =IF(X167="","",X167-X$6) -> -0.1064085066 | Z167: 0.04238560212 | AA167: =IF(Z167="","",Z167-Z$6) -> 0.02488902295 | AB167: 0.3034591106 | AC167: =IF(AB167="","",AB167-AB$6) -> 0.2069442449 | AD167: 0.4036899377 | AE167: =IF(AD167="","",AD167-AD$6) -> 0.1826244958 | AF167: 0.489181942 | AG167: =IF(AF167="","",AF167-AF$6) -> 0.06497163058 | AH167: 0.5576313074 | AI167: =IF(AH167="","",AH167-AH$6) -> 0.173103166 | AJ167: 43.40662978 | AL167: 0.1484897395 | AM167: -0.1572913631 | AN167: 0.09782971619 | AO167: -0.196219314 | AP167: 9 | AQ167: 3 | AR167: 0.3274760143 | AS167: 0.04443900259 | AT167: -0.4199436118 | AU167: 2020-02-18 | AV167: 2020-03-23
B168: EOG<XNYS> | C168: EOG Resources Inc | D168: Extracción de petróleo y gas | E168: 51.45 | F168: 93.76972136 | G168: 0.5486845781 | H168: 2019-05-21 | I168: 374.4299475 | J168: 309.0671021 | K168: =IFERROR(I168/J168,"") -> 1.211484318 | N168: 0.06499689505 | O168: 0.04812539404 | P168: 0.08292990949 | Q168: 0.07696581765 | R168: -0.3781805435 | S168: =IF(R168="","",R168-R$6) -> -0.2850203778 | T168: 0.146190471 | U168: =IF(T168="","",T168-T$6) -> 0.08080090454 | V168: -0.301802738 | W168: =IF(V168="","",V168-V$6) -> -0.1822280154 | X168: -0.3027630833 | Y168: =IF(X168="","",X168-X$6) -> -0.2499742773 | Z168: -0.4419790896 | AA168: =IF(Z168="","",Z168-Z$6) -> -0.4594756688 | AB168: -0.5414124875 | AC168: =IF(AB168="","",AB168-AB$6) -> -0.6379273532 | AD168: -0.4194900038 | AE168: =IF(AD168="","",AD168-AD$6) -> -0.6405554457 | AF168: -0.3187427546 | AG168: =IF(AF168="","",AF168-AF$6) -> -0.742953066 | AH168: -0.4216785809 | AI168: =IF(AH168="","",AH168-AH$6) -> -0.8062067223 | AJ168: 67.52491553 | AL168: 0.1522872032 | AM168: -0.3200723327 | AN168: 0.3345118594 | AO168: -0.4321846348 | AP168: 6 | AQ168: 6 | AR168: -0.4617294072 | AS168: 0.06631091296 | AT168: -0.6854450193 | AU168: 2019-05-21 | AV168: 2020-03-18
B169: EFX<XNYS> | C169: Equifax Inc | D169: Servicios de apoyo secretarial, fotocopiado, cobranza, investigación crediticia y similares | E169: 149.38 | F169: 162.87 | G169: 0.9171732056 | H169: 2020-03-04 | I169: 75.6116746 | J169: 117.7016034 | K169: =IFERROR(I169/J169,"") -> 0.6424013985 | N169: 0.007214618028 | O169: -0.009656882983 | P169: 0.075449964 | Q169: 0.06948587216 | R169: 0.06884919442 | S169: =IF(R169="","",R169-R$6) -> 0.1620093601 | T169: 0.217639387 | U169: =IF(T169="","",T169-T$6) -> 0.1522498206 | V169: -0.0375480424 | W169: =IF(V169="","",V169-V$6) -> 0.08202668016 | X169: 0.1211243876 | Y169: =IF(X169="","",X169-X$6) -> 0.1739131936 | Z169: 0.258906722 | AA169: =IF(Z169="","",Z169-Z$6) -> 0.2414101428 | AB169: 0.3766073693 | AC169: =IF(AB169="","",AB169-AB$6) -> 0.2800925036 | AD169: 0.1299601703 | AE169: =IF(AD169="","",AD169-AD$6) -> -0.09110527166 | AF169: 0.3072662306 | AG169: =IF(AF169="","",AF169-AF$6) -> -0.1169440808 | AH169: 0.6035032046 | AI169: =IF(AH169="","",AH169-AH$6) -> 0.2189750632 | AJ169: 37.37503801 | AL169: 0.08640795259 | AM169: -0.08456806169 | AN169: 0.1628296358 | AO169: -0.1568601848 | AP169: 8 | AQ169: 4 | AR169: 0.8710558079 | AS169: 0.03852042054 | AT169: -0.3576472033 | AU169: 2020-03-04 | AV169: 2020-03-23
B170: EQIX<XNAS> | C170: Equinix, Inc | D170: Otros fondos | E170: 678.16 | F170: 702 | G170: 0.966039886 | H170: 2020-04-27 | I170: 290.0368251 | J170: 253.2218542 | K170: =IFERROR(I170/J170,"") -> 1.145386231 | N170: 0.004175674476 | O170: -0.01269582654 | P170: 0.004383886257 | Q170: -0.001580205584 | R170: 0.1666417197 | S170: =IF(R170="","",R170-R$6) -> 0.2598018854 | T170: 0.0209255412 | U170: =IF(T170="","",T170-T$6) -> -0.04446402526 | V170: 0.1237108446 | W170: =IF(V170="","",V170-V$6) -> 0.2432855671 | X170: 0.2897796506 | Y170: =IF(X170="","",X170-X$6) -> 0.3425684566 | Z170: 0.4417355277 | AA170: =IF(Z170="","",Z170-Z$6) -> 0.4242389485 | AB170: 0.8191069143 | AC170: =IF(AB170="","",AB170-AB$6) -> 0.7225920486 | AD170: 0.6878148609 | AE170: =IF(AD170="","",AD170-AD$6) -> 0.4667494189 | AF170: 1.181592928 | AG170: =IF(AF170="","",AF170-AF$6) -> 0.7573826166 | AH170: 1.922836531 | AI170: =IF(AH170="","",AH170-AH$6) -> 1.53830839 | AJ170: 37.8329543 | AL170: 0.1160199534 | AM170: -0.1266483118 | AN170: 0.1128328686 | AO170: -0.02468520067 | AP170: 9 | AQ170: 3 | AR170: 1.343282594 | AS170: 0.03917045984 | AT170: -0.251260084 | AU170: 2020-02-21 | AV170: 2020-03-23 | AW170: 33
B171: EQR<XNYS> | C171: Equity Residential | D171: Otros fondos | E171: 64.22 | F171: 87.34832905 | G171: 0.7352172697 | H171: 2019-10-30 | I171: 135.6017502 | J171: 129.3688576 | K171: =IFERROR(I171/J171,"") -> 1.048179235 | N171: 0.01855670103 | O171: 0.001685200019 | P171: -0.01291115893 | Q171: -0.01887525077 | R171: -0.1984083634 | S171: =IF(R171="","",R171-R$6) -> -0.1052481977 | T171: -0.01578544061 | U171: =IF(T171="","",T171-T$6) -> -0.08117500708 | V171: -0.2296342609 | W171: =IF(V171="","",V171-V$6) -> -0.1100595383 | X171: -0.2221474826 | Y171: =IF(X171="","",X171-X$6) -> -0.1693586766 | Z171: -0.1100060778 | AA171: =IF(Z171="","",Z171-Z$6) -> -0.127502657 | AB171: 0.1012823223 | AC171: =IF(AB171="","",AB171-AB$6) -> 0.004767456605 | AD171: 0.08671906502 | AE171: =IF(AD171="","",AD171-AD$6) -> -0.1343463769 | AF171: 0.07331896606 | AG171: =IF(AF171="","",AF171-AF$6) -> -0.3508913453 | AH171: 0.177586604 | AI171: =IF(AH171="","",AH171-AH$6) -> -0.2069415374 | AJ171: 40.63272626 | AL171: 0.1078142278 | AM171: -0.1691346284 | AN171: 0.07440740271 | AO171: -0.1700453555 | AP171: 6 | AQ171: 6 | AR171: -0.1268658652 | AS171: 0.04136045592 | AT171: -0.4116659064 | AU171: 2019-10-30 | AV171: 2020-03-23
B172: ESS<XNYS> | C172: Essex Property Trust, Inc | D172: Otros fondos | E172: 246.65 | F172: 327.3739621 | G172: 0.7534197235 | H172: 2019-10-21 | I172: 87.9198724 | J172: 114.5083612 | K172: =IFERROR(I172/J172,"") -> 0.7678030797 | N172: -0.009676383202 | O172: -0.02654788421 | P172: 0.0104465383 | Q172: 0.004482446462 | R172: -0.1726647117 | S172: =IF(R172="","",R172-R$6) -> -0.07950454609 | T172: 0.05351956262 | U172: =IF(T172="","",T172-T$6) -> -0.01187000385 | V172: -0.2092757241 | W172: =IF(V172="","",V172-V$6) -> -0.0897010015 | X172: -0.2044259023 | Y172: =IF(X172="","",X172-X$6) -> -0.1516370963 | Z172: -0.08881496504 | AA172: =IF(Z172="","",Z172-Z$6) -> -0.1063115442 | AB172: 0.08298709889 | AC172: =IF(AB172="","",AB172-AB$6) -> -0.01352776683 | AD172: 0.07736047006 | AE172: =IF(AD172="","",AD172-AD$6) -> -0.1437049719 | AF172: 0.1935276113 | AG172: =IF(AF172="","",AF172-AF$6) -> -0.2306827001 | AH172: 0.2508037906 | AI172: =IF(AH172="","",AH172-AH$6) -> -0.1337243508 | AJ172: 42.88284639 | AL172: 0.1139578749 | AM172: -0.1888078918 | AN172: 0.1083363603 | AO172: -0.2156271828 | AP172: 8 | AQ172: 4 | AR172: -0.03621089576 | AS172: 0.04320670116 | AT172: -0.4484170152 | AU172: 2019-10-21 | AV172: 2020-03-23
B173: EL<XNYS> | C173: Estée Lauder Companies Inc | D173: Fabricación de jabones, limpiadores y preparaciones de tocador | E173: 173.15 | F173: 219.3224301 | G173: 0.7894769354 | H173: 2020-01-17 | I173: 236.3339934 | J173: 326.9757061 | K173: =IFERROR(I173/J173,"") -> 0.7227876228 | N173: 0.007037338606 | O173: -0.009834162405 | P173: -0.01842403628 | Q173: -0.02438812812 | R173: -0.1595323494 | S173: =IF(R173="","",R173-R$6) -> -0.06637218377 | T173: 0.04477161648 | U173: =IF(T173="","",T173-T$6) -> -0.02061794999 | V173: -0.169265943 | W173: =IF(V173="","",V173-V$6) -> -0.04969122045 | X173: -0.07076617188 | Y173: =IF(X173="","",X173-X$6) -> -0.0179773659 | Z173: 0.0485525092 | AA173: =IF(Z173="","",Z173-Z$6) -> 0.03105593003 | AB173: 0.2980346258 | AC173: =IF(AB173="","",AB173-AB$6) -> 0.2015197601 | AD173: 0.9330992297 | AE173: =IF(AD173="","",AD173-AD$6) -> 0.7120337878 | AF173: 0.9334203821 | AG173: =IF(AF173="","",AF173-AF$6) -> 0.5092100707 | AH173: 1.08119134 | AI173: =IF(AH173="","",AH173-AH$6) -> 0.6966631983 | AJ173: 40.14888104 | AL173: 0.1251534427 | AM173: -0.1349436767 | AN173: 0.1371173073 | AO173: -0.1321350763 | AP173: 7 | AQ173: 5 | AR173: 0.3114511322 | AS173: 0.04132029078 | AT173: -0.3416997983 | AU173: 2020-01-17 | AV173: 2020-03-23
B174: EVRG<XNYS> | C174: Evergy Kansas Central, Inc | D174: Generación, transmisión y suministro de energía eléctrica | E174: 57.5 | F174: 73.3887802 | G174: 0.7834985109 | H174: 2020-02-19 | I174: 220.463395 | J174: 124.3596329 | K174: =IFERROR(I174/J174,"") -> 1.772789046 | N174: 0.02917487023 | O174: 0.01230336922 | P174: -0.01591648126 | Q174: -0.0218805731 | R174: -0.1103337696 | S174: =IF(R174="","",R174-R$6) -> -0.01717360392 | T174: -0.05520867565 | U174: =IF(T174="","",T174-T$6) -> -0.1205982421 | V174: -0.1828929739 | W174: =IF(V174="","",V174-V$6) -> -0.06331825136 | X174: -0.0743429166 | Y174: =IF(X174="","",X174-X$6) -> -0.02155411062 | Z174: 0.03802181368 | AA174: =IF(Z174="","",Z174-Z$6) -> 0.02052523451 | AB174: 0.1504652731 | AC174: =IF(AB174="","",AB174-AB$6) -> 0.05395040737 | AD174: 0.2052116283 | AE174: =IF(AD174="","",AD174-AD$6) -> -0.01585381363 | AF174: 0.2631449194 | AG174: =IF(AF174="","",AF174-AF$6) -> -0.161065392 | AH174: 0.8714533853 | AI174: =IF(AH174="","",AH174-AH$6) -> 0.4869252439 | AJ174: 44.97311534 | AL174: 0.160483871 | AM174: -0.1606024708 | AN174: 0.1086188355 | AO174: -0.1516300748 | AP174: 7 | AQ174: 5 | AR174: 0.3141387512 | AS174: 0.04624654543 | AT174: -0.3879173372 | AU174: 2020-02-19 | AV174: 2020-03-23
B175: ES<XNYS> | C175: Eversource Energy | D175: Generación, transmisión y suministro de energía eléctrica | E175: 77.79 | F175: 98.54 | G175: 0.789425614 | H175: 2020-03-04 | I175: 110.5379564 | J175: 154.350988 | K175: =IFERROR(I175/J175,"") -> 0.7161467369 | N175: 0.001931993818 | O175: -0.01493950719 | P175: -0.03605947955 | Q175: -0.04202357139 | R175: -0.07999978284 | S175: =IF(R175="","",R175-R$6) -> 0.01316038281 | T175: -0.06670665867 | U175: =IF(T175="","",T175-T$6) -> -0.1320962251 | V175: -0.135963585 | W175: =IF(V175="","",V175-V$6) -> -0.01638886241 | X175: -0.008077573702 | Y175: =IF(X175="","",X175-X$6) -> 0.04471123228 | Z175: 0.134327757 | AA175: =IF(Z175="","",Z175-Z$6) -> 0.1168311778 | AB175: 0.4383579885 | AC175: =IF(AB175="","",AB175-AB$6) -> 0.3418431228 | AD175: 0.4238353378 | AE175: =IF(AD175="","",AD175-AD$6) -> 0.2027698959 | AF175: 0.538333802 | AG175: =IF(AF175="","",AF175-AF$6) -> 0.1141234906 | AH175: 0.8774602542 | AI175: =IF(AH175="","",AH175-AH$6) -> 0.4929321128 | AJ175: 42.43789957 | AL175: 0.1479993572 | AM175: -0.1282051282 | AN175: 0.08663453626 | AO175: -0.08990307737 | AP175: 7 | AQ175: 5 | AR175: 0.5539832473 | AS175: 0.04393747323 | AT175: -0.3684798052 | AU175: 2020-03-04 | AV175: 2020-03-23
B176: EXC<XNYS> | C176: Exelon Corp | D176: Generación, transmisión y suministro de energía eléctrica | E176: 37.43 | F176: 49.9975 | G176: 0.7486374319 | H176: 2020-02-18 | I176: 304.6174299 | J176: 270.5026567 | K176: =IFERROR(I176/J176,"") -> 1.126116222 | N176: 0.06820776256 | O176: 0.05133626155 | P176: 0.0094390507 | Q176: 0.003474958859 | R176: -0.1727055535 | S176: =IF(R176="","",R176-R$6) -> -0.07954538781 | T176: -0.004256451185 | U176: =IF(T176="","",T176-T$6) -> -0.06964601765 | V176: -0.2173406554 | W176: =IF(V176="","",V176-V$6) -> -0.09776593281 | X176: -0.1494941371 | Y176: =IF(X176="","",X176-X$6) -> -0.0967053311 | Z176: -0.2051807123 | AA176: =IF(Z176="","",Z176-Z$6) -> -0.2226772915 | AB176: -0.02179206888 | AC176: =IF(AB176="","",AB176-AB$6) -> -0.1183069346 | AD176: 0.2054339789 | AE176: =IF(AD176="","",AD176-AD$6) -> -0.01563146304 | AF176: 0.2016006677 | AG176: =IF(AF176="","",AF176-AF$6) -> -0.2226096437 | AH176: 0.3145301833 | AI176: =IF(AH176="","",AH176-AH$6) -> -0.0699979581 | AJ176: 45.32616696 | AL176: 0.1799410029 | AM176: -0.1608910891 | AN176: 0.05724318095 | AO176: -0.1461377871 | AP176: 6 | AQ176: 6 | AR176: -0.2462349486 | AS176: 0.04691864355 | AT176: -0.4003700185 | AU176: 2020-02-18 | AV176: 2020-03-23
B177: EXPE<XNAS> | C177: Expedia Group, Inc | D177: Agencias de viajes y servicios de reservaciones | E177: 69.27 | F177: 138.0499846 | G177: 0.5017747752 | H177: 2019-07-26 | I177: 191.1164149 | J177: 272.8065269 | K177: =IFERROR(I177/J177,"") -> 0.7005566072 | N177: 0.04228107132 | O177: 0.02540957031 | P177: -0.02409129332 | Q177: -0.03005538516 | R177: -0.3570615074 | S177: =IF(R177="","",R177-R$6) -> -0.2639013417 | T177: 0.1440132122 | U177: =IF(T177="","",T177-T$6) -> 0.07862364575 | V177: -0.3684497357 | W177: =IF(V177="","",V177-V$6) -> -0.2488750132 | X177: -0.3113369324 | Y177: =IF(X177="","",X177-X$6) -> -0.2585481265 | Z177: -0.4243988312 | AA177: =IF(Z177="","",Z177-Z$6) -> -0.4418954104 | AB177: -0.358907634 | AC177: =IF(AB177="","",AB177-AB$6) -> -0.4554224997 | AD177: -0.4875268419 | AE177: =IF(AD177="","",AD177-AD$6) -> -0.7085922838 | AF177: -0.3622366452 | AG177: =IF(AF177="","",AF177-AF$6) -> -0.7864469566 | AH177: -0.2920126367 | AI177: =IF(AH177="","",AH177-AH$6) -> -0.6765407781 | AJ177: 64.52589817 | AL177: 0.1697148476 | AM177: -0.2738622931 | AN177: 0.2614181624 | AO177: -0.4273061462 | AP177: 6 | AQ177: 6 | AR177: -0.4635074625 | AS177: 0.0632061437 | AT177: -0.6693226724 | AU177: 2019-07-26 | AV177: 2020-03-18
B178: EXPD<XNAS> | C178: Expeditors Intl Of Washington, Inc | D178: Servicios de intermediación para el transporte de carga | E178: 74.83 | F178: 81.34 | G178: 0.9199655766 | H178: 2020-01-16 | I178: 74.702789 | J178: 91.19980334 | K178: =IFERROR(I178/J178,"") -> 0.8191112948 | N178: 0.006050013444 | O178: -0.01082148757 | P178: 0.04503875428 | Q178: 0.03907466244 | R178: -0.04088695206 | S178: =IF(R178="","",R178-R$6) -> 0.05227321359 | T178: 0.03256519939 | U178: =IF(T178="","",T178-T$6) -> -0.03282436708 | V178: 0.02031633488 | W178: =IF(V178="","",V178-V$6) -> 0.1398910574 | X178: -0.02514288466 | Y178: =IF(X178="","",X178-X$6) -> 0.02764592132 | Z178: 0.01236726037 | AA178: =IF(Z178="","",Z178-Z$6) -> -0.005129318801 | AB178: 0.1034465791 | AC178: =IF(AB178="","",AB178-AB$6) -> 0.006931713429 | AD178: 0.4511856743 | AE178: =IF(AD178="","",AD178-AD$6) -> 0.2301202324 | AF178: 0.6351534838 | AG178: =IF(AF178="","",AF178-AF$6) -> 0.2109431724 | AH178: 0.6715027017 | AI178: =IF(AH178="","",AH178-AH$6) -> 0.2869745603 | AJ178: 31.66805207 | AL178: 0.1294307197 | AM178: -0.09838833461 | AN178: 0.09009915218 | AO178: -0.06876227898 | AP178: 7 | AQ178: 5 | AR178: 0.1943871399 | AS178: 0.03272228197 | AT178: -0.3245635604 | AU178: 2020-01-16 | AV178: 2020-03-20
B179: EXR<XNYS> | C179: Extra Space Storage Inc | D179: Otros fondos | E179: 91.69 | F179: 120.3568917 | G179: 0.7618176138 | H179: 2019-09-04 | I179: 75.71283412 | J179: 103.2123055 | K179: =IFERROR(I179/J179,"") -> 0.7335640238 | N179: 0.03992287626 | O179: 0.02305137525 | P179: 0.03909791478 | Q179: 0.03313382294 | R179: -0.1236964459 | S179: =IF(R179="","",R179-R$6) -> -0.03053628028 | T179: -0.06619818719 | U179: =IF(T179="","",T179-T$6) -> -0.1315877537 | V179: -0.160192529 | W179: =IF(V179="","",V179-V$6) -> -0.04061780644 | X179: -0.1214990336 | Y179: =IF(X179="","",X179-X$6) -> -0.06871022764 | Z179: -0.08262221308 | AA179: =IF(Z179="","",Z179-Z$6) -> -0.1001187923 | AB179: 0.05163936969 | AC179: =IF(AB179="","",AB179-AB$6) -> -0.04487549602 | AD179: 0.3960411642 | AE179: =IF(AD179="","",AD179-AD$6) -> 0.1749757223 | AF179: 0.150869558 | AG179: =IF(AF179="","",AF179-AF$6) -> -0.2733407534 | AH179: 0.6016781506 | AI179: =IF(AH179="","",AH179-AH$6) -> 0.2171500092 | AJ179: 35.4107465 | AL179: 0.08176782274 | AM179: -0.1546904121 | AN179: 0.08479402082 | AO179: -0.0932417781 | AP179: 5 | AQ179: 7 | AR179: -0.08661434539 | AS179: 0.03586262039 | AT179: -0.3800936616 | AU179: 2019-09-04 | AV179: 2020-03-23
B180: XOM<XNYS> | C180: Exxon Mobil Corp | D180: Fabricación de productos derivados del petróleo y del carbón | E180: 46.18 | F180: 74.73679944 | G180: 0.6179017612 | H180: 2019-06-21 | I180: 911.324848 | J180: 1041.382364 | K180: =IFERROR(I180/J180,"") -> 0.8751106983 | N180: 0.0438517179 | O180: 0.02698021689 | P180: -0.006240585323 | Q180: -0.01220467716 | R180: -0.3287047836 | S180: =IF(R180="","",R180-R$6) -> -0.235544618 | T180: 0.05313568985 | U180: =IF(T180="","",T180-T$6) -> -0.01225387662 | V180: -0.2379537954 | W180: =IF(V180="","",V180-V$6) -> -0.1183790728 | X180: -0.3380955179 | Y180: =IF(X180="","",X180-X$6) -> -0.2853067119 | Z180: -0.3681020258 | AA180: =IF(Z180="","",Z180-Z$6) -> -0.385598605 | AB180: -0.3518870713 | AC180: =IF(AB180="","",AB180-AB$6) -> -0.448401937 | AD180: -0.3654959325 | AE180: =IF(AD180="","",AD180-AD$6) -> -0.5865613744 | AF180: -0.3847543913 | AG180: =IF(AF180="","",AF180-AF$6) -> -0.8089647027 | AH180: -0.3661083018 | AI180: =IF(AH180="","",AH180-AH$6) -> -0.7506364432 | AJ180: 42.21014941 | AL180: 0.1268680445 | AM180: -0.1222478507 | AN180: 0.2238609428 | AO180: -0.2618584759 | AP180: 5 | AQ180: 7 | AR180: -0.7588357604 | AS180: 0.04328066875 | AT180: -0.5791899006 | AU180: 2019-06-21 | AV180: 2020-03-23
B181: FFIV<XNAS> | C181: F5 Networks, Inc | D181: Fabricación de equipo de comunicación | E181: 149.02 | F181: 153.81 | G181: 0.9688576816 | H181: 2019-07-26 | I181: 125.9356098 | J181: 98.48022227 | K181: =IFERROR(I181/J181,"") -> 1.278790877 | N181: 0.04421554201 | O181: 0.027344041 | P181: 0.07008473359 | Q181: 0.06412064175 | R181: 0.06709631221 | S181: =IF(R181="","",R181-R$6) -> 0.1602564779 | T181: 0.2325889165 | U181: =IF(T181="","",T181-T$6) -> 0.16719935 | V181: 0.2058585532 | W181: =IF(V181="","",V181-V$6) -> 0.3254332757 | X181: 0.004110235161 | Y181: =IF(X181="","",X181-X$6) -> 0.05689904114 | Z181: -0.00401015907 | AA181: =IF(Z181="","",Z181-Z$6) -> -0.02150673824 | AB181: -0.1214997347 | AC181: =IF(AB181="","",AB181-AB$6) -> -0.2180146004 | AD181: 0.1484278668 | AE181: =IF(AD181="","",AD181-AD$6) -> -0.07263757508 | AF181: 0.4807233704 | AG181: =IF(AF181="","",AF181-AF$6) -> 0.05651305903 | AH181: 0.1822292741 | AI181: =IF(AH181="","",AH181-AH$6) -> -0.2022988673 | AJ181: 37.79647707 | AL181: 0.08591938156 | AM181: -0.09498580889 | AN181: 0.3060114414 | AO181: -0.125528106 | AP181: 7 | AQ181: 5 | AR181: 0.159462047 | AS181: 0.03896192359 | AT181: -0.4112866524 | AU181: 2019-07-26 | AV181: 2020-03-18
B182: FB<XNAS> | C182: Facebook, Inc | D182: Servicios profesionales, científicos y técnicos | E182: 212.35 | F182: 223.23 | G182: 0.9512610312 | H182: 2020-01-29 | I182: 2646.530579 | J182: 3186.181721 | K182: =IFERROR(I182/J182,"") -> 0.8306276322 | N182: 0.005159519076 | O182: -0.01171198194 | P182: 0.03732108837 | Q182: 0.03135699653 | R182: 0.03459196102 | S182: =IF(R182="","",R182-R$6) -> 0.1277521267 | T182: 0.2184415882 | U182: =IF(T182="","",T182-T$6) -> 0.1530520218 | V182: 9.419300113e-05 | W182: =IF(V182="","",V182-V$6) -> 0.1196689156 | X182: 0.1127122197 | Y182: =IF(X182="","",X182-X$6) -> 0.1655010256 | Z182: 0.1203439907 | AA182: =IF(Z182="","",Z182-Z$6) -> 0.1028474115 | AB182: 0.1868432819 | AC182: =IF(AB182="","",AB182-AB$6) -> 0.0903284162 | AD182: 0.4057328214 | AE182: =IF(AD182="","",AD182-AD$6) -> 0.1846673795 | AF182: 0.777136162 | AG182: =IF(AF182="","",AF182-AF$6) -> 0.3529258506 | AH182: 1.704750987 | AI182: =IF(AH182="","",AH182-AH$6) -> 1.320222846 | AJ182: 39.67487284 | AL182: 0.1023499709 | AM182: -0.1425299507 | AN182: 0.2272781775 | AO182: -0.1333714345 | AP182: 7 | AQ182: 5 | AR182: 0.5248573579 | AS182: 0.0406116923 | AT182: -0.3459212471 | AU182: 2020-01-29 | AV182: 2020-03-16
B183: FAST<XNAS> | C183: Fastenal Co | D183: Tienda de materiales para construcción y jardineria | E183: 39.05 | F183: 39.05 | G183: 1 | H183: 2020-05-08 | I183: 125.9621402 | J183: 157.7463238 | K183: =IFERROR(I183/J183,"") -> 0.7985107804 | N183: 0.02278679937 | O183: 0.005915298359 | P183: 0.07813362783 | Q183: 0.07216953599 | R183: 0.07168076473 | S183: =IF(R183="","",R183-R$6) -> 0.1648409304 | T183: 0.2103061853 | U183: =IF(T183="","",T183-T$6) -> 0.1449166188 | V183: 0.05282056117 | W183: =IF(V183="","",V183-V$6) -> 0.1723952837 | X183: 0.0682116066 | Y183: =IF(X183="","",X183-X$6) -> 0.1210004126 | Z183: 0.2121408381 | AA183: =IF(Z183="","",Z183-Z$6) -> 0.1946442589 | AB183: 0.6079393625 | AC183: =IF(AB183="","",AB183-AB$6) -> 0.5114244968 | AD183: 0.8526893387 | AE183: =IF(AD183="","",AD183-AD$6) -> 0.6316238968 | AF183: 0.8777242315 | AG183: =IF(AF183="","",AF183-AF$6) -> 0.4535139201 | AH183: 1.103087198 | AI183: =IF(AH183="","",AH183-AH$6) -> 0.7185590562 | AJ183: 41.39754835 | AL183: 0.1715022566 | AM183: -0.1102167183 | AN183: 0.167138379 | AO183: -0.08679135009 | AP183: 6 | AQ183: 6 | AR183: 0.8180421283 | AS183: 0.04341430679 | AT183: -0.2778062532 | AU183: 2020-02-20 | AV183: 2020-03-23 | AW183: 55
B184: FRT<XNYS> | C184: Federal Realty Investment Trust | D184: Otros fondos | E184: 78.12 | F184: 138.5976804 | G184: 0.563645797 | H184: 2019-10-30 | I184: 55.98376056 | J184: 61.0362281 | K184: =IFERROR(I184/J184,"") -> 0.9172218255 | N184: 0.04173889852 | O184: 0.02486739751 | P184: -0.06184700372 | Q184: -0.06781109556 | R184: -0.3869812597 | S184: =IF(R184="","",R184-R$6) -> -0.293821094 | T184: -0.02678460197 | U184: =IF(T184="","",T184-T$6) -> -0.09217416844 | V184: -0.3835814526 | W184: =IF(V184="","",V184-V$6) -> -0.26400673 | X184: -0.3948567029 | Y184: =IF(X184="","",X184-X$6) -> -0.342067897 | Z184: -0.3761939055 | AA184: =IF(Z184="","",Z184-Z$6) -> -0.3936904847 | AB184: -0.2913514168 | AC184: =IF(AB184="","",AB184-AB$6) -> -0.3878662825 | AD184: -0.3393311416 | AE184: =IF(AD184="","",AD184-AD$6) -> -0.5603965835 | AF184: -0.4380305545 | AG184: =IF(AF184="","",AF184-AF$6) -> -0.8622408659 | AH184: -0.3220180149 | AI184: =IF(AH184="","",AH184-AH$6) -> -0.7065461563 | AJ184: 49.97378403 | AL184: 0.1411429429 | AM184: -0.2135416667 | AN184: 0.1160702319 | AO184: -0.3521726688 | AP184: 3 | AQ184: 9 | AR184: -0.6327894985 | AS184: 0.04971591138 | AT184: -0.5251724283 | AU184: 2019-10-30 | AV184: 2020-04-03
B185: FDX<XNYS> | C185: Fedex Corp | D185: Servicios de mensajería y paquetería foránea | E185: 120.44 | F185: 176.5202646 | G185: 0.6823012659 | H185: 2019-05-09 | I185: 212.7164308 | J185: 396.8586228 | K185: =IFERROR(I185/J185,"") -> 0.5360005267 | N185: 0.03169436354 | O185: 0.01482286253 | P185: -0.04993294944 | Q185: -0.05589704128 | R185: -0.1994871117 | S185: =IF(R185="","",R185-R$6) -> -0.1063269461 | T185: -0.04062450215 | U185: =IF(T185="","",T185-T$6) -> -0.1060140686 | V185: -0.2223721326 | W185: =IF(V185="","",V185-V$6) -> -0.1027974101 | X185: -0.2552455166 | Y185: =IF(X185="","",X185-X$6) -> -0.2024567106 | Z185: -0.3172043956 | AA185: =IF(Z185="","",Z185-Z$6) -> -0.3347009747 | AB185: -0.4874871746 | AC185: =IF(AB185="","",AB185-AB$6) -> -0.5840020404 | AD185: -0.3453526835 | AE185: =IF(AD185="","",AD185-AD$6) -> -0.5664181255 | AF185: -0.2160158247 | AG185: =IF(AF185="","",AF185-AF$6) -> -0.6402261361 | AH185: -0.2669719039 | AI185: =IF(AH185="","",AH185-AH$6) -> -0.6515000453 | AJ185: 49.64275973 | AL185: 0.1203852327 | AM185: -0.1513645316 | AN185: 0.06835511169 | AO185: -0.1367168898 | AP185: 5 | AQ185: 7 | AR185: -0.4956513115 | AS185: 0.0504714848 | AT185: -0.4873676391 | AU185: 2019-05-09 | AV185: 2020-03-16
B186: FIS<XNYS> | C186: Fidelity National Information Services, Inc | D186: Servicios de apoyo secretarial, fotocopiado, cobranza, investigación crediticia y similares | E186: 128.23 | F186: 157.0255596 | G186: 0.816618647 | H186: 2020-02-14 | I186: 580.7180221 | J186: 496.2588417 | K186: =IFERROR(I186/J186,"") -> 1.17019179 | N186: -0.009347960445 | O186: -0.02621946146 | P186: -0.02775039806 | Q186: -0.0337144899 | R186: -0.07564569857 | S186: =IF(R186="","",R186-R$6) -> 0.01751446708 | T186: 0.02773102509 | U186: =IF(T186="","",T186-T$6) -> -0.03765854138 | V186: -0.1221600452 | W186: =IF(V186="","",V186-V$6) -> -0.002585322603 | X186: -0.01368585646 | Y186: =IF(X186="","",X186-X$6) -> 0.03910294952 | Z186: 0.1160757547 | AA186: =IF(Z186="","",Z186-Z$6) -> 0.09857917556 | AB186: 0.2715322534 | AC186: =IF(AB186="","",AB186-AB$6) -> 0.1750173877 | AD186: 0.594679952 | AE186: =IF(AD186="","",AD186-AD$6) -> 0.3736145101 | AF186: 0.8914231422 | AG186: =IF(AF186="","",AF186-AF$6) -> 0.4672128308 | AH186: 1.104578811 | AI186: =IF(AH186="","",AH186-AH$6) -> 0.7200506696 | AJ186: 42.34414544 | AL186: 0.1631039531 | AM186: -0.1658968437 | AN186: 0.08615911314 | AO186: -0.1271038743 | AP186: 7 | AQ186: 5 | AR186: 0.4274619449 | AS186: 0.04341718015 | AT186: -0.3475584466 | AU186: 2020-02-14 | AV186: 2020-03-23
B187: FITB<XNAS> | C187: Fifth Third Bancorp | D187: Bancos | E187: 18.095 | F187: 30.75350711 | G187: 0.5883881774 | H187: 2019-12-12 | I187: 97.62203644 | J187: 149.7511616 | K187: =IFERROR(I187/J187,"") -> 0.6518950198 | N187: 0.04414310444 | O187: 0.02727160343 | P187: -0.03183520599 | Q187: -0.03779929783 | R187: -0.401937728 | S187: =IF(R187="","",R187-R$6) -> -0.3087775623 | T187: 0.084182145 | U187: =IF(T187="","",T187-T$6) -> 0.01879257853 | V187: -0.376587513 | W187: =IF(V187="","",V187-V$6) -> -0.2570127904 | X187: -0.3937060305 | Y187: =IF(X187="","",X187-X$6) -> -0.3409172245 | Z187: -0.3201817068 | AA187: =IF(Z187="","",Z187-Z$6) -> -0.3376782859 | AB187: -0.4124258206 | AC187: =IF(AB187="","",AB187-AB$6) -> -0.5089406864 | AD187: -0.2030387467 | AE187: =IF(AD187="","",AD187-AD$6) -> -0.4241041886 | AF187: 0.1657977778 | AG187: =IF(AF187="","",AF187-AF$6) -> -0.2584125336 | AH187: 0.03578714773 | AI187: =IF(AH187="","",AH187-AH$6) -> -0.3487409937 | AJ187: 62.65988194 | AL187: 0.1850328947 | AM187: -0.2178105502 | AN187: 0.2585858586 | AO187: -0.3816586221 | AP187: 7 | AQ187: 5 | AR187: -0.2909449096 | AS187: 0.06382337535 | AT187: -0.6265052304 | AU187: 2019-12-12 | AV187: 2020-03-18
B188: FRC<XNYS> | C188: First Republic Bank | D188: Bancos | E188: 103.91 | F188: 120.319011 | G188: 0.8636207958 | H188: 2020-01-14 | I188: 81.25980211 | J188: 116.3812528 | K188: =IFERROR(I188/J188,"") -> 0.6982207201 | N188: 0.01992540243 | O188: 0.003053901422 | P188: -0.003643685876 | Q188: -0.009607777717 | R188: -0.1121139967 | S188: =IF(R188="","",R188-R$6) -> -0.018953831 | T188: 0.114644655 | U188: =IF(T188="","",T188-T$6) -> 0.04925508851 | V188: -0.09479340253 | W188: =IF(V188="","",V188-V$6) -> 0.02478132002 | X188: -0.05387215485 | Y188: =IF(X188="","",X188-X$6) -> -0.001083348869 | Z188: 0.0205893965 | AA188: =IF(Z188="","",Z188-Z$6) -> 0.003092817331 | AB188: 0.09174138077 | AC188: =IF(AB188="","",AB188-AB$6) -> -0.004773484947 | AD188: 0.1309920328 | AE188: =IF(AD188="","",AD188-AD$6) -> -0.09007340911 | AF188: 0.5684660274 | AG188: =IF(AF188="","",AF188-AF$6) -> 0.144255716 | AH188: 0.8220687687 | AI188: =IF(AH188="","",AH188-AH$6) -> 0.4375406273 | AJ188: 43.75343397 | AL188: 0.1287988423 | AM188: -0.1434769135 | AN188: 0.2699141246 | AO188: -0.1818633787 | AP188: 7 | AQ188: 5 | AR188: 0.2578823885 | AS188: 0.04497042272 | AT188: -0.3728642291 | AU188: 2020-01-14 | AV188: 2020-03-23
B189: FE<XNYS> | C189: Firstenergy Corp | D189: Generación, transmisión y suministro de energía eléctrica | E189: 40.6 | F189: 51.78090931 | G189: 0.7840727508 | H189: 2020-02-18 | I189: 103.6010094 | J189: 172.9353591 | K189: =IFERROR(I189/J189,"") -> 0.5990736071 | N189: 0.00969907983 | O189: -0.007172421181 | P189: -0.006942508277 | Q189: -0.01290660012 | R189: -0.1503349268 | S189: =IF(R189="","",R189-R$6) -> -0.05717476117 | T189: -0.05196662773 | U189: =IF(T189="","",T189-T$6) -> -0.1173561942 | V189: -0.2000100979 | W189: =IF(V189="","",V189-V$6) -> -0.08043537537 | X189: -0.1136784169 | Y189: =IF(X189="","",X189-X$6) -> -0.06088961093 | Z189: 0.01340193819 | AA189: =IF(Z189="","",Z189-Z$6) -> -0.004094640979 | AB189: 0.3128588023 | AC189: =IF(AB189="","",AB189-AB$6) -> 0.2163439366 | AD189: 0.5699308333 | AE189: =IF(AD189="","",AD189-AD$6) -> 0.3488653914 | AF189: 0.4440488405 | AG189: =IF(AF189="","",AF189-AF$6) -> 0.0198385291 | AH189: 0.4232187248 | AI189: =IF(AH189="","",AH189-AH$6) -> 0.03869058339 | AJ189: 40.72304613 | AL189: 0.1693877551 | AM189: -0.1682832202 | AN189: 0.05540016358 | AO189: -0.1166157399 | AP189: 8 | AQ189: 4 | AR189: 0.2657395466 | AS189: 0.04188075944 | AT189: -0.3650277406 | AU189: 2020-02-18 | AV189: 2020-03-23
B190: FISV<XNAS> | C190: Fiserv, Inc | D190: Procesamiento electrónico de información, hospedaje y otros servicios relacionados | E190: 104.78 | F190: 123.89 | G190: 0.8457502623 | H190: 2020-02-04 | I190: 890.2280639 | J190: 415.7379067 | K190: =IFERROR(I190/J190,"") -> 2.141320408 | N190: -0.02366753634 | O190: -0.04053903735 | P190: 0.0166893072 | Q190: 0.01072521536 | R190: -0.09383378016 | S190: =IF(R190="","",R190-R$6) -> -0.0006736145042 | T190: 0.06516214293 | U190: =IF(T190="","",T190-T$6) -> -0.0002274235394 | V190: -0.1401608403 | W190: =IF(V190="","",V190-V$6) -> -0.02058611775 | X190: -0.05270771178 | Y190: =IF(X190="","",X190-X$6) -> 8.109419919e-05 | Z190: 0.2266448139 | AA190: =IF(Z190="","",Z190-Z$6) -> 0.2091482347 | AB190: 0.4881408891 | AC190: =IF(AB190="","",AB190-AB$6) -> 0.3916260234 | AD190: 0.7486648865 | AE190: =IF(AD190="","",AD190-AD$6) -> 0.5275994446 | AF190: 1.041699143 | AG190: =IF(AF190="","",AF190-AF$6) -> 0.6174888312 | AH190: 1.614923883 | AI190: =IF(AH190="","",AH190-AH$6) -> 1.230395742 | AJ190: 43.668624 | AL190: 0.1253246753 | AM190: -0.1666988977 | AN190: 0.1565379552 | AO190: -0.1314008778 | AP190: 8 | AQ190: 4 | AR190: 0.7574835176 | AS190: 0.04469879441 | AT190: -0.3784809105 | AU190: 2020-02-04 | AV190: 2020-03-23
B191: FLT<XNYS> | C191: Fleetcor Technologies, Inc | D191: Servicios de apoyo secretarial, fotocopiado, cobranza, investigación crediticia y similares | E191: 240 | F191: 328.85 | G191: 0.7298160255 | H191: 2020-02-06 | I191: 334.42992 | J191: 205.1320707 | K191: =IFERROR(I191/J191,"") -> 1.630315137 | N191: -0.03513709094 | O191: -0.05200859195 | P191: -0.00518134715 | Q191: -0.01114543899 | R191: -0.165855693 | S191: =IF(R191="","",R191-R$6) -> -0.07269552738 | T191: 0.08937406382 | U191: =IF(T191="","",T191-T$6) -> 0.02398449735 | V191: -0.2176294171 | W191: =IF(V191="","",V191-V$6) -> -0.09805469458 | X191: -0.1821434657 | Y191: =IF(X191="","",X191-X$6) -> -0.1293546597 | Z191: -0.09838836921 | AA191: =IF(Z191="","",Z191-Z$6) -> -0.1158849484 | AB191: 0.1808118081 | AC191: =IF(AB191="","",AB191-AB$6) -> 0.0842969424 | AD191: 0.78292846 | AE191: =IF(AD191="","",AD191-AD$6) -> 0.5618630181 | AF191: 0.5848907086 | AG191: =IF(AF191="","",AF191-AF$6) -> 0.1606803972 | AH191: 0.5501873143 | AI191: =IF(AH191="","",AH191-AH$6) -> 0.1656591729 | AJ191: 46.09111429 | AL191: 0.115326334 | AM191: -0.1066383047 | AN191: 0.2932883028 | AO191: -0.2981677264 | AP191: 7 | AQ191: 5 | AR191: -0.005486059474 | AS191: 0.04756609242 | AT191: -0.4778166337 | AU191: 2020-02-06 | AV191: 2020-03-23
B192: FLIR<XNAS> | C192: Flir Systems, Inc | D192: Fabricación de instrumentos de medición, control, navegación, y equipo médico electrónico | E192: 48.09 | F192: 58.54510169 | G192: 0.8214179942 | H192: 2020-02-13 | I192: 134.8563344 | J192: 47.77460265 | K192: =IFERROR(I192/J192,"") -> 2.822762031 | N192: 0.003966597078 | O192: -0.01290490393 | P192: 0.1080645161 | Q192: 0.1021004243 | R192: -0.07257223203 | S192: =IF(R192="","",R192-R$6) -> 0.02058793362 | T192: 0.3799139168 | U192: =IF(T192="","",T192-T$6) -> 0.3145243503 | V192: -0.08970473369 | W192: =IF(V192="","",V192-V$6) -> 0.02986998887 | X192: -0.09004669284 | Y192: =IF(X192="","",X192-X$6) -> -0.03725788686 | Z192: -0.05645772187 | AA192: =IF(Z192="","",Z192-Z$6) -> -0.07395430104 | AB192: -0.103953868 | AC192: =IF(AB192="","",AB192-AB$6) -> -0.2004687337 | AD192: 0.3595777387 | AE192: =IF(AD192="","",AD192-AD$6) -> 0.1385122968 | AF192: 0.6753354552 | AG192: =IF(AF192="","",AF192-AF$6) -> 0.2511251438 | AH192: 0.6373387681 | AI192: =IF(AH192="","",AH192-AH$6) -> 0.2528106267 | AJ192: 52.21729029 | AL192: 0.1411420205 | AM192: -0.1872611465 | AN192: 0.3609281907 | AO192: -0.2459760271 | AP192: 5 | AQ192: 7 | AR192: 0.1102448213 | AS192: 0.05301407796 | AT192: -0.5640967517 | AU192: 2020-02-13 | AV192: 2020-03-20
B193: FLS<XNYS> | C193: Flowserve Corp | D193: Fabricación de otra maquinaria y equipo para la industria en general | E193: 26.78 | F193: 52.58581336 | G193: 0.5092628275 | H193: 2019-07-03 | I193: 54.36626546 | J193: 42.33847279 | K193: =IFERROR(I193/J193,"") -> 1.284086597 | N193: -0.02369668246 | O193: -0.04056818348 | P193: -0.04934327299 | Q193: -0.05530736483 | R193: -0.4572048969 | S193: =IF(R193="","",R193-R$6) -> -0.3640447313 | T193: -0.06819763396 | U193: =IF(T193="","",T193-T$6) -> -0.1335872004 | V193: -0.4259474653 | W193: =IF(V193="","",V193-V$6) -> -0.3063727428 | X193: -0.4480366267 | Y193: =IF(X193="","",X193-X$6) -> -0.3952478207 | Z193: -0.444191505 | AA193: =IF(Z193="","",Z193-Z$6) -> -0.4616880841 | AB193: -0.4060777003 | AC193: =IF(AB193="","",AB193-AB$6) -> -0.502592566 | AD193: -0.4296282062 | AE193: =IF(AD193="","",AD193-AD$6) -> -0.6506936481 | AF193: -0.3782951344 | AG193: =IF(AF193="","",AF193-AF$6) -> -0.8025054458 | AH193: -0.475250271 | AI193: =IF(AH193="","",AH193-AH$6) -> -0.8597784124 | AJ193: 51.27695629 | AL193: 0.1091476091 | AM193: -0.1823625476 | AN193: 0.1791544579 | AO193: -0.4003592584 | AP193: 5 | AQ193: 7 | AR193: -0.7314999489 | AS193: 0.0518626403 | AT193: -0.6373034012 | AU193: 2019-07-03 | AV193: 2020-03-23
B194: FMC<XNYS> | C194: FMC Corp | D194: Industria química | E194: 93.48 | F194: 107.668131 | G194: 0.8682234854 | H194: 2020-02-20 | I194: 91.82073 | J194: 85.42024842 | K194: =IFERROR(I194/J194,"") -> 1.074929325 | N194: -0.006694293911 | O194: -0.02356579492 | P194: 0.01719260065 | Q194: 0.01122850881 | R194: -0.05810537729 | S194: =IF(R194="","",R194-R$6) -> 0.03505478837 | T194: 0.1280318571 | U194: =IF(T194="","",T194-T$6) -> 0.06264229066 | V194: -0.1057644927 | W194: =IF(V194="","",V194-V$6) -> 0.01381022987 | X194: -0.03346188323 | Y194: =IF(X194="","",X194-X$6) -> 0.01932692275 | Z194: 0.207219842 | AA194: =IF(Z194="","",Z194-Z$6) -> 0.1897232628 | AB194: 0.2771515932 | AC194: =IF(AB194="","",AB194-AB$6) -> 0.1806367275 | AD194: 0.5444579108 | AE194: =IF(AD194="","",AD194-AD$6) -> 0.3233924689 | AF194: 1.374449 | AG194: =IF(AF194="","",AF194-AF$6) -> 0.9502386888 | AH194: 0.9002892365 | AI194: =IF(AH194="","",AH194-AH$6) -> 0.5157610951 | AJ194: 50.91479793 | AL194: 0.1370092975 | AM194: -0.1935264055 | AN194: 0.1347835995 | AO194: -0.1174884573 | AP194: 8 | AQ194: 4 | AR194: 0.7049356769 | AS194: 0.05200694669 | AT194: -0.4475944224 | AU194: 2020-02-20 | AV194: 2020-03-18
B195: F<XNYS> | C195: Ford Motor Co | D195: Fabricación de automóviles y camiones | E195: 5.24 | F195: 10.01786627 | G195: 0.5230654772 | H195: 2019-07-16 | I195: 526.1452822 | J195: 403.1686124 | K195: =IFERROR(I195/J195,"") -> 1.305025406 | N195: 0.07597535934 | O195: 0.05910385833 | P195: 0.02946954813 | Q195: 0.02350545629 | R195: -0.4269768122 | S195: =IF(R195="","",R195-R$6) -> -0.3338166466 | T195: 0.04174950298 | U195: =IF(T195="","",T195-T$6) -> -0.02364006349 | V195: -0.3538840937 | W195: =IF(V195="","",V195-V$6) -> -0.2343093712 | X195: -0.4104960568 | Y195: =IF(X195="","",X195-X$6) -> -0.3577072509 | Z195: -0.4683348003 | AA195: =IF(Z195="","",Z195-Z$6) -> -0.4858313794 | AB195: -0.4794731962 | AC195: =IF(AB195="","",AB195-AB$6) -> -0.5759880619 | AD195: -0.438788139 | AE195: =IF(AD195="","",AD195-AD$6) -> -0.6598535809 | AF195: -0.5101159738 | AG195: =IF(AF195="","",AF195-AF$6) -> -0.9343262852 | AH195: -0.5518685422 | AI195: =IF(AH195="","",AH195-AH$6) -> -0.9363966836 | AJ195: 47.24063589 | AL195: 0.2344139651 | AM195: -0.1101243339 | AN195: 0.07457983193 | AO195: -0.3060344828 | AP195: 5 | AQ195: 7 | AR195: -0.8765598001 | AS195: 0.04940288953 | AT195: -0.5997151596 | AU195: 2019-07-16 | AV195: 2020-03-23
B196: FTNT<XNAS> | C196: Fortinet, Inc | D196: Fabricación de maquinaria y equipo para el comercio y los servicios | E196: 136.84 | F196: 136.84 | G196: 1 | H196: 2020-05-08 | I196: 350.0813298 | J196: 147.9833729 | K196: =IFERROR(I196/J196,"") -> 2.365680165 | N196: 0.0127294257 | O196: -0.004142075315 | P196: 0.2700946724 | Q196: 0.2641305805 | R196: 0.2817534657 | S196: =IF(R196="","",R196-R$6) -> 0.3749136314 | T196: 0.2533431031 | U196: =IF(T196="","",T196-T$6) -> 0.1879535367 | V196: 0.1684740842 | W196: =IF(V196="","",V196-V$6) -> 0.2880488068 | X196: 0.4220097683 | Y196: =IF(X196="","",X196-X$6) -> 0.4747985742 | Z196: 0.6759338641 | AA196: =IF(Z196="","",Z196-Z$6) -> 0.6584372849 | AB196: 1.403231472 | AC196: =IF(AB196="","",AB196-AB$6) -> 1.306716606 | AD196: 2.439919558 | AE196: =IF(AD196="","",AD196-AD$6) -> 2.218854116 | AF196: 3.277586746 | AG196: =IF(AF196="","",AF196-AF$6) -> 2.853376434 | AH196: 2.507818508 | AI196: =IF(AH196="","",AH196-AH$6) -> 2.123290367 | AJ196: 50.67279143 | AL196: 0.2122734613 | AM196: -0.1380329733 | AN196: 0.2887444826 | AO196: -0.1152912621 | AP196: 8 | AQ196: 4 | AR196: 1.71245664 | AS196: 0.05316284218 | AT196: -0.3760817605 | AU196: 2020-02-06 | AV196: 2020-03-16 | AW196: 63
B197: FTV<XNYS> | C197: Fortive Corp | D197: Fabricación de instrumentos de medición, control, navegación, y equipo médico electrónico | E197: 59.27 | F197: 82.4251446 | G197: 0.7190766881 | H197: 2019-07-01 | I197: 182.7968 | J197: 140.5394729 | K197: =IFERROR(I197/J197,"") -> 1.300679419 | N197: 0.02313136544 | O197: 0.006259864431 | P197: -0.07390625 | Q197: -0.07987034184 | R197: -0.2233446816 | S197: =IF(R197="","",R197-R$6) -> -0.1301845159 | T197: -0.02259234828 | U197: =IF(T197="","",T197-T$6) -> -0.08798191475 | V197: -0.2491938778 | W197: =IF(V197="","",V197-V$6) -> -0.1296191553 | X197: -0.1851493354 | Y197: =IF(X197="","",X197-X$6) -> -0.1323605294 | Z197: -0.278607619 | AA197: =IF(Z197="","",Z197-Z$6) -> -0.2961041982 | AB197: -0.1957957603 | AC197: =IF(AB197="","",AB197-AB$6) -> -0.2923106261 | AD197: -0.04665775266 | AE197: =IF(AD197="","",AD197-AD$6) -> -0.2677231946 | AG197: =IF(AF197="","",AF197-AF$6) ->  | AI197: =IF(AH197="","",AH197-AH$6) ->  | AJ197: 42.90245059 | AL197: 0.1882885027 | AM197: -0.1443220661 | AN197: 0.1596303678 | AO197: -0.201995373 | AP197: 5 | AQ197: 7 | AR197: -0.4980559123 | AS197: 0.04418684125 | AT197: -0.4903254316 | AU197: 2019-07-01 | AV197: 2020-03-23
B198: FBHS<XNYS> | C198: Fortune Brands Home & Security, Inc | D198: Edificación residencial | E198: 56.09 | F198: 72.71979176 | G198: 0.7713168402 | H198: 2020-02-20 | I198: 50.94234025 | J198: 72.74901824 | K198: =IFERROR(I198/J198,"") -> 0.7002478038 | N198: 0.04198402378 | O198: 0.02511252277 | P198: 0.1636929461 | Q198: 0.1577288542 | R198: -0.1383774692 | S198: =IF(R198="","",R198-R$6) -> -0.04521730353 | T198: 0.1860858532 | U198: =IF(T198="","",T198-T$6) -> 0.1206962868 | V198: -0.2042626691 | W198: =IF(V198="","",V198-V$6) -> -0.08468794651 | X198: -0.08974856763 | Y198: =IF(X198="","",X198-X$6) -> -0.03695976165 | Z198: 0.05168266558 | AA198: =IF(Z198="","",Z198-Z$6) -> 0.03418608641 | AB198: 0.04530938816 | AC198: =IF(AB198="","",AB198-AB$6) -> -0.05120547755 | AD198: -0.07599849161 | AE198: =IF(AD198="","",AD198-AD$6) -> -0.2970639335 | AF198: 0.05568130566 | AG198: =IF(AF198="","",AF198-AF$6) -> -0.3685290057 | AH198: 0.3447956377 | AI198: =IF(AH198="","",AH198-AH$6) -> -0.03973250369 | AJ198: 52.45874718 | AL198: 0.1590582831 | AM198: -0.158436214 | AN198: 0.1887224303 | AO198: -0.2995951417 | AP198: 8 | AQ198: 4 | AR198: 0.3953780484 | AS198: 0.05380500928 | AT198: -0.5210382324 | AU198: 2020-02-14 | AV198: 2020-03-23
B199: FOXA<XNAS> | C199: Fox Corp | D199: Transmisión de programas de radio y televisión | E199: 26 | F199: 39.05821239 | G199: 0.6656730661 | H199: 2020-01-17 | I199: 171.318706 | J199: 154.787358 | K199: =IFERROR(I199/J199,"") -> 1.106800376 | N199: 0.0297029703 | O199: 0.01283146929 | P199: 0.005025125629 | Q199: -0.0009389662118 | R199: -0.2935641106 | S199: =IF(R199="","",R199-R$6) -> -0.200403945 | T199: -0.01140684411 | U199: =IF(T199="","",T199-T$6) -> -0.07679641058 | V199: -0.2922276103 | W199: =IF(V199="","",V199-V$6) -> -0.1726528877 | X199: -0.2547644161 | Y199: =IF(X199="","",X199-X$6) -> -0.2019756101 | Z199: -0.2908456792 | AA199: =IF(Z199="","",Z199-Z$6) -> -0.3083422584 | AC199: =IF(AB199="","",AB199-AB$6) ->  | AE199: =IF(AD199="","",AD199-AD$6) ->  | AG199: =IF(AF199="","",AF199-AF$6) ->  | AI199: =IF(AH199="","",AH199-AH$6) ->  | AJ199: 41.92557695 | AL199: 0.1237668161 | AM199: -0.1113762928 | AN199: 0.1161048689 | AO199: -0.2257488639 | AP199: 8 | AQ199: 4 | AR199: -0.556538995 | AS199: 0.04320891087 | AT199: -0.4828232333 | AU199: 2020-01-17 | AV199: 2020-03-23
B200: FOX<XNAS> | C200: Fox Corp | D200: Transmisión de programas de radio y televisión | E200: 25.73 | F200: 38.29591066 | G200: 0.6718733033 | H200: 2020-01-17 | I200: 24.33026227 | J200: 51.2386608 | K200: =IFERROR(I200/J200,"") -> 0.4748418848 | N200: 0.02878848461 | O200: 0.01191698359 | P200: 0.006651017215 | Q200: 0.0006869253739 | R200: -0.287980421 | S200: =IF(R200="","",R200-R$6) -> -0.1948202554 | T200: -0.003485670023 | U200: =IF(T200="","",T200-T$6) -> -0.06887523649 | V200: -0.2873931077 | W200: =IF(V200="","",V200-V$6) -> -0.1678183851 | X200: -0.2472404103 | Y200: =IF(X200="","",X200-X$6) -> -0.1944516043 | Z200: -0.2866140063 | AA200: =IF(Z200="","",Z200-Z$6) -> -0.3041105855 | AC200: =IF(AB200="","",AB200-AB$6) ->  | AE200: =IF(AD200="","",AD200-AD$6) ->  | AG200: =IF(AF200="","",AF200-AF$6) ->  | AI200: =IF(AH200="","",AH200-AH$6) ->  | AJ200: 41.63646837 | AL200: 0.1324687355 | AM200: -0.1040650407 | AN200: 0.1197183099 | AO200: -0.2431283182 | AP200: 6 | AQ200: 6 | AR200: -0.5437294347 | AS200: 0.04289388647 | AT200: -0.4827123926 | AU200: 2020-01-17 | AV200: 2020-03-23
B201: BEN<XNYS> | C201: Franklin Resources Inc | D201: Otros servicios relacionados con la intermediación bursátil | E201: 19.2 | F201: 34.28396575 | G201: 0.5600285609 | H201: 2019-07-19 | I201: 57.5318016 | J201: 98.76094344 | K201: 0.5825359661 | N201: 0.05843439912 | O201: 0.04156289811 | P201: 0.01910828026 | Q201: 0.01314418842 | R201: -0.249287418 | S201: -0.1561272523 | T201: 0.1169284468 | U201: 0.0515388803 | V201: -0.2381440281 | W201: -0.1185693055 | X201: -0.3031752023 | Y201: -0.2503863964 | Z201: -0.4083712726 | AA201: -0.4258678517 | AB201: -0.3792121653 | AC201: -0.475727031 | AD201: -0.4661139734 | AE201: -0.6871794153 | AF201: -0.3509694401 | AG201: -0.7751797515 | AH201: -0.5444464321 | AI201: -0.9289745734 | AJ201: 45.7284533 | AL201: 0.1351351351 | AM201: -0.1302110139 | AN201: 0.1288196525 | AO201: -0.2208715582 | AP201: 4 | AQ201: 8 | AR201: -0.741465818 | AS201: 0.04704126512 | AT201: -0.5606721192 | AU201: 2019-07-19 | AV201: 2020-03-23
B202: FCX<XNYS> | C202: Freeport-Mcmoran Inc | D202: Minería de minerales metálicos | E202: 9.21 | F202: 13.48 | G202: 0.6832344214 | H202: 2020-01-13 | I202: 185.1755785 | J202: 238.8066737 | K202: 0.7754204503 | N202: 0.02675585284 | O202: =IF(N202="","",N202-N$6) -> 0.009884351832 | P202: 0.04303510759 | Q202: =IF(P202="","",P202-P$6) -> 0.03707101575 | R202: -0.295414503 | S202: -0.2022543373 | T202: 0.1469489415 | U202: 0.081559375 | V202: -0.2194915254 | W202: -0.09991680287 | X202: -0.1975554062 | Y202: -0.1447666002 | Z202: -0.1787070851 | AA202: -0.1962036643 | AB202: -0.3806175165 | AC202: -0.4771323822 | AD202: -0.1856916433 | AE202: -0.4067570852 | AF202: -0.1939797691 | AG202: -0.6181900805 | AH202: -0.5864237007 | AI202: -0.9709518421 | AJ202: 66.11094531 | AL202: 0.2968460111 | AM202: -0.1805555556 | AN202: 0.3081481481 | AO202: -0.3222891566 | AP202: 7 | AQ202: 5 | AR202: 0.07634193278 | AS202: 0.06869541197 | AT202: -0.6060830861 | AU202: 2020-01-13 | AV202: 2020-03-18
... 291 more rows
